{"text_format":"1","workbook":"xlsx","n_sheets":4,"sheets":["Приџ,прим vs Расх,изд","Оптшти део - (6)","По основ. нам.","ПО КОРИСНИЦИМА"],"not_rendered":{"charts":1,"images":0,"macros":1,"external_links":0,"defined_names":3,"comments":2,"pivot_tables":0},"unopened":[],"bounds":{"document_bytes":16777216,"sheet_cells":100000,"rows_first":2000,"rows_last":500,"rows_between":2000,"halvings":0,"cell_chars":16384,"cell_head_chars":4096},"cells_cut":0,"cells_raw":0,"read":"whole","date_system":"1900"}

{"sheet":"Приџ,прим vs Расх,изд","index":0,"n_rows":47,"n_cols":6,"rows_kept":47,"cut":false,"hidden":true,"merged":[]}
["Р.бр.","ОПИС","Шифра економске класификације","Средства из буџета","Средства из осталих извора","Укупно"]
[1,2,3,4,5,6]
["I","УКУПНИ ПРИХОДИ И ПРИМАЊА ОД ПРОДАЈЕ НЕФИНАНСИЈСКЕ ИМОВИНЕ","7+8"]
["1.","Порески приходи",71]
["1.1.","Порез на доходак, добит и капиталне добитке (осим самодоприноса)",711]
["1.2.","Самодопринос",711180]
["1.3.","Порез на имовину",713]
["1.6.","Остали порески приходи"]
["2.","Непорески приходи ",74]
["2.1","Накнада за коришћење природних добара",741510]
["2.2","Накнада за коришћење шумског и пољопривредног земљишта",741520]
["2.2","Накнада за коришћење грађевинског земљишта",741534]
["2.3","Накнада за коришћење природног лековитог фактора",741542]
["2.4","Приход од имовине који припада имаоцима полисе осигурања",741411]
["2.5","Накнада за обавезни здравствени преглед биља",742252]
["2.6","Накнада за уређивање грађевинског земљишта",742253]
["2.7","Приходи настали продајом услуга корисника средстава буџета јединице локлане самоуправе чије је пружање уговорено са физичким и правним лицима",742340]
["2.8","Остали непорески приходи"]
["3.","Донације","731+732"]
["4.","Трансфери",733]
["5.","Меморандумске ставке за рефундацију расхода",771]
["6.","Примања од продаје нефинансијске имовине",8]
["II","УКУПНИ РАСХОДИ И ИЗДАЦИ ЗА НАБАВКУ НЕФИНАНСИЈСКЕ ИМОВИНЕ","4+5"]
["1.","Текући расходи","4 - 463"]
["1.1.","Расходи за запослене",41]
["1.2.","Коришћење роба и услуга",42]
["1.3.","Употреба основних средстава",43]
["1.4.","Отплата камата",44]
["1.5.","Субвенције",45]
["1.6.","Социјална заштита из буџета",47]
["1.7.","Остали расходи","48+49"]
["2.","Трансфери",463]
["3.","Издаци за набавку нефинансијске имовине",5]
["4.","Издаци за набавку финансијске имовине (осим 6211)",62]
["III","ПРИМАЊА ОД ПРОДАЈЕ ФИНАНСИЈСКЕ ИМОВИНЕ И ЗАДУЖИВАЊА",9]
["1.","Задуживање",91]
["1.1.","Задуживање код домаћих кредитора",911]
["1.2.","Задуживање код страних кредитора",912]
["2.","Примања по основу отплате кредита и продаје финансијске имовине",92]
["IV","ОТПЛАТА ДУГА И НАБАВКА ФИНАНСИЈСКЕ ИМОВИНЕ",6]
["1.","Отплата дуга",61]
["1.1.","Отплата дуга домаћим кредиторима",611]
["1.2.","Отплата дуга страним кредиторима",612]
["1.3.","Отплата дуга по гаранцијама",613]
["2.","Набавка финансијске имовине",6211]
[]
["V","НЕРАСПОРЕЂЕНИ ВИШАК ПРИХОДА ИЗ РАНИЈИХ ГОДИНА",3]

{"sheet":"Оптшти део - (6)","index":1,"n_rows":99,"n_cols":8,"rows_kept":99,"cut":false,"hidden":false,"merged":[[0,3,0,5],[0,6,1,6],[0,0,1,0],[0,1,1,1],[0,2,1,2]]}
["Класа/Категорија/Група","Конто","ВРСТЕ ПРИХОДА И ПРИМАЊА","План за 2021. ",null,null,"УКУПНА ЈАВНА СРЕДСТВА"]
[null,null,null,"Средства из буџета","Структ-ура %","Средства из осталих извора финан. буџ. корисника",null,"%"]
[null,"321121","Вишак прихода и примања - суфицит",null,{"$f":"IFERROR(D3/$D$99,\"-\")","v":0},253054000,{"$f":"D3+F3","v":253054000},{"$f":"G3/G99*100","v":10.997566275532378}]
["700000",null,"ТЕКУЋИ ПРИХОДИ ",{"$f":"SUM(D5,D41,D52,D83,D86)","v":2035747000},0.9997299018758069,{"$f":"F41+F76+F83","v":11649000},{"$f":"G5+G41+G52+G83","v":2047396000},{"$f":"G4/G99*100","v":88.978531073446334}]
[710000,null,"ПОРЕЗИ",{"$f":"D6+D18+D20+D26+D37+D39","v":710290500},0.34881478487666584,{"$f":"SUM(F6,F20,F26,F39)","v":0},{"$f":"G6+G18+G20+G26+G37+G39","v":710290500},{"$f":"G5/G99*100","v":30.868774445893088}]
[711000,null,"ПОРЕЗ НА ДОХОДАК, ДОБИТ И КАПИТАЛНЕ ДОБИТКЕ",{"$f":"D7+D8+D9+D10+D11+D12+D13+D14+D15+D16+D17","v":218190000},0.10715038130488824,{"$f":"SUM(F7:F16)","v":0},{"$f":"G7+G8+G9+G10+G11+G12+G13+G14+G15+G16+G17","v":218190000},{"$f":"G6/G99*100","v":9.4823989569752278}]
[null,711111,"Порез на зараде",154500000,7.5873018523329352E-2,null,{"$f":"D7+F7","v":154500000},{"$f":"G7/G99*100","v":6.7144719687092564}]
[null,711121,"Порез на приходе од самосталних делатности који се плаћа према стварно оствареном приходу, по решењу Пореске управе",300000,1.4732624955986282E-4,null,{"$f":"D8+F8","v":300000},{"$f":"G8/G99*100","v":1.303780964797914E-2}]
[null,711122,"Порез на приходе од самосталних делатности који се плаћа према паушално утврђеном приходу, по решењу Пореске управе",10500000,5.1564187345951992E-3,null,{"$f":"D9+F9","v":10500000},{"$f":"G9/G99*100","v":0.45632333767926986}]
[null,711123,"Порез на приходе од самосталних делатности који се плаћа према стварно оствареном приходу самоопорезивањем",34000000,1.6696974950117786E-2,null,34000000,{"$f":"G10/G99*100","v":1.4776184267709691}]
[null,711143,"Порез на приходе од непокретности",1000,4.9108749853287607E-7,null,1000,{"$f":"G11/G99*100","v":4.3459365493263793E-5}]
[null,711145,"Порез на приходе од давања у закуп покретних ствари - по основу самоопорезивања и по решењу Пореске управе ",250000,1.2277187463321902E-4,null,250000,{"$f":"G12/G99*100","v":1.0864841373315949E-2}]
[null,711147,"Порез на земљиште",10000,4.9108749853287607E-6,null,10000,{"$f":"G13/G99*100","v":4.3459365493263801E-4}]
[null,711181,"Самодопринос према зарадама запослених",1000,4.9108749853287607E-7,null,1000,0]
[null,711184,"Самодопринос из прихода од самосталне делатности",10000,4.9108749853287607E-6,null,10000,{"$f":"G15/G99*100","v":4.3459365493263801E-4}]
[null,711191,"Порез на друге приходе",17000000,8.3484874750588932E-3,null,17000000,{"$f":"G16/G99*100","v":0.73880921338548455}]
[null,711193,"Порез на приходе спортиста и спортских стручнјака",1618000,7.9457957262619354E-4,null,1618000,{"$f":"G17/G99*100","v":7.0317253368100824E-2}]
[712000,null,"ПОРЕЗ НА ФОНД ЗАРАДА",{"$f":"D19","v":500},2.4554374926643803E-7,null,500,0]
[null,712112,"Порез на фонд зарада",500,2.4554374926643803E-7,null,500,0]
[713000,null,"ПОРЕЗ НА ИМОВИНУ",{"$f":"D21+D22+D23+D24+D25","v":370000000},0.18170237445716417,{"$f":"SUM(F21:F25)","v":0},{"$f":"G21+G22+G23+G24+G25","v":370000000},{"$f":"G20/G99*100","v":16.079965232507607}]
[null,713121,"Порез на имовину (осим на земљиште, акције и уделе) од физичких лица",107000000,5.2546362343017745E-2,null,{"$f":"D21+F21","v":107000000},{"$f":"G21/G99*100","v":4.6501521077792258}]
[null,713122,"Порез на имовину (осим на земљиште, акције и уделе) од правних лица",127000000,6.2368112313675263E-2,null,127000000,{"$f":"G22/G99*100","v":5.5193394176445025}]
[null,713311,"Порез на наслеђе и поклон по решењу Пореске управе",7000000,3.4376124897301328E-3,null,7000000,{"$f":"G23/G99*100","v":0.30421555845284659}]
[null,713421,"Порез на пренос апсолутних права на непокретности, по решењу Пореске управе",126000000,0.83,null,126000000,{"$f":"G24/G99*100","v":5.4758800521512381}]
[null,713423,"Порез на пренос апсолутних права на моторним возилима, пловилима и ваздухопловима, по решењу Пореске управе        ",3000000,{"$f":"IFERROR(D25/$D$99,\"-\")","v":1.4732624955986282E-3},null,3000000,{"$f":"G25/G99*100","v":0.1303780964797914}]
[714000,null,"ПОРЕЗ НА ДОБРА И УСЛУГЕ",{"$f":"D27+D28+D29+D30+D31+D32+D33+D34+D35+D36","v":105900000},5.200616609463158E-2,{"$f":"SUM(F27:F34)","v":0},{"$f":"G27+G28+G29+G30+G31+G32+G33+G34+G35+G36","v":105900000},{"$f":"G26/G99*100","v":4.6023468057366363}]
[null,714431,"Комунална такса за коришћење рекламних паноа, укључујући и истицање и исписивање фирме ван пословног простора на објектима и просторима који припадају јединици локалне самоуправе(коловози, тротоари, зелене површине, бандере и сл.)  ",500000,2.4554374926643804E-4,null,{"$f":"D27+F27","v":500000},{"$f":"G27/G99*100","v":2.1729682746631899E-2}]
[null,714513,"Комунална такса за држање моторних друмских и прикључних возила, осим пољопривредних возила и машина",12000000,5.893049982394513E-3,null,12000000,{"$f":"G28/G99*100","v":0.5215123859191656}]
[null,714543,"Накнада за промену намене обрадивог пољопривредног земљишта",3500000,1.7188062448650664E-3,null,3500000,{"$f":"G29/G99*100","v":0.1521077792264233}]
[null,714548,"Накнада за супстанце које оштећују озонски омотач",300000,1.4732624955986282E-4,null,300000,{"$f":"G30/G99*100","v":1.303780964797914E-2}]
[null,714549,"Накнада од емисије СО2, НО2, прашкастих материја",100000,4.9108749853287608E-5,null,100000,0]
[null,714552,"Боравишна такса - правна лица",52000000,2.5536549923709555E-2,null,52000000,{"$f":"G32/G99*100","v":2.2598870056497176}]
[null,714553,"Боравишна такса - физичка лица у пазшалном износу по лежају",30000000,1.4732624955986283E-2,null,30000000]
[null,714562,"Посебна накнада за заштиту и унапређење животне средине",500000,2.4554374926643804E-4,null,500000,{"$f":"G34/G99*100","v":2.1729682746631899E-2}]
[null,714565,"Накнада за коришћење простора на јавној површини",2000000,9.8217499706575217E-4,null,2000000]
[null,714566,"Накнада за коришћење јавне површине за оглашавање",5000000,2.4554374926643806E-3,null,5000000]
["715000",null,"ПОРЕЗ НА МЕЂУНАРОДНУ ТРГОВИНУ И ТРАНСАКЦИЈЕ",{"$f":"D38","v":1200000},null,null,1200000,0.03]
[null,715411,"Добит по основу разлике између куповног и продајног девизног курса",1200000,null,null,1200000,0.03]
["716000",null,"ДРУГИ ПОРЕЗИ",{"$f":"SUM(D40:D40)","v":15000000},{"$f":"IFERROR(D39/$D$99,\"-\")","v":7.3663124779931415E-3},{"$f":"SUM(F40:F40)","v":0},{"$f":"D39+F39","v":15000000},{"$f":"G39/G99*100","v":0.65189048239895697}]
[null,"716111","Комунална такса за истицање фирме на пословном простору",15000000,{"$f":"IFERROR(D40/$D$99,\"-\")","v":7.3663124779931415E-3},null,15000000,0.64]
["730000",null,"ДОНАЦИЈЕ И ТРАНСФЕРИ",{"$f":"SUM(D44,D47)","v":75432191},{"$f":"IFERROR(D41/$D$99,\"-\")","v":3.7043805987044133E-2},{"$f":"F44+F47","v":11218000},{"$f":"G44+G47","v":86650191},{"$f":"G41/G99*100","v":3.7657623207301172}]
["731000",null,"ДОНАЦИЈЕ ОД ИНОСТРАНИХ ДРЖАВА",null,null,{"$f":"F43","v":0},{"$f":"D42+F42","v":0},0]
[null,"731251","Капиталне донације од иностраних држава у корист нивоа општине",0,null,0,{"$f":"F43","v":0},0]
["732000",null,"ДОНАЦИЈЕ И ПОМОЋИ ОД МЕЂ. ОРГАНИЗАЦИЈА",{"$f":"D45+D46","v":0},{"$f":"IFERROR(D44/$D$99,\"-\")","v":0},{"$f":"F45+F46","v":518000},{"$f":"G45+G46","v":518000},0.4]
[null,"732341","Текуће помоћи ЕУ у корист нивоа општине",null,{"$f":"IFERROR(D45/$D$99,\"-\")","v":0},518000,{"$f":"F45","v":518000},0]
[null,"732441","Капиталне помоћи ЕУ у корист нивоа општине",0,null,null,{"$f":"D46+F46","v":0},0]
["733000",null,"ТРАНСФЕРИ ОД ДРУГИХ НИВОА ВЛАСТИ",{"$f":"SUM(D48:D51)","v":75432191},{"$f":"IFERROR(D47/$D$99,\"-\")","v":3.7043805987044133E-2},{"$f":"F48+F49+F50+F51","v":10700000},{"$f":"G48+G49+G50+G51","v":86132191},{"$f":"G47/G99*100","v":3.7432503694046071}]
[null,733151,"Ненаменски трансфери од Републике у корист нивоа општина",75432191,3.7043805987044133E-2,null,{"$f":"D48+F48","v":75432191},{"$f":"G48/G99*100","v":3.2782351586266842}]
[null,733152,"Други текући трансфери од Републике у корист нивоа општина",0,0,null,{"$f":"F49","v":0},0]
[null,"733154","Текући наменски трансфери, у ужем смислу, од Републике у корист нивоа општина",0,0,10200000,10200000,{"$f":"G50/G99*100","v":0.44328552803129079}]
[null,"733251","Капитални наменски трансфери, у ужем смислу, од Републике у корист нивоа општине",0,0,500000,500000,0.67]
["740000",null,"ДРУГИ ПРИХОДИ",{"$f":"SUM(D53,D63,D72,D76,D79)","v":1248224309},0.61298735351473777,{"$f":"F63+F79","v":0},{"$f":"G53+G63+G72+G76+G79","v":1248374309},{"$f":"G52/G99*100","v":54.253555367231641}]
["741000",null,"ПРИХОДИ ОД ИМОВИНЕ",{"$f":"D54+D55+D56+D57+D58+D59+D60+D61+D62","v":1160451000},0.56988297875997462,{"$f":"SUM(F54:F61)","v":0},{"$f":"G54+G55+G56+G57+G58+G59+G60+G61+G62","v":1160451000},{"$f":"G53/G99*100","v":50.43246414602347}]
[null,"741151","Приходи буџета општине од камата на средства консолидованог рачуна трезора укључена у депозит банака",1000,4.9108749853287607E-7,null,{"$f":"D54+F54","v":1000},0]
[null,"741511","Накнада за коришћење минералних сировина",1200000,5.893049982394513E-4,null,{"$f":"D55+F55","v":1200000},{"$f":"G55/G99*100","v":5.215123859191656E-2}]
[null,"741522","Средства остварена од давања у закуп пољопривредног земљишта",1500000,7.3663124779931412E-4,null,1500000,0.04]
[null,"741526","Накнада за коришћење шумског и пољопривредног земљишта",500000,2.4554374926643804E-4,null,500000,{"$f":"G57/G99*100","v":2.1729682746631899E-2}]
[null,"741531","Комунална такса за коришћење простора на јавним површинама или испред пословног простора у пословне сврхе, осим ради продаје штампе, књига и других публикација, производа старих и уметничких заната и домаће радиности",10000000,4.9108749853287613E-3,null,10000000,{"$f":"G58/G99*100","v":0.43459365493263796}]
[null,"741532","Комунална такса за коришћење простора за паркирање друмских моторних и прикључних возила на уређеним и обележеним местима",3200000,1.5714799953052035E-3,null,3200000,{"$f":"G59/G99*100","v":0.13906996957844417}]
[null,"741534","Накнада за коришћење грађевинског земљишта",50000,2.4554374926643804E-5,null,50000]
[null,"741538","Допринос за уређивање грађевинског земљишта",1143000000,0.56131301082307739,null,1143000000]
[null,"741596","Накнада за коришћење дрвета",1000000,4.9108749853287608E-4,null,1000000]
["742000",null,"ПРИХОДИ ОД ПРОДАЈЕ ДОБАРА И УСЛУГА",{"$f":"D64+D65+D66+D67+D68+D69+D70+D71","v":78702000},3.8649568309534414E-2,{"$f":"F64+F65+F71","v":0},{"$f":"G64+G65+G66+G67+G68+G69+G70+G71","v":78702000},{"$f":"G63/G99*100","v":3.4203389830508475}]
[null,"742151","Приходи од продаје добара и услуга од стране тржишних организација  у корист нивоа општине",32000000,null,0,{"$f":"D64+F64","v":32000000},{"$f":"G64/G99*100","v":1.3906996957844415}]
[null,"742152","Приходи од давања у закуп, односно на коришћење непокретности у државној својини које користе општине и индиректни корисници њиховог буџета",6000000,{"$f":"IFERROR(D65/$D$99,\"-\")","v":2.9465249911972565E-3},0,{"$f":"D65+F65","v":6000000},{"$f":"G65/G99*100","v":0.2607561929595828}]
[null,"742154","Накнада по основу конверзије права коришћења  у право својине у корист нивоа општине",1000,4.9108749853287607E-7,null,{"$f":"D66+F66","v":1000},0]
[null,"742156","Приходи остварени по основу пружања услуга боравка деце у предшколским установама у корист нивоа општине",15000000,7.3663124779931415E-3,null,15000000,{"$f":"G67/G99*100","v":0.65189048239895697}]
[null,742251,"Општинске административне таксе",20000000,9.8217499706575225E-3,null,20000000,{"$f":"G68/G99*100","v":0.86918730986527593}]
[null,742253,"Накнада за уређивање грађевинског земљишта",1000,4.9108749853287607E-7,null,1000,{"$f":"G69/G99*100","v":4.3459365493263793E-5}]
[null,742255,"Такса за озакоњење објеката у корист нивоа општине",5000000,2.4554374926643806E-3,null,5000000,{"$f":"G70/G99*100","v":0.21729682746631898}]
[null,742351,"Приходи које својом делатношћу остваре органи и организације општине ",700000,"                                                                                                                                                                                                                                                                                                                                                                                                                                 ",0,700000,{"$f":"G71/G99*100","v":3.0421555845284658E-2}]
["743000",null,"НОВЧАНЕ КАЗНЕ И ОДУЗЕТА ИМОВИНСКА КОРИСТ",{"$f":"D73+D74+D75","v":7200000},{"$f":"IFERROR(D72/$D$99,\"-\")","v":3.5358299894367078E-3},{"$f":"SUM(F73:F74)","v":0},7200000,{"$f":"G72/G99*100","v":0.31290743155149936}]
[null,"743324","Приходи од новчаних казни за прекршаје, предвиђене прописима о безбедности саобраћаја на путевима",7000000,3.4376124897301328E-3,null,7000000,{"$f":"G73/G99*100","v":0.30421555845284659}]
[null,"743351","Приходи од новчаних казни изречених у прекршајном поступку за прекршаје прописане актом скупштине општине",100000,4.9108749853287608E-5,null,100000,0]
[null,"743353","Приходи од новчаних казни за прекршаје, предвиђене прописима о безбедности саобраћаја на путевима",100000,4.9108749853287608E-5,null,100000,0]
["744000",null,"ДОБРОВОЉНИ ТРАНСФЕРИ ОД ФИЗИЧКИХ И ПРАВНИХ ЛИЦА",{"$f":"SUM(D77:D78)","v":0},0,{"$f":"SUM(F77:F78)","v":150000},150000,0]
[null,"744151","Текући добровољни трансфери од физичких и правних лица у корист нивоа општина",0,0,150000,150000,0]
[null,"744251","Капитални добровољни трансфери од физичких и правних лица у корист нивоа општина",null,0,null,0,0]
["745000",null,"МЕШОВИТИ И НЕОДРЕЂЕНИ ПРИХОДИ",{"$f":"D80+D81+D82","v":1871309},9.189764557920578E-4,{"$f":"SUM(F80:F82)","v":0},1871309,{"$f":"G79/G99*100","v":8.1325901781833992E-2}]
[null,"745151","Остали приходи у корист нивоа општина",1871309,9.189764557920578E-4,0,1871309,0.24]
[null,"745152","Закупнина за стан у државној својини у корист нивоа општина",0,0,null,0,0]
[null,"745153","Део добити јавног предузећа према одлуци управног одбора јавног предузећа у корист нивоа општина",0,0,null,0,0]
["772000",null,"МЕМОРАНДУМСКЕ СТАВКЕ ЗА РЕФУНДАЦИЈУ РАСХОДА",{"$f":"D84+D85","v":1800000},8.8395749735917695E-4,{"$f":"SUM(F84)","v":281000},{"$f":"G84+G85","v":2081000},{"$f":"G83/G99*100","v":9.0438939591481957E-2}]
[null,"772111","Меморандумске ставке за рефундацију расхода буџета Републике из претходне године",300000,1.4732624955986282E-4,281000,581000,0.04]
[null,"772114","Mеморандумске ставке за рефундацију расхода буџета општине из претходне године",1500000,7.3663124779931412E-4,null,{"$f":"D85","v":1500000}]
["790000",null,"ПРИХОДИ ИЗ БУЏЕТА",{"$f":"SUM(D87)","v":0},0,{"$f":"SUM(F87)","v":0},0,0]
[null,"791110","Приходи из буџета",null,0,null,0,0]
["800000",null,"ПРИМАЊА ОД ПРОДАЈЕ НЕФИНАНСИЈСКЕ ИМОВИНЕ",{"$f":"D89+D93","v":550000},2.7009812419308185E-4,{"$f":"F89+F93","v":0},550000,{"$f":"G88/G99*100","v":2.3902651021295088E-2}]
[810000,null,"ПРИМАЊА ОД ПРОДАЈЕ ОСНОВНИХ СРЕДСТАВА",{"$f":"D90+D91+D92","v":50000},2.4554374926643804E-5,{"$f":"SUM(F90:F91)","v":0},50000,0]
[null,811000,"Примања од продаје непокретности",null,0,null,0,0]
[null,812000,"Примања од продаје покретне имовине",50000,2.4554374926643804E-5,null,50000,0]
[null,813000,"Примања од продаје осталих основних средстава",0,null,null,0,0]
[823000,null,"ПРИМАЊА ОД ПРОДАЈЕ РОБЕ ЗА ДАЉУ ПРОДАЈУ",{"$f":"SUM(D94)","v":500000},{"$f":"IFERROR(D93/$D$99,\"-\")","v":2.4554374926643804E-4},{"$f":"SUM(F94)","v":0},500000,{"$f":"G93/G99*100","v":2.1729682746631899E-2}]
[null,823151,"Примања од продаје робе за даљу продају у корист нивоа општине",500000,2.4554374926643804E-4,0,500000,0.05]
["900000",null,"ПРИМАЊА ОД ЗАДУЖИВАЊА И ПРОДАЈЕ ФИНАНСИЈСКЕ ИМОВИНЕ",0,0,0,0,0]
["910000",null,"ПРИМАЊА ОД ЗАДУЖИВАЊА ",{"$f":"SUM(D97:D97)","v":0},0,{"$f":"SUM(F97:F97)","v":0},0,0]
[null,"911451","Примања од задуживања од пословних банака у земљи у корист нивоа градова",0,0,null,0,0]
[null,"7+8+9","ТЕКУЋИ ПРИХОДИ И ПРИМАЊА ОД ЗАДУЖИВАЊА И ПРОДАЈЕ ФИН. ИМОВИНЕ",{"$f":"SUM(D4,D88,D95)","v":2036297000},1,{"$f":"F44+F47+F76+F83","v":11649000},{"$f":"G4+G88","v":2047946000},{"$f":"G98/G99*100","v":89.002433724467622}]
[null,"3+7+8+9","УКУПНО ПРЕНЕТА СРЕДСТВА, ТЕКУЋИ ПРИХОДИ И ПРИМАЊА",{"$f":"SUM(D3,D4,D88,D95)","v":2036297000},1,{"$f":"F3+F98","v":264703000},{"$f":"G3+G4+G88","v":2301000000},100]

{"sheet":"По основ. нам.","index":2,"n_rows":85,"n_cols":7,"rows_kept":85,"cut":false,"hidden":false,"merged":[[0,0,0,4]]}
["       ОПШТИ ДЕО  -    ИЗДАЦИ ПО ОСНОВНИМ НАМЕНАМА"]
[]
["Екон. клас.","ВРСТЕ РАСХОДА И ИЗДАТАКА","Средства из буџета","Структура         %","Средства из осталих извора ","Укупна јавна средства","%"]
["1",2,3,4,5,6,7]
["400","ТЕКУЋИ РАСХОДИ",{"$f":"C6+C13+C26+C31+C37+C44+C46+C53","v":1255908400},{"$f":"IFERROR(C5/$C$84,\"-\")","v":0.61676091454242676},{"$f":"SUM(E6,E13,E20,E26,E31,E37,E44,E46,E53)","v":68380600},{"$f":"SUM(E5,C5)","v":1324289000},{"$f":"F5/Ukupno_izdaci*100","v":57.55275966970882}]
["410","РАСХОДИ ЗА ЗАПОСЛЕНЕ",{"$f":"C7+C8+C9+C10+C11+C12","v":241275000},0.11848713620851968,{"$f":"SUM(E7:E12)","v":1850000},{"$f":"C6+E6","v":243125000},10.566058235549761]
[411,"Плате и додаци запослених",179187000,8.7996495599610466E-2,{"$f":"SUMIF('ПО КОРИСНИЦИМА'!$F$4:$F$2891,'По основ. нам.'!A7,'ПО КОРИСНИЦИМА'!$I$4:$I$2891)","v":1330000},{"$f":"C7+E7","v":180517000},{"$f":"F7/Ukupno_izdaci*100","v":7.8451542807475017}]
[412,"Социјални доприноси на терет послодавца",29823000,1.4645702468745964E-2,{"$f":"SUMIF('ПО КОРИСНИЦИМА'!$F$4:$F$2891,'По основ. нам.'!A8,'ПО КОРИСНИЦИМА'!$I$4:$I$2891)","v":239000},{"$f":"C8+E8","v":30062000},1.3064754454584964]
[413,"Накнаде у натури (превоз)",1820000,8.9377924732983449E-4,{"$f":"SUMIF('ПО КОРИСНИЦИМА'!$F$4:$F$2891,'По основ. нам.'!A9,'ПО КОРИСНИЦИМА'!$I$4:$I$2891)","v":0},1820000,7.9096045197740106E-2]
["414","Социјална давања запосленима",18034000,8.856271948541888E-3,281000,18315000,0.79595827900912652]
["415","Накнаде за запослене",9441000,4.6363570736488837E-3,{"$f":"SUMIF('ПО КОРИСНИЦИМА'!$F$4:$F$2891,'По основ. нам.'!A11,'ПО КОРИСНИЦИМА'!$I$4:$I$2891)","v":0},9441000,0.41029986962190357]
["416","Награде,бонуси и остали посебни расходи",2970000,1.458529870642642E-3,{"$f":"SUMIF('ПО КОРИСНИЦИМА'!$F$4:$F$2891,'По основ. нам.'!A12,'ПО КОРИСНИЦИМА'!$I$4:$I$2891)","v":0},2970000,0.12907431551499349]
["420","КОРИШЋЕЊЕ УСЛУГА И РОБА",{"$f":"C14+C15+C16+C17+C18+C19","v":550620000},0.27040259844217224,{"$f":"SUM(E14:E19)","v":64030600},614650600,26.71232507605389]
["421","Стални трошкови",116990000,5.7452326453361173E-2,143000,117133000,5.0905258583224686]
[422,"Трошкови путовања",2970000,1.458529870642642E-3,125000,3095000,0.13450673620165146]
[423,"Услуге по уговору",271746000,0.13345106337631496,23877600,295623600,12.847614080834418]
["424","Специјализоване услуге",51625000,2.5352392111759728E-2,15000000,66625000,2.8954802259887007]
["425","Текуће поправке и одржавање (услуге и мат)",75825000,3.7236709576255328E-2,20000000,95825000,4.164493698392004]
["426","Материјал",31464000,1.5451577053838414E-2,4885000,36349000,1.5797044763146459]
["430","УПОТРЕБА ОСНОВНИХ СРЕДСТАВА",{"$f":"SUM(C21:C25)","v":0},0,{"$f":"SUM(E21:E25)","v":0},0,0]
[431,"Амортизација некретнина и опреме;",{"$f":"SUMIF('ПО КОРИСНИЦИМА'!$F$4:$F$2891,'По основ. нам.'!A21,'ПО КОРИСНИЦИМА'!$H$4:$H$2891)","v":0},0,{"$f":"SUMIF('ПО КОРИСНИЦИМА'!$F$4:$F$2891,'По основ. нам.'!A21,'ПО КОРИСНИЦИМА'!$I$4:$I$2891)","v":0},0,0]
[432,"Амортизација култивисане имовине;",{"$f":"SUMIF('ПО КОРИСНИЦИМА'!$F$4:$F$2891,'По основ. нам.'!A22,'ПО КОРИСНИЦИМА'!$H$4:$H$2891)","v":0},0,{"$f":"SUMIF('ПО КОРИСНИЦИМА'!$F$4:$F$2891,'По основ. нам.'!A22,'ПО КОРИСНИЦИМА'!$I$4:$I$2891)","v":0},0,0]
[433,"Употреба драгоцености;",{"$f":"SUMIF('ПО КОРИСНИЦИМА'!$F$4:$F$2891,'По основ. нам.'!A23,'ПО КОРИСНИЦИМА'!$H$4:$H$2891)","v":0},0,{"$f":"SUMIF('ПО КОРИСНИЦИМА'!$F$4:$F$2891,'По основ. нам.'!A23,'ПО КОРИСНИЦИМА'!$I$4:$I$2891)","v":0},0,0]
[434,"Употреба природне имовине;",{"$f":"SUMIF('ПО КОРИСНИЦИМА'!$F$4:$F$2891,'По основ. нам.'!A24,'ПО КОРИСНИЦИМА'!$H$4:$H$2891)","v":0},0,{"$f":"SUMIF('ПО КОРИСНИЦИМА'!$F$4:$F$2891,'По основ. нам.'!A24,'ПО КОРИСНИЦИМА'!$I$4:$I$2891)","v":0},0,0]
[435,"Амортизација нематеријалне имовине",{"$f":"SUMIF('ПО КОРИСНИЦИМА'!$F$4:$F$2891,'По основ. нам.'!A25,'ПО КОРИСНИЦИМА'!$H$4:$H$2891)","v":0},0,{"$f":"SUMIF('ПО КОРИСНИЦИМА'!$F$4:$F$2891,'По основ. нам.'!A25,'ПО КОРИСНИЦИМА'!$I$4:$I$2891)","v":0},0,0]
["440","ОТПЛАТА КАМАТА",{"$f":"SUM(C27:C30)","v":9800000},4.8126574856221854E-3,{"$f":"SUM(E27:E30)","v":0},9800000,0.42590178183398519]
[441,"Отплата домаћих камата;",{"$f":"SUMIF('ПО КОРИСНИЦИМА'!$F$4:$F$2891,'По основ. нам.'!A27,'ПО КОРИСНИЦИМА'!$H$4:$H$2891)","v":9700000},4.7635487357688983E-3,{"$f":"SUMIF('ПО КОРИСНИЦИМА'!$F$4:$F$2891,'По основ. нам.'!A27,'ПО КОРИСНИЦИМА'!$I$4:$I$2891)","v":0},9700000,0.42155584528465889]
[442,"Отплата страних камата;",{"$f":"SUMIF('ПО КОРИСНИЦИМА'!$F$4:$F$2891,'По основ. нам.'!A28,'ПО КОРИСНИЦИМА'!$H$4:$H$2891)","v":0},0,{"$f":"SUMIF('ПО КОРИСНИЦИМА'!$F$4:$F$2891,'По основ. нам.'!A28,'ПО КОРИСНИЦИМА'!$I$4:$I$2891)","v":0},0,0]
[443,"Отплата камата по гаранцијама",{"$f":"SUMIF('ПО КОРИСНИЦИМА'!$F$4:$F$2891,'По основ. нам.'!A29,'ПО КОРИСНИЦИМА'!$H$4:$H$2891)","v":0},0,{"$f":"SUMIF('ПО КОРИСНИЦИМА'!$F$4:$F$2891,'По основ. нам.'!A29,'ПО КОРИСНИЦИМА'!$I$4:$I$2891)","v":0},0,0]
[444,"Пратећи трошкови задуживања",100000,4.9108749853287608E-5,{"$f":"SUMIF('ПО КОРИСНИЦИМА'!$F$4:$F$2891,'По основ. нам.'!A30,'ПО КОРИСНИЦИМА'!$I$4:$I$2891)","v":0},100000,4.3459365493263803E-3]
["450","СУБВЕНЦИЈЕ",{"$f":"SUM(C32:C36)","v":119000000},5.8439412325412256E-2,{"$f":"SUM(E32:E36)","v":0},119000000,5.1716644936983922]
["4511","Текуће субвенције јавним нефинансијским предузећима и организацијама                                                                ",103000000,5.0582012348886235E-2,{"$f":"SUMIF('ПО КОРИСНИЦИМА'!$F$4:$F$2891,'По основ. нам.'!A32,'ПО КОРИСНИЦИМА'!$I$4:$I$2891)","v":0},103000000,4.4763146458061707]
["4512","Капиталне субвенције јавним нефинансијским предузећима и организацијама                                                                ",null,0,{"$f":"SUMIF('ПО КОРИСНИЦИМА'!$F$4:$F$2891,'По основ. нам.'!A33,'ПО КОРИСНИЦИМА'!$I$4:$I$2891)","v":0},0,0]
["452","Субвенције приватним финансијским институцијама;",{"$f":"SUMIF('ПО КОРИСНИЦИМА'!$F$4:$F$2891,'По основ. нам.'!A34,'ПО КОРИСНИЦИМА'!$H$4:$H$2891)","v":0},0,{"$f":"SUMIF('ПО КОРИСНИЦИМА'!$F$4:$F$2891,'По основ. нам.'!A34,'ПО КОРИСНИЦИМА'!$I$4:$I$2891)","v":0},null,0]
[453,"Субвенције јавним финансијским институцијама;",{"$f":"SUMIF('ПО КОРИСНИЦИМА'!$F$4:$F$2891,'По основ. нам.'!A35,'ПО КОРИСНИЦИМА'!$H$4:$H$2891)","v":0},0,{"$f":"SUMIF('ПО КОРИСНИЦИМА'!$F$4:$F$2891,'По основ. нам.'!A35,'ПО КОРИСНИЦИМА'!$I$4:$I$2891)","v":0},0,{"$f":"F35/Ukupno_izdaci*100","v":0}]
[454,"Субвенције приватним предузећима",16000000,7.8573999765260173E-3,{"$f":"SUMIF('ПО КОРИСНИЦИМА'!$F$4:$F$2891,'По основ. нам.'!A36,'ПО КОРИСНИЦИМА'!$I$4:$I$2891)","v":0},16000000,0.69534984789222076]
["460","ДОНАЦИЈЕ И ТРАНСФЕРИ",{"$f":"C40+C41+C42+C43","v":88315000},{"$f":"IFERROR(C37/$C$84,\"-\")","v":4.3370392432930956E-2},{"$f":"SUM(E38:E43)","v":0},88315000,3.838113863537592]
[461,"Донације страним владама ",{"$f":"SUMIF('ПО КОРИСНИЦИМА'!$F$4:$F$2891,'По основ. нам.'!A38,'ПО КОРИСНИЦИМА'!$H$4:$H$2891)","v":0},0,{"$f":"SUMIF('ПО КОРИСНИЦИМА'!$F$4:$F$2891,'По основ. нам.'!A38,'ПО КОРИСНИЦИМА'!$I$4:$I$2891)","v":0},0,0]
[462,"Донације и дотације међународним организацијама",{"$f":"SUMIF('ПО КОРИСНИЦИМА'!$F$4:$F$2891,'По основ. нам.'!A39,'ПО КОРИСНИЦИМА'!$H$4:$H$2891)","v":0},0,{"$f":"SUMIF('ПО КОРИСНИЦИМА'!$F$4:$F$2891,'По основ. нам.'!A39,'ПО КОРИСНИЦИМА'!$I$4:$I$2891)","v":0},0,0]
[4631,"Текући трансфери осталим нивоима власти",67755000,3.3273633463095018E-2,{"$f":"SUMIF('ПО КОРИСНИЦИМА'!$F$4:$F$2891,'По основ. нам.'!A40,'ПО КОРИСНИЦИМА'!$I$4:$I$2891)","v":0},67755000,2.9445893089960888]
[4632,"Капитални трансфери осталим нивоима власти",6160000,3.0250989909625168E-3,{"$f":"SUMIF('ПО КОРИСНИЦИМА'!$F$4:$F$2891,'По основ. нам.'!A41,'ПО КОРИСНИЦИМА'!$I$4:$I$2891)","v":0},6160000,0.26770969143850498]
[464,"Дотације организацијама обавезног социјалног осигурања",14400000,7.0716599788734156E-3,{"$f":"SUMIF('ПО КОРИСНИЦИМА'!$F$4:$F$2891,'По основ. нам.'!A42,'ПО КОРИСНИЦИМА'!$I$4:$I$2891)","v":0},14400000,0.62581486310299872]
[465,"Остале донације, дотације и трансфери ",null,0,0,0,0]
["470","СОЦИЈАЛНА ПОМОЋ",{"$f":"SUM(C45)","v":87750000},4.3092927996259876E-2,{"$f":"SUM(E45)","v":2500000},90250000,3.9222077357670573]
[472,"Накнаде за социјалну заштиту из буџета",87750000,4.3092927996259876E-2,2500000,90250000,3.9222077357670573]
["480","ОСТАЛИ РАСХОДИ",{"$f":"SUM(C47:C52)","v":129148400},6.3423164695523296E-2,{"$f":"SUM(E47:E52)","v":0},{"$f":"C46+E46","v":129148400},5.6127075184702298]
[481,"Дотације невладиним организацијама;",101350000,4.9771717976306994E-2,{"$f":"SUMIF('ПО КОРИСНИЦИМА'!$F$4:$F$2891,'По основ. нам.'!A47,'ПО КОРИСНИЦИМА'!$I$4:$I$2891)","v":0},{"$f":"C47+E47","v":101350000},4.404606692742286]
[482,"Порези, обавезне таксе, казне и пенали;",8243400,4.0482306854059107E-3,{"$f":"SUMIF('ПО КОРИСНИЦИМА'!$F$4:$F$2891,'По основ. нам.'!A48,'ПО КОРИСНИЦИМА'!$I$4:$I$2891)","v":0},{"$f":"C48+E48","v":8243400},0.3582529335071708]
[483,"Новчане казне и пенали по решењу судова;",4880000,2.3965069928404354E-3,{"$f":"SUMIF('ПО КОРИСНИЦИМА'!$F$4:$F$2891,'По основ. нам.'!A49,'ПО КОРИСНИЦИМА'!$I$4:$I$2891)","v":0},4880000,0.21208170360712733]
[484,"Накнада штете за повреде или штету насталу услед елементарних непогода или других природних узрока;",2050000,1.0067293719923959E-3,{"$f":"SUMIF('ПО КОРИСНИЦИМА'!$F$4:$F$2891,'По основ. нам.'!A50,'ПО КОРИСНИЦИМА'!$I$4:$I$2891)","v":0},2050000,8.9091699261190788E-2]
[485,"Накнада штете за повреде или штету нанету од стране државних органа;",12625000,6.1999796689775604E-3,{"$f":"SUMIF('ПО КОРИСНИЦИМА'!$F$4:$F$2891,'По основ. нам.'!A51,'ПО КОРИСНИЦИМА'!$I$4:$I$2891)","v":0},12625000,0.54867448935245544]
[489,"Расходи који се финансирају из средстава за реализацију националног инвестиционог плана",{"$f":"SUMIF('ПО КОРИСНИЦИМА'!$F$4:$F$2891,'По основ. нам.'!A52,'ПО КОРИСНИЦИМА'!$H$4:$H$2891)","v":0},0,{"$f":"SUMIF('ПО КОРИСНИЦИМА'!$F$4:$F$2891,'По основ. нам.'!A52,'ПО КОРИСНИЦИМА'!$I$4:$I$2891)","v":0},0,0]
[490,"АДМИНИСТРАТИВНИ ТРАНСФЕРИ БУЏЕТА",{"$f":"SUM(C54:C59)","v":30000000},1.4732624955986283E-2,{"$f":"SUM(E58:E59)","v":0},30000000,1.3037809647979139]
[494,"Административни трансфери из буџета - Текући расходи",{"$f":"SUMIF('ПО КОРИСНИЦИМА'!$F$4:$F$2891,'По основ. нам.'!A54,'ПО КОРИСНИЦИМА'!$H$4:$H$2891)","v":0},0,{"$f":"SUMIF('ПО КОРИСНИЦИМА'!$F$4:$F$2891,'По основ. нам.'!A54,'ПО КОРИСНИЦИМА'!$I$4:$I$2891)","v":0},0,0]
[495,"Административни трансфери из буџета - Издаци за нефинансијску имовину",{"$f":"SUMIF('ПО КОРИСНИЦИМА'!$F$4:$F$2891,'По основ. нам.'!A55,'ПО КОРИСНИЦИМА'!$H$4:$H$2891)","v":0},0,{"$f":"SUMIF('ПО КОРИСНИЦИМА'!$F$4:$F$2891,'По основ. нам.'!A55,'ПО КОРИСНИЦИМА'!$I$4:$I$2891)","v":0},0,0]
[496,"Административни трансфери из буџета - Издаци за отплату главнице и набавку финансијске имовине",{"$f":"SUMIF('ПО КОРИСНИЦИМА'!$F$4:$F$2891,'По основ. нам.'!A56,'ПО КОРИСНИЦИМА'!$H$4:$H$2891)","v":0},0,{"$f":"SUMIF('ПО КОРИСНИЦИМА'!$F$4:$F$2891,'По основ. нам.'!A56,'ПО КОРИСНИЦИМА'!$I$4:$I$2891)","v":0},0,0]
[499,"Административни трансфери из буџета - Средства резерве",null,0,{"$f":"SUMIF('ПО КОРИСНИЦИМА'!$F$4:$F$2891,'По основ. нам.'!A57,'ПО КОРИСНИЦИМА'!$I$4:$I$2891)","v":0},0,0]
[49911,"Стална резерва",5000000,2.4554374926643806E-3,{"$f":"SUMIF('ПО КОРИСНИЦИМА'!$F$4:$F$2891,'По основ. нам.'!A58,'ПО КОРИСНИЦИМА'!$I$4:$I$2891)","v":0},5000000,0.21729682746631898]
["49912","Текућа резерва",25000000,1.2277187463321902E-2,{"$f":"SUMIF('ПО КОРИСНИЦИМА'!$F$4:$F$2891,'По основ. нам.'!A59,'ПО КОРИСНИЦИМА'!$I$4:$I$2891)","v":0},25000000,1.086484137331595]
["500","КАПИТАЛНИ ИЗДАЦИ",{"$f":"C61+C67+C72+C76","v":767388600},0.37685494797664582,{"$f":"SUM(E61,E67,E72,E76)","v":126322400},{"$f":"SUM(C60,E60)","v":893711000},38.840112994350285]
["510","ОСНОВНА СРЕДСТВА",{"$f":"C62+C63+C64+C65+C66","v":738028600},0.36243661901972057,{"$f":"SUM(E62:E66)","v":126322400},864351000,37.564146023468062]
[511,"Зграде и грађевински објекти;",707178600,0.34728656968998139,124622400,831801000,36.149543676662319]
[512,"Машине и опрема;",28550000,1.4020548083113612E-2,500000,29050000,1.2624945675793133]
[513," Остале некретнине и опрема;",{"$f":"SUMIF('ПО КОРИСНИЦИМА'!$F$4:$F$2891,'По основ. нам.'!A64,'ПО КОРИСНИЦИМА'!$H$4:$H$2891)","v":0},0,{"$f":"SUMIF('ПО КОРИСНИЦИМА'!$F$4:$F$2891,'По основ. нам.'!A64,'ПО КОРИСНИЦИМА'!$I$4:$I$2891)","v":0},0,0]
[514,"Култивисана имовина;",{"$f":"SUMIF('ПО КОРИСНИЦИМА'!$F$4:$F$2891,'По основ. нам.'!A65,'ПО КОРИСНИЦИМА'!$H$4:$H$2891)","v":0},0,{"$f":"SUMIF('ПО КОРИСНИЦИМА'!$F$4:$F$2891,'По основ. нам.'!A65,'ПО КОРИСНИЦИМА'!$I$4:$I$2891)","v":0},0,0]
[515,"Нематеријална имовина",2300000,1.1295012466256151E-3,1200000,3500000,0.1521077792264233]
["520","ЗАЛИХЕ",{"$f":"SUM(C68:C71)","v":1000000},4.9108749853287608E-4,{"$f":"SUM(E68:E70)","v":0},1000000,{"$f":"F67/Ukupno_izdaci*100","v":4.3459365493263798E-2}]
[521,"Робне резерве;",{"$f":"SUMIF('ПО КОРИСНИЦИМА'!$F$4:$F$2891,'По основ. нам.'!A68,'ПО КОРИСНИЦИМА'!$H$4:$H$2891)","v":0},0,{"$f":"SUMIF('ПО КОРИСНИЦИМА'!$F$4:$F$2891,'По основ. нам.'!A68,'ПО КОРИСНИЦИМА'!$I$4:$I$2891)","v":0},0,0]
[522,"Залихе производње;",{"$f":"SUMIF('ПО КОРИСНИЦИМА'!$F$4:$F$2891,'По основ. нам.'!A69,'ПО КОРИСНИЦИМА'!$H$4:$H$2891)","v":0},{"$f":"IFERROR(C69/$C$84,\"-\")","v":0},{"$f":"SUMIF('ПО КОРИСНИЦИМА'!$F$4:$F$2891,'По основ. нам.'!A69,'ПО КОРИСНИЦИМА'!$I$4:$I$2891)","v":0},0,0]
[523,"Залихе робе за даљу продају",1000000,4.9108749853287608E-4,{"$f":"SUMIF('ПО КОРИСНИЦИМА'!$F$4:$F$2891,'По основ. нам.'!A70,'ПО КОРИСНИЦИМА'!$I$4:$I$2891)","v":0},1000000,4.3459365493263798E-2]
[531,"Драгоцености",{"$f":"SUMIF('ПО КОРИСНИЦИМА'!$F$4:$F$2891,'По основ. нам.'!A71,'ПО КОРИСНИЦИМА'!$H$4:$H$2891)","v":0},0,null,null,0]
["540","ПРИРОДНА ИМОВИНА",{"$f":"SUM(C73:C75)","v":28360000},1.3927241458392366E-2,{"$f":"SUM(E73:E75)","v":0},28360000,1.2325076053889614]
[541,"Земљиште;",{"$f":"SUMIF('ПО КОРИСНИЦИМА'!$F$4:$F$2891,'По основ. нам.'!A73,'ПО КОРИСНИЦИМА'!$H$4:$H$2891)","v":28360000},1.3927241458392366E-2,{"$f":"SUMIF('ПО КОРИСНИЦИМА'!$F$4:$F$2891,'По основ. нам.'!A73,'ПО КОРИСНИЦИМА'!$I$4:$I$2891)","v":0},28360000,1.2325076053889614]
[542,"Рудна богатства;",{"$f":"SUMIF('ПО КОРИСНИЦИМА'!$F$4:$F$2891,'По основ. нам.'!A74,'ПО КОРИСНИЦИМА'!$H$4:$H$2891)","v":0},0,{"$f":"SUMIF('ПО КОРИСНИЦИМА'!$F$4:$F$2891,'По основ. нам.'!A74,'ПО КОРИСНИЦИМА'!$I$4:$I$2891)","v":0},0,0]
[543,"Шуме и воде",{"$f":"SUMIF('ПО КОРИСНИЦИМА'!$F$4:$F$2891,'По основ. нам.'!A75,'ПО КОРИСНИЦИМА'!$H$4:$H$2891)","v":0},{"$f":"IFERROR(C75/$C$84,\"-\")","v":0},{"$f":"SUMIF('ПО КОРИСНИЦИМА'!$F$4:$F$2891,'По основ. нам.'!A75,'ПО КОРИСНИЦИМА'!$I$4:$I$2891)","v":0},0,0]
[550,"Неф. Имов. која се фин. из сред. за реализ. нип-а",{"$f":"SUM(C77)","v":0},0,{"$f":"SUM(E77)","v":0},{"$f":"C76+E76","v":0},0]
[551,"Неф. имовина која се фин. из сред. за реализ. нип-а",{"$f":"SUMIF('ПО КОРИСНИЦИМА'!$F$4:$F$2891,'По основ. нам.'!A77,'ПО КОРИСНИЦИМА'!$H$4:$H$2891)","v":0},0,{"$f":"SUMIF('ПО КОРИСНИЦИМА'!$F$4:$F$2891,'По основ. нам.'!A77,'ПО КОРИСНИЦИМА'!$I$4:$I$2891)","v":0},{"$f":"C77+E77","v":0},0]
["610","ОТПЛАТА ГЛАВНИЦЕ ",{"$f":"SUM(C79:C81)","v":13000000},6.3841374809273889E-3,{"$f":"SUM(E79:E81)","v":70000000},83000000,3.6071273359408953]
["611","Отплата главнице домаћим кредиторима",13000000,6.3841374809273889E-3,70000000,83000000,3.6071273359408953]
["612","Отплата главнице страним банкама",{"$f":"SUMIF('ПО КОРИСНИЦИМА'!$F$4:$F$2891,'По основ. нам.'!A80,'ПО КОРИСНИЦИМА'!$H$4:$H$2891)","v":0},0,{"$f":"SUMIF('ПО КОРИСНИЦИМА'!$F$4:$F$2891,'По основ. нам.'!A80,'ПО КОРИСНИЦИМА'!$I$4:$I$2891)","v":0},null,0]
["613","Отплата дуга по гаранцијама",{"$f":"SUMIF('ПО КОРИСНИЦИМА'!$F$4:$F$2891,'По основ. нам.'!A81,'ПО КОРИСНИЦИМА'!$H$4:$H$2891)","v":0},0,{"$f":"SUMIF('ПО КОРИСНИЦИМА'!$F$4:$F$2891,'По основ. нам.'!A81,'ПО КОРИСНИЦИМА'!$I$4:$I$2891)","v":0},null,0]
["620","Набавка финансијске имовине",{"$f":"SUMIF('ПО КОРИСНИЦИМА'!$F$4:$F$2891,'По основ. нам.'!A82,'ПО КОРИСНИЦИМА'!$H$4:$H$2891)","v":0},0,{"$f":"SUM(E83)","v":0},0,0]
["621","Набавка домаће фин. Имовине",{"$f":"SUMIF('ПО КОРИСНИЦИМА'!$F$4:$F$2891,'По основ. нам.'!A83,'ПО КОРИСНИЦИМА'!$H$4:$H$2891)","v":0},0,{"$f":"SUMIF('ПО КОРИСНИЦИМА'!$F$4:$F$2891,'По основ. нам.'!A83,'ПО КОРИСНИЦИМА'!$I$4:$I$2891)","v":0},0,0]
[null,"УКУПНИ ЈАВНИ РАСХОДИ ",{"$f":"C6+C13+C26+C31+C37+C44+C46+C53+C61+C67+C72+C78","v":2036297000},1,{"$f":"SUM(E6,E13,E20,E26,E31,E37,E46,E44,E53,E61,E67,E72,E76,E78,E82)","v":264703000},{"$f":"C84+E84","v":2301000000},100]
[null,null," ",null," "," "]

{"sheet":"ПО КОРИСНИЦИМА","index":3,"n_rows":2890,"n_cols":13,"rows_kept":2890,"cut":false,"hidden":false,"merged":[[0,12,0,21],[2,12,4,24],[6,12,9,24]]}
["Раздео","Глава","Програм-ска Класиф.","Функција","Позиција","Економ. Класиф.","Организациона класификација","Средства из буџета-извор 01","Средства из осталих извора","Укупна јавна средства",null,null,"Напомена: Укључивање опције за аутоматско обавештавање о грешкама у преузимању износа између буџетских класификација се врши тако што се за верзије од 2007 до најновијих , у оквиру Еxcel Options опције Trust center -Trust center settings- Мacro settings , укључите последњу опцију која вам је понуђема Enable all macros"]
[1,2,"3",4,5,6,7,8,9,10]
[1," ",null,null,null,null,"СКУПШТИНА ОПШТИНЕ",null,null,null,null,null,"Напомена 2: Опцијом \"Unhide\" и опцијом  \"Hide\"  бирате потребна конта и изворе финансирања, морају се поштовати правила назива тј униформност уноса за сумарне износе код свих буџетских класификација . Уколико је нпр уместо \"Функција 110:\" написано \"Функција 110 :\" или \"Свега за функцију 110:\" програм неће преузети износ у табели функционалне класификације. "]
[null,null,"2101",null,null,null,"ПРОГРАМ 16: ПОЛИТИЧКИ СИСТЕМ ЛОКАЛНЕ САМОУПРАВЕ"]
[null,null,"2101-0001",null,null,null,"ПА: Функционисање скупштине"]
[null,null,null,110,null,null,"Извршни и законодавни органи, финансијски и фискални послови"]
[null,null,null,null,1,411,"Плате, додаци и накнаде запослених (зараде)",3967000,null,{"$f":"H7","v":3967000},null,null,"Напомена 3: За расходе који се финансирају из осталих извора и који се приказују у тој колони, нису унете аутоматске суме  те је потребно да корисник сам изврши сумирања у тој колони."]
[null,null,null,null,2,412,"Социјални доприноси на терет послодавца",661000,null,{"$f":"H8","v":661000}]
[null,null,null,null,3,413,"Накнаде у натури",50000,null,50000]
[null,null,null,null,4,414,"Социјална давања запосленима",350000,null,350000]
[null,null,null,null,5,415,"Накнаде трошкова за запослене",80000,null,80000]
[null,null,null,null,6,421,"Стални трошкови",12000,null,12000]
[null,null,null,null,7,422,"Трошкови путовања",50000,null,50000]
[null,null,null,null,8,423,"Услуге по уговору - накнаде за одборнике, репрезентација, дан општине, угоститељске услуге",12000000,null,12000000]
[null,null,null,null,9,425,"Текуће поправке и одржавање",100000,null,100000]
[null,null,null,null,10,426,"Материјал",700000,null,700000]
[null,null,null,null,null,431,"Амортизација некретнина и опреме",null,null,0]
[null,null,null,null,null,432,"Амортизација култивисане имовине",null,null,0]
[null,null,null,null,null,433,"Употреба драгоцености",null,null,0]
[null,null,null,null,null,434,"Употреба природне имовине",null,null,0]
[null,null,null,null,null,435,"Амортизација нематеријалне имовине",null,null,0]
[null,null,null,null,null,441,"Отплата домаћих камата",null,null,0]
[null,null,null,null,null,442,"Отплата страних камата",null,null,0]
[null,null,null,null,null,443,"Отплата камата по гаранцијама",null,null,0]
[null,null,null,null,null,444,"Пратећи трошкови задуживања",null,null,0]
[null,null,null,null,null,4511,"Текуће субвенције јавним нефинансијским предузећима и организацијама                                                                ",null,null,0]
[null,null,null,null,null,4512,"Капиталне субвенције јавним нефинансијским предузећима и организацијама                                                                ",null,null,0]
[null,null,null,null,null,452,"Субвенције приватним финансијским институцијама",null,null,0]
[null,null,null,null,null,453,"Субвенције јавним финансијским институцијама",null,null,0]
[null,null,null,null,null,454,"Субвенције приватним предузећима",null,null,0]
[null,null,null,null,null,461,"Донације страним владама",null,null,0]
[null,null,null,null,null,462,"Донације и дотације међународним организацијама",null,null,0]
[null,null,null,null,null,4631,"Текући трансфери осталим нивоима власти",null,null,0]
[null,null,null,null,null,4632,"Капитални трансфери осталим нивоима власти",null,null,0]
[null,null,null,null,null,464,"Дотације организацијама обавезног социјалног осигурања",null,null,0]
[null,null,null,null,null,465,"Остале донације, дотације и трансфери",null,null,0]
[null,null,null,null,11,481,"Дотације невладиним организацијама-средства за финансирање редовног рада политичких странки",750000,null,750000]
[null,null,null,null,12,482,"Порези, обавезне таксе, казне и пенали",10000,null,10000]
[null,null,null,null,null,482,"Порези, обавезне таксе, казне и пенали",null,null,{"$f":"SUM(H39:I39)","v":0}]
[null,null,null,null,null,483,"Новчане казне и пенали по решењу судова",null,null,0]
[null,null,null,null,null,484,"Накнада штете за повреде или штету насталу услед елементарних непогода или других природних узрока",null,null,0]
[null,null,null,null,null,485,"Накнада штете за повреде или штету нанету од стране државних органа",null,null,0]
[null,null,null,null,null,489,"Расходи који се финансирају из средстава за реализацију националног инвестиционог плана",null,null,0]
[null,null,null,null,null,494,"Административни трансфери из буџета - Текући расходи",null,null,0]
[null,null,null,null,null,495,"Административни трансфери из буџета - Издаци за нефинансијску имовину",null,null,0]
[null,null,null,null,null,496,"Административни трансфери из буџета - Издаци за отплату главнице и набавку финансијске имовине",null,null,0]
[null,null,null,null,null,499,"Административни трансфери из буџета - Средства резерве",null,null,0]
[null,null,null,null,null,511,"Зграде и грађевински објекти",null,null,0]
[null,null,null,null,null,512,"Машине и опрема",null,null,0]
[null,null,null,null,null,513,"Остале некретнине и опрема",null,null,0]
[null,null,null,null,null,514,"Култивисана имовина",null,null,0]
[null,null,null,null,null,515,"Нематеријална имовина",null,null,0]
[null,null,null,null,null,521,"Робне резерве",null,null,0]
[null,null,null,null,null,522,"Залихе производње",null,null,0]
[null,null,null,null,null,523,"Залихе робе за даљу продају",null,null,0]
[null,null,null,null,null,531,"Драгоцености",null,null,0]
[null,null,null,null,null,541,"Земљиште",null,null,0]
[null,null,null,null,null,542,"Рудна богатства",null,null,0]
[null,null,null,null,null,543,"Шуме и воде",null,null,0]
[null,null,null,null,null,551,"Нефинансијска имовина која се финансира из средстава за реализацију националног инвестиционог плана",null,null,0]
[null,null,null,null,null,611,"Отплата главнице домаћим кредиторима",null,null,0]
[null,null,null,null,null,620,"Набавка финансијске имовине",null,null,0]
[null,null,null,null,null,null,"Извори финансирања за ПА: 2101-0001"]
[null,null,null,null,null,null,"01 - Приходи буџета",{"$f":"H7+H8+H9+H10+H11+H12+H13+H14+H15+H16+H37+H38","v":18730000},null,{"$f":"J7+J8+J9+J10+J11+J12+J13+J14+J15+J16+J37+J38","v":18730000}]
[null,null,null,null,null,null,"Укупно за ПА: 2101-0001",{"$f":"H64","v":18730000},null,{"$f":"J64","v":18730000}]
[null,null,null,null,null,null,"Извор финансирања за функцију: 110"]
[null,null,null,null,null,null,"01 - Приходи буџета",{"$f":"H65","v":18730000},null,{"$f":"H67","v":18730000}]
[null,null,null,null,null,null,"Укупно за функцију: 110",{"$f":"H65","v":18730000},null,{"$f":"J65","v":18730000}]
[null,null,null,null,null,null,"Извори финансирања за раздео 1. - СКУПШТИНА ОПШТИНЕ:"]
[null,null,null,null,null,null,"01 - Приходи из буџета",{"$f":"H64","v":18730000},null,{"$f":"SUM(H70:I70)","v":18730000}]
[null,null,null,null,null,"02","Трансфери између корисника на истом нивоу",null,null,{"$f":"SUM(H71:I71)","v":0}]
[null,null,null,null,null,"03","Социјални доприноси",null,null,0]
[null,null,null,null,null,"04","Сопствени приходи буџетских корисника",null,null,0]
[null,null,null,null,null,"05","Донације од иностраних земаља",null,null,0]
[null,null,null,null,null,"06","Донације од међународних организација",null,null,0]
[null,null,null,null,null,"07","Трансфери од других нивоа власти",null,null,0]
[null,null,null,null,null,"08","Добровољни трансфери од физичких и правних лица",null,null,0]
[null,null,null,null,null,"09","Примања од продаје нефинансијске имовине",null,null,0]
[null,null,null,null,null,"10","Примања од домаћих задуживања",null,null,0]
[null,null,null,null,null,"11","Примања од иностраних задуживања",null,null,0]
[null,null,null,null,null,"12","Примања од отплате датих кредита и продаје финансијске имовине",null,null,0]
[null,null,null,null,null,"13","Нераспоређени вишак прихода из ранијих година",null,null,0]
[null,null,null,null,null,"14","Неутрошена средства од приватизације из претходних година",null,null,0]
[null,null,null,null,null,"15","Неутрошена средства донација из претходних година",null,null,0]
[null,null,null,null,null,"16","Родитељски динар за ваннаставне активности",null,null,0]
[null,null,null,null,null,null,"Укупно за раздео 1. - СКУПШТИНА ОПШТИНЕ",{"$f":"SUM(H70:H85)","v":18730000}," ",{"$f":"SUM(J70:J85)","v":18730000}]
[]
[2," ",null,null,null,null,"ПРЕДСЕДНИК ОПШТИНЕ "]
[null,null,"2101",null,null,null,"ПРОГРАМ 16 : ПОЛИТИЧКИ СИСТЕМ ЛОКАЛНЕ САМОУПРАВЕ"]
[null,null,"2101-0002",null,null,null,"ПА:Функционисање извршних органа"]
[null,null,null,111,null,null,"Извршни и законодавни органи"]
[null,null,null,null,13,411,"Плате, додаци и накнаде запослених (зараде)",3264000,null,{"$f":"H92+I92","v":3264000}]
[null,null,null,null,14,412,"Социјални доприноси на терет послодавца",544000,null,{"$f":"H93+I93","v":544000}]
[null,null,null,null,null,413,"Накнаде у натури",null,null,0]
[null,null,null,null,15,413,"Накнада у натури",50000,null,50000]
[null,null,null,null,16,414,"Социјална давања запосленима",200000,null,200000]
[null,null,null,null,null,415,"Накнаде трошкова за запослене",null,null,0]
[null,null,null,null,null,416,"Награде запосленима и остали посебни расходи",null,null,0]
[null,null,null,null,null,417,"Посланички додатак",null,null,0]
[null,null,null,null,null,418,"Судијски додатак.",null,null,0]
[null,null,null,null,17,415,"Накнада трошкова за запослене - превоз",5000,null,5000]
[null,null,null,null,18,416,"Награде запосленима и остали посебни расходи - јубиларне награде",120000,null,{"$f":"H102","v":120000}]
[null,null,null,null,19,421,"Стални трошкови",10000,null,10000]
[null,null,null,null,20,422,"Трошкови путовања",250000,125000,375000]
[null,null,null,null,21,423,"Услуге по уговору",4500000,125000,4625000]
[null,null,null,null,null,424,"Специјализоване услуге",null,null,0]
[null,null,null,null,22,425,"Текуће поправке и одржавање",100000,null,100000]
[null,null,null,null,23,426,"Материјал",1300000,null,1300000]
[null,null,null,null,null,431,"Амортизација некретнина и опреме",null,null,0]
[null,null,null,null,null,432,"Амортизација култивисане имовине",null,null,0]
[null,null,null,null,null,433,"Употреба драгоцености",null,null,0]
[null,null,null,null,null,434,"Употреба природне имовине",null,null,0]
[null,null,null,null,null,435,"Амортизација нематеријалне имовине",null,null,0]
[null,null,null,null,null,441,"Отплата домаћих камата",null,null,0]
[null,null,null,null,null,442,"Отплата страних камата",null,null,0]
[null,null,null,null,null,443,"Отплата камата по гаранцијама",null,null,0]
[null,null,null,null,null,444,"Пратећи трошкови задуживања",null,null,0]
[null,null,null,null,null,4511,"Текуће субвенције јавним нефинансијским предузећима и организацијама                                                                ",null,null,0]
[null,null,null,null,null,4512,"Капиталне субвенције јавним нефинансијским предузећима и организацијама                                                                ",null,null,0]
[null,null,null,null,null,452,"Субвенције приватним финансијским институцијама",null,null,0]
[null,null,null,null,null,453,"Субвенције јавним финансијским институцијама",null,null,0]
[null,null,null,null,null,454,"Субвенције приватним предузећима",null,null,0]
[null,null,null,null,null,461,"Донације страним владама",null,null,0]
[null,null,null,null,null,462,"Донације и дотације међународним организацијама",null,null,0]
[null,null,null,null,null,4631,"Текући трансфери осталим нивоима власти",null,null,0]
[null,null,null,null,null,4632,"Капитални трансфери осталим нивоима власти",null,null,0]
[null,null,null,null,null,464,"Дотације организацијама обавезног социјалног осигурања",null,null,0]
[null,null,null,null,null,465,"Остале донације, дотације и трансфери",null,null,0]
[null,null,null,null,null,472,"Накнаде за социјалну заштиту из буџета",null,null,0]
[null,null,null,null,null,481,"Дотације невладиним организацијама",null,null,0]
[null,null,null,null,null,482,"Порези, обавезне таксе, казне и пенали",null,null,0]
[null,null,null,null,null,483,"Новчане казне и пенали по решењу судова",null,null,0]
[null,null,null,null,null,484,"Накнада штете за повреде или штету насталу услед елементарних непогода или других природних узрока",null,null,0]
[null,null,null,null,null,485,"Накнада штете за повреде или штету нанету од стране државних органа",null,null,0]
[null,null,null,null,null,489,"Расходи који се финансирају из средстава за реализацију националног инвестиционог плана",null,null,0]
[null,null,null,null,null,494,"Административни трансфери из буџета - Текући расходи",null,null,0]
[null,null,null,null,null,495,"Административни трансфери из буџета - Издаци за нефинансијску имовину",null,null,0]
[null,null,null,null,null,496,"Административни трансфери из буџета - Издаци за отплату главнице и набавку финансијске имовине",null,null,0]
[null,null,null,null,null,499,"Административни трансфери из буџета - Средства резерве",null,null,0]
[null,null,null,null,null,511,"Зграде и грађевински објекти",null,null,0]
[null,null,null,null,null,512,"Машине и опрема",null,null,0]
[null,null,null,null,null,513,"Остале некретнине и опрема",null,null,0]
[null,null,null,null,null,514,"Култивисана имовина",null,null,0]
[null,null,null,null,null,515,"Нематеријална имовина",null,null,0]
[null,null,null,null,null,521,"Робне резерве",null,null,0]
[null,null,null,null,null,522,"Залихе производње",null,null,0]
[null,null,null,null,null,523,"Залихе робе за даљу продају",null,null,0]
[null,null,null,null,null,531,"Драгоцености",null,null,0]
[null,null,null,null,null,541,"Земљиште",null,null,0]
[null,null,null,null,null,542,"Рудна богатства",null,null,0]
[null,null,null,null,null,543,"Шуме и воде",null,null,0]
[null,null,null,null,null,551,"Нефинансијска имовина која се финансира из средстава за реализацију националног инвестиционог плана",null,null,0]
[null,null,null,null,null,611,"Отплата главнице домаћим кредиторима",null,null,0]
[null,null,null,null,24,482,"Порези, обавезне таксе, казне и пенали",10000,null,10000]
[null,null,null,null,null,null,"Извор финансирања за ПА: 2101-0002"]
[null,null,null,null,null,null,"01 - Приходи из буџета",{"$f":"H92+H93+H95+H96+H101+H102+H103+H104+H105+H107+H108+H154","v":10353000},null,{"$f":"H156","v":10353000}]
[null,null,null,null,null,null,"Трансфери између корисника на истом нивоу",null,null,{"$f":"SUM(H157:I157)","v":0}]
[null,null,null,null,null,null,"Социјални доприноси",null,null,0]
[null,null,null,null,null,null,"Сопствени приходи буџетских корисника",null,null,0]
[null,null,null,null,null,null,"Донације од иностраних земаља",null,null,0]
[null,null,null,null,null,null,"Донације од међународних организација",null,null,0]
[null,null,null,null,null,null,"Трансфери од других нивоа власти",null,null,0]
[null,null,null,null,null,null,"Добровољни трансфери од физичких и правних лица",null,null,0]
[null,null,null,null,null,null,"Примања од продаје нефинансијске имовине",null,null,0]
[null,null,null,null,null,null,"Примања од домаћих задуживања",null,null,0]
[null,null,null,null,null,null,"Примања од иностраних задуживања",null,null,0]
[null,null,null,null,null,null,"Примања од отплате датих кредита и продаје финансијске имовине",null,null,0]
[null,null,null,null,null,null,"Нераспоређени вишак прихода из ранијих година",null,null,0]
[null,null,null,null,null,null,"Неутрошена средства од приватизације из претходних година",null,null,0]
[null,null,null,null,null,null,"Неутрошена средства донација из претходних година",null,null,0]
[null,null,null,null,null,null,"Родитељски динар за ваннаставне активности",null,null,0]
[null,null,null,null,null,null,"06 - Из средстава донације",null,250000,{"$f":"I172","v":250000}]
[null,null,null,null,null,null,"Укупно за ПА: 2101-0002",{"$f":"H156","v":10353000},{"$f":"I172","v":250000},{"$f":"J92+J93+J95+J96+J101+J102+J103+J104+J105+J107+J108+J154","v":10603000}]
[null,null,null,null,null,null,"Извор финансирања за раздео 2.  - ПРЕДСЕДНИК ОПШТИНЕ"]
[null,null,null,null,null,null,"01 -Приходи из буџета",{"$f":"H192","v":10353000},null,{"$f":"SUM(H175:I175)","v":10353000}]
[null,null,null,null,null,"02","Трансфери између корисника на истом нивоу",null,null,{"$f":"SUM(H176:I176)","v":0}]
[null,null,null,null,null,"03","Социјални доприноси",null,null,0]
[null,null,null,null,null,"04","Сопствени приходи буџетских корисника",null,null,0]
[null,null,null,null,null,"05","Донације од иностраних земаља",null,null,0]
[null,null,null,null,null,"06","Донације од међународних организација",null,null,0]
[null,null,null,null,null,"07","Трансфери од других нивоа власти",null,null,0]
[null,null,null,null,null,"08","Добровољни трансфери од физичких и правних лица",null,null,0]
[null,null,null,null,null,"09","Примања од продаје нефинансијске имовине",null,null,0]
[null,null,null,null,null,"10","Примања од домаћих задуживања",null,null,0]
[null,null,null,null,null,"11","Примања од иностраних задуживања",null,null,0]
[null,null,null,null,null,"12","Примања од отплате датих кредита и продаје финансијске имовине",null,null,0]
[null,null,null,null,null,"13","Нераспоређени вишак прихода из ранијих година",null,null,0]
[null,null,null,null,null,"14","Неутрошена средства од приватизације из претходних година",null,null,0]
[null,null,null,null,null,"15","Неутрошена средства донација из претходних година",null,null,0]
[null,null,null,null,null,"16","Родитељски динар за ваннаставне активности",null,null,0]
[null,null,null,null,null,null,"06 - Из средстава донације",null,{"$f":"I172","v":250000},{"$f":"I191","v":250000}]
[null,null,null,null,null,null,"Укупно за раздео 2. - ПРЕДСЕДНИК ОПШТИНЕ",{"$f":"H173","v":10353000},{"$f":"I191","v":250000},{"$f":"J173","v":10603000}]
[]
[3," ",null,null,null,null,"ОПШТИНСКО ВЕЋЕ"]
[null,null,"2101",null,null,null,"ПРОГРАМ 16: ПОЛИТИЧКИ СИСТЕМ ЛОКАЛНЕ САМОУПРАВЕ"]
[null,null,"2101-0002",null,null,null,"ПА: Функционисање извршних органа"]
[null,null,null,111,null,null,"Извршни и законодавни органи"]
[null,null,null,null,25,411,"Плате, додаци и накнаде запослених (зараде)",880000,null,{"$f":"H198","v":880000}]
[null,null,null,null,26,412,"Социјални доприноси на терет послодавца",147000,null,{"$f":"H199","v":147000}]
[null,null,null,null,"27",414,"Социјална давања запосленима",70000,null,{"$f":"H200","v":70000}]
[null,null,null,null,"28",415,"Накнада трошкова за запослене - превоз",81000,null,81000]
[null,null,null,null,29,423,"Услуге по уговору - накнада члановима општинског већа, репрезентација",2200000,null,{"$f":"H202","v":2200000}]
[null,null,null,null,30,426,"Материјал",179000,null,{"$f":"H203+I203","v":179000}]
[null,null,null,null,null,null,"Извори финансирања за ПА: 2101-0002"]
[null,null,null,null,null,null,"01 - Приходи буџета",{"$f":"H198+H199+H200+H201+H202+H203","v":3557000},null,{"$f":"J198+J199+J200+J201+J202+J203","v":3557000}]
[null,null,null,null,null,null,"Укупно за ПА: 2101-0002",{"$f":"H205","v":3557000},null,{"$f":"J205","v":3557000}]
[null,null,null,null,null,null,"Извор финансирања за раздео -3 - ОПШТИНСКО ВЕЋЕ"]
[null,null,null,null,null,null,"01 - Приходи буџета",{"$f":"H205","v":3557000},null,{"$f":"J205","v":3557000}]
[null,null,null,null,null,null,"Укупно за раздео- 3 - ОПШТИНСКО ВЕЋЕ",{"$f":"H208","v":3557000},null,{"$f":"J208","v":3557000}]
[null,null,null,null,null,null,"Извор финансирања за функцију: 111"]
[null,null,null,null,null,null,"01 - Приходи буџета",{"$f":"H192+H209","v":13910000},null,{"$f":"J192+J209","v":14160000}]
[null,null,null,null,null,null,"Укупно за функцију: 111",{"$f":"H211","v":13910000},null,{"$f":"J211","v":14160000}]
[]
[4," ",null,null,null,null,"ОПШТИНСКО  ПРАВОБРАНИЛАШТВО"]
[null,null,"0602",null,null,null,"ПРОГРАМ 15 - ЛОКАЛНА САМОУПРАВА"]
[null,null,"0602-0004",null,null,null,"Општинско  правобранилаштво"]
[null,null,null,330,null,null,"Судови"]
[null,null,null,null,31,411,"Плате, додаци и накнаде запослених (зараде)",1960000,null,{"$f":"H218+I218","v":1960000}]
[null,null,null,null,32,412,"Социјални доприноси на терет послодавца",327000,null,{"$f":"H219+I219","v":327000}]
[null,null,null,null,33,413,"Накнаде у натури",20000,null,{"$f":"H220","v":20000}]
[null,null,null,null,34,414,"Социјална давања запосленима",210000,null,210000]
[null,null,null,null,35,415,"Накнаде трошкова за запослене - превоз",75000,null,75000]
[null,null,null,null,null,415,"Накнаде трошкова за запослене",null,null,0]
[null,null,null,null,null,416,"Награде запосленима и остали посебни расходи",null,null,0]
[null,null,null,null,null,417,"Посланички додатак",null,null,0]
[null,null,null,null,null,418,"Судијски додатак.",null,null,0]
[null,null,null,null,36,421,"Стални трошкови",5000,null,5000]
[null,null,null,null,37,422,"Трошкови путовања",30000,null,30000]
[null,null,null,null,38,423,"Услуге по уговору",290000,null,290000]
[null,null,null,null,39,424,"Специјализоване услуге",100000,null,100000]
[null,null,null,null,40,425,"Текуће поправке и одржавање",50000,null,50000]
[null,null,null,null,41,426,"Материјал",250000,null,250000]
[null,null,null,null,null,431,"Амортизација некретнина и опреме",null,null,0]
[null,null,null,null,null,432,"Амортизација култивисане имовине",null,null,0]
[null,null,null,null,null,433,"Употреба драгоцености",null,null,0]
[null,null,null,null,null,434,"Употреба природне имовине",null,null,0]
[null,null,null,null,null,435,"Амортизација нематеријалне имовине",null,null,0]
[null,null,null,null,null,441,"Отплата домаћих камата",null,null,0]
[null,null,null,null,null,442,"Отплата страних камата",null,null,0]
[null,null,null,null,null,443,"Отплата камата по гаранцијама",null,null,0]
[null,null,null,null,null,444,"Пратећи трошкови задуживања",null,null,0]
[null,null,null,null,null,4511,"Текуће субвенције јавним нефинансијским предузећима и организацијама                                                                ",null,null,0]
[null,null,null,null,null,4512,"Капиталне субвенције јавним нефинансијским предузећима и организацијама                                                                ",null,null,0]
[null,null,null,null,null,452,"Субвенције приватним финансијским институцијама",null,null,0]
[null,null,null,null,null,453,"Субвенције јавним финансијским институцијама",null,null,0]
[null,null,null,null,null,454,"Субвенције приватним предузећима",null,null,0]
[null,null,null,null,null,461,"Донације страним владама",null,null,0]
[null,null,null,null,null,462,"Донације и дотације међународним организацијама",null,null,0]
[null,null,null,null,null,4631,"Текући трансфери осталим нивоима власти",null,null,0]
[null,null,null,null,null,4632,"Капитални трансфери осталим нивоима власти",null,null,0]
[null,null,null,null,null,464,"Дотације организацијама обавезног социјалног осигурања",null,null,0]
[null,null,null,null,null,465,"Остале донације, дотације и трансфери",null,null,0]
[null,null,null,null,42,482,"Порези, обавезне таксе, казне и пенали",10000,null,10000]
[null,null,null,null,null,482,"Порези, обавезне таксе, казне и пенали",null,null,0]
[null,null,null,null,null,483,"Новчане казне и пенали по решењу судова",null,null,0]
[null,null,null,null,null,484,"Накнада штете за повреде или штету насталу услед елементарних непогода или других природних узрока",null,null,0]
[null,null,null,null,null,485,"Накнада штете за повреде или штету нанету од стране државних органа",null,null,0]
[null,null,null,null,null,489,"Расходи који се финансирају из средстава за реализацију националног инвестиционог плана",null,null,0]
[null,null,null,null,null,494,"Административни трансфери из буџета - Текући расходи",null,null,0]
[null,null,null,null,null,495,"Административни трансфери из буџета - Издаци за нефинансијску имовину",null,null,0]
[null,null,null,null,null,496,"Административни трансфери из буџета - Издаци за отплату главнице и набавку финансијске имовине",null,null,0]
[null,null,null,null,null,499,"Административни трансфери из буџета - Средства резерве",null,null,0]
[null,null,null,null,null,511,"Зграде и грађевински објекти",null,null,0]
[null,null,null,null,null,512,"Машине и опрема",null,null,0]
[null,null,null,null,null,513,"Остале некретнине и опрема",null,null,0]
[null,null,null,null,null,514,"Култивисана имовина",null,null,0]
[null,null,null,null,null,515,"Нематеријална имовина",null,null,0]
[null,null,null,null,null,521,"Робне резерве",null,null,0]
[null,null,null,null,null,522,"Залихе производње",null,null,0]
[null,null,null,null,null,523,"Залихе робе за даљу продају",null,null,0]
[null,null,null,null,null,531,"Драгоцености",null,null,0]
[null,null,null,null,null,541,"Земљиште",null,null,0]
[null,null,null,null,null,542,"Рудна богатства",null,null,0]
[null,null,null,null,null,543,"Шуме и воде",null,null,0]
[null,null,null,null,null,551,"Нефинансијска имовина која се финансира из средстава за реализацију националног инвестиционог плана",null,null,0]
[null,null,null,null,null,null,"Извор финансирања за ПА: 0602-0004"]
[null,null,null,null,null,null,"01 - Приходи из буџета",{"$f":"H218+H219+H220+H221+H222+H227+H228+H229+H230+H231+H232+H253","v":3327000},null,{"$f":"J218+J219+J220+J221+J222+J227+J228+J229+J230+J231+J232+J253","v":3327000}]
[null,null,null,null,null,null,"Укупно за ПА: 0602-0004",{"$f":"H277","v":3327000},null,{"$f":"J277","v":3327000}]
[null,null,null,null,null,null,"Извори финансирања за функцију 330:"]
[null,null,null,null,null,null,"01 - Приходи из буџета",{"$f":"H218+H219+H220+H221+H222+H227+H228+H229+H230+H231+H232+H253","v":3327000},null,{"$f":"H280","v":3327000}]
[null,null,null,null,null,"02","Трансфери између корисника на истом нивоу",null,null,{"$f":"SUM(H281:I281)","v":0}]
[null,null,null,null,null,"03","Социјални доприноси",null,null,0]
[null,null,null,null,null,"04","Сопствени приходи буџетских корисника",null,null,0]
[null,null,null,null,null,"05","Донације од иностраних земаља",null,null,0]
[null,null,null,null,null,"06","Донације од међународних организација",null,null,0]
[null,null,null,null,null,"07","Трансфери од других нивоа власти",null,null,0]
[null,null,null,null,null,"08","Добровољни трансфери од физичких и правних лица",null,null,0]
[null,null,null,null,null,"09","Примања од продаје нефинансијске имовине",null,null,0]
[null,null,null,null,null,"10","Примања од домаћих задуживања",null,null,0]
[null,null,null,null,null,"11","Примања од иностраних задуживања",null,null,0]
[null,null,null,null,null,"12","Примања од отплате датих кредита и продаје финансијске имовине",null,null,0]
[null,null,null,null,null,"13","Нераспоређени вишак прихода из ранијих година",null,null,0]
[null,null,null,null,null,"14","Неутрошена средства од приватизације из претходних година",null,null,0]
[null,null,null,null,null,"15","Неутрошена средства донација из претходних година",null,null,0]
[null,null,null,null,null,"16","Родитељски динар за ваннаставне активности",null,null,0]
[null,null,null,null,null,null,"Укупно за функција 330:",{"$f":"H280","v":3327000},null,{"$f":"SUM(J280:J295)","v":3327000}]
[null,null,null,null,null,null,"Извори финансирања за  раздео 4."]
[null,null,null,null,null,null,"01 - Приходи из буџета",{"$f":"H280","v":3327000},null,{"$f":"SUM(H298:I298)","v":3327000}]
[null,null,null,null,null,"02","Трансфери између корисника на истом нивоу",null,null,{"$f":"SUM(H299:I299)","v":0}]
[null,null,null,null,null,"03","Социјални доприноси",null,null,0]
[null,null,null,null,null,"04","Сопствени приходи буџетских корисника",null,null,0]
[null,null,null,null,null,"05","Донације од иностраних земаља",null,null,0]
[null,null,null,null,null,"06","Донације од међународних организација",null,null,0]
[null,null,null,null,null,"07","Трансфери од других нивоа власти",null,null,0]
[null,null,null,null,null,"08","Добровољни трансфери од физичких и правних лица",null,null,0]
[null,null,null,null,null,"09","Примања од продаје нефинансијске имовине",null,null,0]
[null,null,null,null,null,"10","Примања од домаћих задуживања",null,null,0]
[null,null,null,null,null,"11","Примања од иностраних задуживања",null,null,0]
[null,null,null,null,null,"12","Примања од отплате датих кредита и продаје финансијске имовине",null,null,0]
[null,null,null,null,null,"13","Нераспоређени вишак прихода из ранијих година",null,null,0]
[null,null,null,null,null,"14","Неутрошена средства од приватизације из претходних година",null,null,0]
[null,null,null,null,null,null,"Укупно за   раздео- 4-ОПШТИНСКИ ПРАВОБРАНИЛАЦ",{"$f":"SUM(H298:H311)","v":3327000},null,{"$f":"SUM(J298:J311)","v":3327000}]
[]
[5,"5.00",null,null,null,null,"ОПШТИНСКА УПРАВА"]
[null,null,"0602",null,null,null,"ПРОГРАМ 15: ЛОКАЛНА САМОУПРАВА"]
[null,null,"0602-0001",null,null,null,"ПА: Функционисање локалне самоуправе и градских општина"]
[null,null,null,130,null,null,"Опште јавне услуге"]
[null,null,null,null,62,411,"Плате, додаци и накнаде запослених (зараде)",60390000,null,{"$f":"H318+I318","v":60390000}]
[null,null,null,null,63,412,"Социјални доприноси на терет послодавца",10055000,null,{"$f":"H319+I319","v":10055000}]
[null,null,null,null,64,413,"Накнаде у натури",750000,null,750000]
[null,null,null,null,65,414,"Социјална давања запосленима-исплата боловања, солидарних помоћи",8000000,null,8000000]
[null,null,null,null,66,415,"Накнаде трошкова за запослене",2900000,null,2900000]
[null,null,null,null,67,416,"Награде запосленима и остали посебни расходи - јубиларне награде",900000,null,900000]
[null,null,null,null,null,417,"Посланички додатак",null,null,0]
[null,null,null,null,null,418,"Судијски додатак.",null,null,0]
[null,null,null,null,68,421,"Стални трошкови",28000000,null,{"$f":"H326+I326","v":28000000}]
[null,null,null,null,69,422,"Трошкови путовања",300000,null,300000]
[null,null,null,null,70,423,"Услуге по уговору",27000000,87600,27087600]
[null,null,null,null,71,424,"Специјализоване услуге",500000,null,500000]
[null,null,null,null,72,425,"Текуће поправке и одржавање",4000000,null,4000000]
[null,null,null,null,73,426,"Материјал",7500000,null,7500000]
[null,null,null,null,null,431,"Амортизација некретнина и опреме",null,null,0]
[null,null,null,null,null,432,"Амортизација култивисане имовине",null,null,0]
[null,null,null,null,null,433,"Употреба драгоцености",null,null,0]
[null,null,null,null,null,434,"Употреба природне имовине",null,null,0]
[null,null,null,null,null,435,"Амортизација нематеријалне имовине",null,null,0]
[null,null,null,null,null,441,"Отплата домаћих камата",null,null,0]
[null,null,null,null,null,442,"Отплата страних камата",null,null,0]
[null,null,null,null,null,443,"Отплата камата по гаранцијама",null,null,0]
[null,null,null,null,null,444,"Пратећи трошкови задуживања",null,null,0]
[null,null,null,null,null,4511,"Текуће субвенције јавним нефинансијским предузећима и организацијама                                                                ",null,null,0]
[null,null,null,null,null,4512,"Капиталне субвенције јавним нефинансијским предузећима и организацијама                                                                ",null,null,0]
[null,null,null,null,null,452,"Субвенције приватним финансијским институцијама",null,null,0]
[null,null,null,null,null,453,"Субвенције јавним финансијским институцијама",null,null,0]
[null,null,null,null,null,454,"Субвенције приватним предузећима",null,null,0]
[null,null,null,null,null,461,"Донације страним владама",null,null,0]
[null,null,null,null,null,462,"Донације и дотације међународним организацијама",null,null,0]
[null,null,null,null,null,4631,"Текући трансфери осталим нивоима власти",null,null,0]
[null,null,null,null,null,4632,"Капитални трансфери осталим нивоима власти",null,null,0]
[null,null,null,null,null,464,"Дотације организацијама обавезног социјалног осигурања",null,null,0]
[null,null,null,null,null,465,"Остале донације, дотације и трансфери",null,null,0]
[null,null,null,null,null,472,"Накнаде за социјалну заштиту из буџета",null,null,0]
[null,null,null,null,null,481,"Дотације невладиним организацијама",null,null,0]
[null,null,null,null,74,482,"Порези, обавезне таксе, казне и пенали",1203400,null,1203400]
[null,null,null,null,75,483,"Новчане казне и пенали по решењу судова",4000000," ",{"$f":"H355","v":4000000}]
[null,null,null,null,null,484,"Накнада штете за повреде или штету насталу услед елементарних непогода или других природних узрока",null,null,0]
[null,null,null,null,null,485,"Накнада штете за повреде или штету нанету од стране државних органа",null,null,0]
[null,null,null,null,null,489,"Расходи који се финансирају из средстава за реализацију националног инвестиционог плана",null,null,0]
[null,null,null,null,null,494,"Административни трансфери из буџета - Текући расходи",null,null,0]
[null,null,null,null,null,495,"Административни трансфери из буџета - Издаци за нефинансијску имовину",null,null,0]
[null,null,null,null,null,496,"Административни трансфери из буџета - Издаци за отплату главнице и набавку финансијске имовине",null,null,0]
[null,null,null,null,76,484,"Накнада штете настале услед елементарних непогода",2000000,null,2000000]
[null,null,null,null,null,511,"Зграде и грађевински објекти",null,null,0]
[null,null,null,null,77,485,"Накнада штете за повреду или штету нанету од стране државних органа",10075000,null,10075000]
[null,null,null,null,78,511,"Зграде и грађевински објекти - капитално одржавање пословних просторија",2000000,null,2000000]
[null,null,null,null,79,512,"Машине и опрема ",8000000,500000,8500000]
[null,null,null,null,null,513,"Остале некретнине и опрема",null,null,0]
[null,null,null,null,null,514,"Култивисана имовина",null,null,0]
[null,null,null,null,null,515,"Нематеријална имовина",null,null,0]
[null,null,null,null,null,521,"Робне резерве",null,null,0]
[null,null,null,null,null,522,"Залихе производње",null,null,0]
[null,null,null,null,null,523,"Залихе робе за даљу продају",null,null,0]
[null,null,null,null,null,531,"Драгоцености",null,null,0]
[null,null,null,null,null,541,"Земљиште",null,null,0]
[null,null,null,null,null,542,"Рудна богатства",null,null,{"$f":"H375+I375","v":0}]
[null,null,null,null,null,543,"Шуме и воде",null,null,0]
[null,null,null,null,null,551,"Нефинансијска имовина која се финансира из средстава за реализацију националног инвестиционог плана",null,null,0]
[null,null,null,null,null,611,"Отплата главнице домаћим кредиторима",null,null,0]
[null,null,null,null,null,620,"Набавка финансијске имовине",null,null,0]
[null,null,null,null,80,515,"Нематеријална имовина ",1000000,700000,1700000]
[null,null,null,null,null,null,"Извор финансирања за ПА: 0602-0001"]
[null,null,null,null,null,null,"01 - Приходи из буџета",{"$f":"H318+H319+H320+H321+H322+H323+H326+H327+H328+H329+H330+H331+H354+H355+H362+H364+H365+H366+H380","v":178573400},null,{"$f":"H382","v":178573400}]
[null,null,null,null,null,null,"13 - Из средстава суфицита",null,337600,{"$f":"I383","v":337600}]
[null,null,null,null,null,null,"15 - Неутрошена средства донација из ранијих година",null,950000,{"$f":"I384","v":950000}]
[null,null,null,null,null,null,"Укупно за ПА: 0602-0001",{"$f":"H382","v":178573400},{"$f":"I328+I366+I380","v":1287600},{"$f":"J318+J319+J320+J321+J322+J323+J326+J327+J328+J329+J330+J331+J354+J355+J362+J364+J365+J366+J380","v":179861000}]
[null,null,null,null,null,null,"Извори финансирања за функцију 130 - ОПШТИНСКА УПРАВА"]
[null,null,null,null,null,null,"01 - Приходи из буџета",{"$f":"H318+H319+H320+H321+H322+H323+H326+H327+H328+H329+H330+H331+H354+H355+H362+H364+H365+H366+H380","v":178573400},null,{"$f":"H387+I387","v":178573400}]
[null,null,null,null,null,null,"13 - Из средстава суфицита",null,337600,{"$f":"I388","v":337600}]
[null,null,null,null,null,null,"15 - Неутрошена средства донација из ранијих година",null,950000,{"$f":"I389","v":950000}]
[null,null,null,null,null,null,"Укупно за функција: 130 - ОПШТИНСКА УПРАВА",{"$f":"H387","v":178573400},{"$f":"I326+I328+I366+I380","v":1287600},{"$f":"SUM(H390:I390)","v":179861000}]
[]
[5,null,null,null,null,null,"НАКНАДА ЗА СОЦИЈАЛНУ ЗАШТИТУ ИЗ БУЏЕТА"]
[null,null,"0901",null,null,null,"ПРОГРАМ 11: СОЦИЈАЛНА И ДЕЧЈА ЗАШТИТА"]
[null,null,"0901-0001",null,null,null,"ПА: Једнократне помоћи и други облици помоћи"]
[null,null,null,"020",null,null,"Старост"]
[null,null,null,null,43,472,"Накнада за услуге превоза пензионера и социјално угрожених категорија становништва (инвалида)",2000000,null,{"$f":"H396","v":2000000}]
[null,null,null,null,null,null,"Извори финансирања за ПА: 0901-0001"]
[null,null,null,null,null,null,"01 - Приходи из буџета",{"$f":"H396","v":2000000},null,{"$f":"J396","v":2000000}]
[null,null,null,null,null,null,"Укупно за ПА: 0901-0001",{"$f":"H398","v":2000000},null,{"$f":"J398","v":2000000}]
[]
[null,null,"0901",null,null,null,"ПРОГРАМ 11: СОЦИЈАЛНА И ДЕЧЈА ЗАШТИТА"]
[null,null,"0901-4001",null,null,null,"Пројекат: Помоћ у кући"]
[null,null,null,"020",null,null,"Старост"]
[null,null,null,null,44,472,"Новчана накнада за реализацију пројекта \"Помоћ у кући\"- за стара лица-геренто домаћице",10200000,null,{"$f":"H404","v":10200000}]
[null,null,null,null,null,null,"Извори финансирања за пројекат: 0901-001"]
[null,null,null,null,null,null,"01 - Приходи из буџета",{"$f":"H404","v":10200000},null,{"$f":"J404","v":10200000}]
[null,null,null,null,null,null,"Укупно за пројекат: 0901-001",{"$f":"H406","v":10200000},null,{"$f":"J406","v":10200000}]
[null,null,null,null,null,null,"Извори финансирања за функцију: 020"]
[null,null,null,null,null,null,"01 - Приходи из буџета",{"$f":"H399+H407","v":12200000},null,{"$f":"J399+J407","v":12200000}]
[null,null,null,null,null,null,"Укупно за функцију: 020",{"$f":"H409","v":12200000},null,{"$f":"J399+J407","v":12200000}]
[]
[null,null,"0901",null,null,null,"ПРОГРАМ 11: СОЦИЈАЛНА И ДЕЧЈА ЗАШТИТА"]
[null,null,"0901-0002",null,null,null,"ПА: Породични и домски смештај, прихватилишта и друге врсте смештаја"]
[null,null,null,"040",null,null,"Породица и деца"]
[null,null,null,null,45,472,"Накнада за социјалну заштиту из буџета - смештај деце ометене у развоју у дом",700000,null,700000]
[null,null,null,null,null,null,"Извори финансирања за ПА: 0901-0002"]
[null,null,null,null,null,null,"01 - Приходи из буџета",{"$f":"H415","v":700000},null,{"$f":"H417","v":700000}]
[null,null,null,null,null,null,"Укупно за ПА: 0901-0002",{"$f":"H417","v":700000},null,{"$f":"J417","v":700000}]
[]
[null,null,"0901-0003",null,null,null,"ПА: Дневне услуге заједнице"]
[null,null,null,"040",null,null,"Породица и деца"]
[null,null,null,null,46,472,"Накнада за социјалну заштиту из буџета - Дневне услуге боравка деце ометене у развоју \"Зрачак\"",3000000,2500000,{"$f":"H422+I422","v":5500000}]
[null,null,null,null,47,481,"Дотације невладиним организацијама - по конкурсу",4000000,null,{"$f":"H423+I423","v":4000000}]
[null,null,null,null,null,null,"Извори финансирања за ПА: 0901-0003"]
[null,null,null,null,null,null,"01 - Приходи из буџета",{"$f":"H422+H423","v":7000000},null,{"$f":"J422+J423","v":9500000}]
[null,null,null,null,null,null,"07 - Приходи од Републике",null,{"$f":"I422","v":2500000}]
[null,null,null,null,null,null,"Укупно за ПА: 0901-0003",{"$f":"H425","v":7000000},{"$f":"I426","v":2500000},{"$f":"J425","v":9500000}]
[]
[null,null,"0901",null,null,null,"ПРОГРАМ 11: СОЦИЈАЛНА И ДЕЧЈА ЗАШТИТА"]
[null,null,"0901-0004",null,null,null,"ПА: Саветодавно-терапијске и социјално-едукативне услуге"]
[null,null,null,"040",null,null,"Породица и деца"," ",null," "]
[null,null,null,null,48,472,"Новчана накнада за СОС телефон за жртве насиља у породици",250000,null,{"$f":"H432","v":250000}]
[null,null,null,null,null,null,"Извори финансирања за ПА: 0901-0004"]
[null,null,null,null,null,null,"01 - Приходи из буџета",{"$f":"H432","v":250000},null,{"$f":"H434","v":250000}]
[null,null,null,null,null,null,"Укупно за ПА: 0901-0004",{"$f":"H434","v":250000},null,{"$f":"J434","v":250000}]
[]
[null,null,"0901",null,null,null,"ПРОГРАМ 11: СОЦИЈАЛНА И ДЕЧЈА ЗАШТИТА"]
[null,null,"0901-0006",null,null,null,"ПА: Подршка деци и породици са децом"]
[null,null,null,"040",null,null,"Породица и деца"]
[null,null,null,null,49,472,"Накнада за социјалну заштиту из буџета - лични пратилац за децу са посебним потребама (7.000.000) и помоћ у кући деци са сметњама у развоју (2.100.000)",9100000,null,{"$f":"H440+I440","v":9100000}]
[null,null,null,null,null,null,"Извори финансирања за ПА: 0901-0006"]
[null,null,null,null,null,null,"01 - Приходи из буџета",{"$f":"H440","v":9100000},null,{"$f":"H442","v":9100000}]
[null,null,null,null,null,null,"Укупно за ПА: 0901-0006",{"$f":"H442","v":9100000},null,{"$f":"J442","v":9100000}]
[]
[null,null,"0901",null,null,null,"ПРОГРАМ 11: СОЦИЈАЛНА И ДЕЧЈА ЗАШТИТА"]
[null,null,"0901-0007",null,null,null,"ПА: Подршка рађању и родитељству"]
[null,null,null,"040",null,null," Породица и деца"," ",null," "]
[null,null,null,null,50,472,"Накнада за социјалну заштиту из буџета - прворођено, другорођено, трећерођено и свако наредно дете (19.000.000) и накнада за вантелесну оплодњу (1.500.000)",20500000,null,{"$f":"H448","v":20500000}]
[null,null,null,null,null,null,"Извори финансирања за ПА: 0901-0007"]
[null,null,null,null,null,null,"01 - Приходи из буџета",{"$f":"H448","v":20500000},null,{"$f":"H450","v":20500000}]
[null,null,null,null,null,null,"Укупно за ПА: 0901-0007",{"$f":"H450","v":20500000}," ",{"$f":"J450","v":20500000}]
[null,null,null,null,null,null,"Извор финансирања за функцију: 040"]
[null,null,null,null,null,null,"01 - Приходи из буџета",{"$f":"H418+H427+H435+H443+H451","v":37550000},null,{"$f":"H453","v":37550000}]
[null,null,null,null,null,null,"07 - Приходи од Републике",null,{"$f":"I427","v":2500000},{"$f":"I454","v":2500000}]
[null,null,null,null,null,null,"Укупно за функцију: 040",{"$f":"H453","v":37550000},{"$f":"I454","v":2500000},{"$f":"J453+J454","v":40050000}]
[]
[null,null,"0901",null,null,null,"ПРОГРАМ 11: СОЦИЈАЛНА И ДЕЧЈА ЗАШТИТА"]
[null,null,"0901-0005",null,null,null,"ПА: Подршка реализацији програма Црвеног крста"]
[null,null,null,"070",null,null,"Социјална помоћ угроженом становништву"]
[null,null,null,null,52,"481","Дотације невладиним организацијама",3500000,null,{"$f":"H460","v":3500000}]
[null,null,null,null,null,null,"Извор финансирања за ПА: 0901-0005"]
[null,null,null,null,null,null,"01 - Приходи из буџета",{"$f":"H460","v":3500000},null,{"$f":"H462","v":3500000}]
[null,null,null,null,null,null,"Укупно за ПА: 0901-0005",{"$f":"H462","v":3500000},null,{"$f":"J462","v":3500000}]
[null,null,null,null,null,null,"Извор финансирања за функцију: 070"]
[null,null,null,null,null,null,"01 - Приходи из буџета",{"$f":"H462","v":3500000},null,{"$f":"J462","v":3500000}]
[null,null,null,null,null,null,"Укупно за функцију: 070",{"$f":"H462","v":3500000},null,{"$f":"J462","v":3500000}]
[]
[null,null,"0901",null,null,null,"ПРОГРАМ 11: СОЦИЈАЛНА И ДЕЧЈА ЗАШТИТА"]
[null,null,"0901-0001",null,null,null,"ПА: Једнократне помоћи и други облици помоћи"]
[null,null,null,"090",null,null,"Социјална заштита некласификована на другом месту"]
[null,null,null,null,53,463,"Једнократне помоћи по решењу  председника за социјално угрожене категорије становништва које се реализују преко центра за социјални рад",11000000,null,{"$f":"H471","v":11000000}]
[null,null,null,null,54,472,"Накнада трошкова за комуналне услуге социјално угроженим категоријама становништва, помоћ у лечењу",2500000,null,{"$f":"H472","v":2500000}]
[null,null,null,null,null,null,"Извор финансирања за ПА: 0901-0001"]
[null,null,null,null,null,null,"01 - Приходи из буџета",{"$f":"H471+H472","v":13500000},null,{"$f":"J471+J472","v":13500000}]
[null,null,null,null,null,null,"Свега за ПА: 0901-0001",{"$f":"H474","v":13500000},null,{"$f":"J474","v":13500000}]
[]
[null,null,"0901",null,null,null,"ПРОГРАМ 11: СОЦИЈАЛНА И ДЕЧЈА ЗАШТИТА"]
[null,null,"0901-4002",null,null,null,"Појекат:Бесплатна правна помоћ"]
[null,null,null,"090",null,null,"Социјална заштита некласификована на другом месту"]
[null,null,null,null,55,411,"Плате, додаци и накнаде запослених (зараде)",null,230000,{"$f":"I480","v":230000}]
[null,null,null,null,56,412,"Социјални доприноси на терет послодавца",null,39000,{"$f":"I481","v":39000}]
[null,null,null,null,57,421,"Стални трошкови",3000,5000,{"$f":"H482+I482","v":8000}]
[null,null,null,null,58,423,"Услуге по уговору",165000,277000,{"$f":"H483+I483","v":442000}]
[null,null,null,null,59,426,"Maтеријал",50000,35000,{"$f":"H484+I484","v":85000}]
[null,null,null,null,null,null,"Извор финансирања за пројекат: 0901-002"]
[null,null,null,null,null,null,"01 - Приходи из буџета",{"$f":"H482+H483+H484","v":218000},null,{"$f":"H486","v":218000}]
[null,null,null,null,null,null,"13 - Из средстава суфицита",null,40000,{"$f":"I487","v":40000}]
[null,null,null,null,null,null,"15 - Неутрошена средства донација из ранијих година",null,546000,{"$f":"I488","v":546000}]
[null,null,null,null,null,null,"Свега за пројекат: 0901-002",{"$f":"H486","v":218000},{"$f":"I480+I481+I482+I483+I484","v":586000},{"$f":"J480+J481+J482+J483+J484","v":804000}]
[]
[null,null,"0901-4003",null,null,null,"Пројекат: Канцеларија за сарадњу са женама \"Златиборка\""]
[null,null,null,"090",null,null,"Социјална заштита некласификована на другом месту"]
[null,null,null,null,60,421,"Стални трошкови",5000,138000,{"$f":"H493+I493","v":143000}]
[null,null,null,null,61,423,"Услуге по уговору",200000,1688000,{"$f":"H494+I494","v":1888000}]
[null,null,null,null,null,null,"Извор финансирања за пројекат: 0901-006"]
[null,null,null,null,null,null,"01 - Приходи из буџета",{"$f":"H493+H494","v":205000},null,{"$f":"H496","v":205000}]
[null,null,null,null,null,null,"06 - Приходи од донација",null,268000,{"$f":"I497","v":268000}]
[null,null,null,null,null,null,"15 - Неутрошена средства донација из ранијих година",null,1558000,215]
[null,null,null,null,null,null,"Свега за пројекат: 0901-006",{"$f":"H496","v":205000},{"$f":"I493+I494","v":1826000},{"$f":"J493+J494","v":2031000}]
[null,null,null,null,null,null,"Извор финансирања за функцију: 090"]
[null,null,null,null,null,null,"01 - Приходи из буџета",{"$f":"H489+H499","v":423000},null,{"$f":"H501","v":423000}]
[null,null,null,null,null,null,"06 - Приходи од донације",null,268000,{"$f":"I502","v":268000}]
[null,null,null,null,null,null,"13 - Из средстава суфицита",null,{"$f":"I487","v":40000}]
[null,null,null,null,null,null,"15 - Неутрошена средства донација из ранијих година",null,{"$f":"I488+I498","v":2104000},{"$f":"I504","v":2104000}]
[null,null,null,null,null,null,"Укупно за функцију: 090",{"$f":"H475+H489+H499","v":13923000},{"$f":"I489+I499","v":2412000},{"$f":"J475+J489+J499","v":16335000}]
[]
[5," ",null,null,null,null,"РЕЗЕРВА"]
[null,null,"0602",null,null,null,"ПРОГРАМ 15: ЛОКАЛНА САМОУПРАВА"]
[null,null,"0602-0009",null,null,null,"ПА: ТЕКУЋА БУЏЕТСКА РЕЗЕРВА"]
[null,null,null,160,null,null,"Опште јавне услуге некласификоване на другом месту"]
[null,null,null,null,81,499,"Средства текуће буџетске резерве",25000000,null,{"$f":"H511+I511","v":25000000}]
[null,null,null,null,null,null,"Извори финансирања за ПА: 0602-0009 "]
[null,null,null,null,null,null,"01 - Приходи из буџета",{"$f":"H509+H510+H511","v":25000000},null,{"$f":"J509+J510+J511","v":25000000}]
[null,null,null,null,null,null,"Укупно за ПА: 0602-0009",{"$f":"H513","v":25000000},null,{"$f":"SUM(H514:I514)","v":25000000}]
[]
[" "," ","0602",null,null,null,"ПРОГРАМ 15: ЛОКАЛНА САМОУПРАВА"]
[null,null,"0602-0010",null,null,null,"ПА: СТАЛНА БУЏЕТСКА РЕЗЕРВА"]
[null,null,null,160,null,null,"Опште јавне услуге некласификоване на другом месту "]
[null,null,null,null,82,499,"Средства сталне буџетске резерве",5000000,null,{"$f":"H519+I519","v":5000000}]
[null,null,null,null,null,null,"Извори финансирања за ПА: 0602-0010 "]
[null,null,null,null,null,null,"01 - Приходи из буџета",{"$f":"H517+H518+H519","v":5000000},null,{"$f":"J517+J518+J519","v":5000000}]
[null,null,null,null,null,null,"Укупно за ПА: 0602-0010",{"$f":"H521","v":5000000},null,{"$f":"SUM(H522:I522)","v":5000000}]
[null,null,null,null,null,null,"Извори финансирања за функцију: 160"]
[null,null,null,null,null,null,"01 - Приходи из буџета",{"$f":"H514+H522","v":30000000},null,{"$f":"H524","v":30000000}]
[null,null,null,null,null,null,"Укупно за функцију: 160",{"$f":"H524","v":30000000},null,{"$f":"J524","v":30000000}]
[]
[5," ",null," ",null,null,"ТРАНСАКЦИЈЕ ВЕЗАНЕ ЗА ЈАВНИ ДУГ"]
[null,null,"0602",null,null,null,"ПРОГРАМ 15: ЛОКАЛНА САМОУПРАВА"]
[" "," ","0602-0003",null,null,null,"ПА: Сервисирање јавног  дуга"]
[null,null,null,170,null,null,"Трансакције јавног дуга"]
[null,null,null,null,null,411,"Плате, додаци и накнаде запослених (зараде)",null,null,{"$f":"SUM(H531:I531)","v":0}]
[null,null,null,null,null,412,"Социјални доприноси на терет послодавца",null,null,{"$f":"SUM(H532:I532)","v":0}]
[null,null,null,null,null,413,"Накнаде у натури",null,null,0]
[null,null,null,null,null,414,"Социјална давања запосленима",null,null,0]
[null,null,null,null,null,415,"Накнаде трошкова за запослене",null,null,0]
[null,null,null,null,null,416,"Награде запосленима и остали посебни расходи",null,null,0]
[null,null,null,null,null,417,"Посланички додатак",null,null,0]
[null,null,null,null,null,418,"Судијски додатак.",null,null,0]
[null,null,null,null,null,421,"Стални трошкови",null,null,0]
[null,null,null,null,null,422,"Трошкови путовања",null,null,0]
[null,null,null,null,null,423,"Услуге по уговору",null,null,0]
[null,null,null,null,null,424,"Специјализоване услуге",null,null,0]
[null,null,null,null,null,425,"Текуће поправке и одржавање",null,null,0]
[null,null,null,null,null,426,"Материјал",null,null,0]
[null,null,null,null,null,431,"Амортизација некретнина и опреме",null,null,0]
[null,null,null,null,null,432,"Амортизација култивисане имовине",null,null,0]
[null,null,null,null,null,433,"Употреба драгоцености",null,null,0]
[null,null,null,null,null,434,"Употреба природне имовине",null,null,0]
[null,null,null,null,null,435,"Амортизација нематеријалне имовине",null,null,0]
[null,null,null,null,83,441,"Отплата домаћих камата",9700000,null,9700000]
[null,null,null,null,null,442,"Отплата страних камата",null,null,0]
[null,null,null,null,null,443,"Отплата камата по гаранцијама",null,null,0]
[null,null,null,null,null,444,"Пратећи трошкови задуживања",null,null,0]
[null,null,null,null,null,4511,"Текуће субвенције јавним нефинансијским предузећима и организацијама                                                                ",null,null,0]
[null,null,null,null,null,4512,"Капиталне субвенције јавним нефинансијским предузећима и организацијама                                                                ",null,null,0]
[null,null,null,null,null,452,"Субвенције приватним финансијским институцијама",null,null,0]
[null,null,null,null,null,453,"Субвенције јавним финансијским институцијама",null,null,0]
[null,null,null,null,null,454,"Субвенције приватним предузећима",null,null,0]
[null,null,null,null,null,461,"Донације страним владама",null,null,0]
[null,null,null,null,null,462,"Донације и дотације међународним организацијама",null,null,0]
[null,null,null,null,null,4631,"Текући трансфери осталим нивоима власти",null,null,0]
[null,null,null,null,null,4632,"Капитални трансфери осталим нивоима власти",null,null,0]
[null,null,null,null,null,464,"Дотације организацијама обавезног социјалног осигурања",null,null,0]
[null,null,null,null,null,465,"Остале донације, дотације и трансфери",null,null,0]
[null,null,null,null,null,472,"Накнаде за социјалну заштиту из буџета",null,null,0]
[null,null,null,null,null,481,"Дотације невладиним организацијама",null,null,0]
[null,null,null,null,null,482,"Порези, обавезне таксе, казне и пенали",null,null,0]
[null,null,null,null,null,483,"Новчане казне и пенали по решењу судова",null,null,0]
[null,null,null,null,null,484,"Накнада штете за повреде или штету насталу услед елементарних непогода или других природних узрока",null,null,0]
[null,null,null,null,null,485,"Накнада штете за повреде или штету нанету од стране државних органа",null,null,0]
[null,null,null,null,null,489,"Расходи који се финансирају из средстава за реализацију националног инвестиционог плана",null,null,0]
[null,null,null,null,null,494,"Административни трансфери из буџета - Текући расходи",null,null,0]
[null,null,null,null,null,495,"Административни трансфери из буџета - Издаци за нефинансијску имовину",null,null,0]
[null,null,null,null,null,496,"Административни трансфери из буџета - Издаци за отплату главнице и набавку финансијске имовине",null,null,0]
[null,null,null,null,null,499,"Административни трансфери из буџета - Средства резерве",null,null,0]
[null,null,null,null,null,511,"Зграде и грађевински објекти",null,null,0]
[null,null,null,null,null,512,"Машине и опрема",null,null,0]
[null,null,null,null,null,513,"Остале некретнине и опрема",null,null,0]
[null,null,null,null,null,514,"Култивисана имовина",null,null,0]
[null,null,null,null,null,515,"Нематеријална имовина",null,null,0]
[null,null,null,null,null,521,"Робне резерве",null,null,0]
[null,null,null,null,null,522,"Залихе производње",null,null,0]
[null,null,null,null,null,523,"Залихе робе за даљу продају",null,null,0]
[null,null,null,null,null,531,"Драгоцености",null,null,0]
[null,null,null,null,null,541,"Земљиште",null,null,0]
[null,null,null,null,null,542,"Рудна богатства",null,null,0]
[null,null,null,null,null,543,"Шуме и воде",null,null,0]
[null,null,null,null,null,551,"Нефинансијска имовина која се финансира из средстава за реализацију националног инвестиционог плана",null,null,0]
[null,null,null,null,84,444,"Пратећи трошкови задуживања",100000,null,100000]
[null,null,null,null,null,620,"Набавка финансијске имовине",null,null,0]
[null,null,null,null,85,611,"Отплата главнице домаћим кредиторима",13000000,70000000,{"$f":"H591+I591","v":83000000}]
[null,null,null,null,null,null,"Извор финансирања за ПА: 0602-0003"]
[null,null,null,null,null,null,"01 - Приходи из буџета",{"$f":"H550+H589+H591","v":22800000},null,{"$f":"H593","v":22800000}]
[null,null,null,null,null,null,"13 - Из средстава суфицита",null,{"$f":"I591","v":70000000},{"$f":"I594","v":70000000}]
[null,null,null,null,null,null,"Укупно за ПА: 0602-0003",{"$f":"H550+H589+H591","v":22800000},{"$f":"I594","v":70000000},{"$f":"J550+J589+J591","v":92800000}]
[null,null,null,null,null,null,"Извори финансирања за функцију: 170 "]
[null,null,null,null,null,null,"01 - Приходи из буџета",{"$f":"H550+H589+H591","v":22800000},null,{"$f":"H597","v":22800000}]
[null,null,null,null,null,"02","Трансфери између корисника на истом нивоу",null,null,{"$f":"SUM(H598:I598)","v":0}]
[null,null,null,null,null,"03","Социјални доприноси",null,null,0]
[null,null,null,null,null,"04","Сопствени приходи буџетских корисника",null,null,0]
[null,null,null,null,null,"05","Донације од иностраних земаља",null,null,0]
[null,null,null,null,null,"06","Донације од међународних организација",null,null,0]
[null,null,null,null,null,"07","Трансфери од других нивоа власти",null,null,0]
[null,null,null,null,null,"08","Добровољни трансфери од физичких и правних лица",null,null,0]
[null,null,null,null,null,"09","Примања од продаје нефинансијске имовине",null,null,0]
[null,null,null,null,null,"10","Примања од домаћих задуживања",null,null,0]
[null,null,null,null,null,"11","Примања од иностраних задуживања",null,null,0]
[null,null,null,null,null,"12","Примања од отплате датих кредита и продаје финансијске имовине",null,null,0]
[null,null,null,null,null,"13","Нераспоређени вишак прихода из ранијих година",null,null,0]
[null,null,null,null,null,"14","Неутрошена средства од приватизације из претходних година",null,null,0]
[null,null,null,null,null,"15","Неутрошена средства донација из претходних година",null,null,0]
[null,null,null,null,null,"16","Родитељски динар за ваннаставне активности",null,null,0]
[null,null,null,null,null,null,"13 - Из средстава суфицита",null,{"$f":"I591","v":70000000},{"$f":"I613","v":70000000}]
[null,null,null,null,null,null,"Укупно за функцију: 170 ",{"$f":"H550+H589+H591","v":22800000},{"$f":"I613","v":70000000},{"$f":"J550+J589+J591","v":92800000}]
[]
[5," ",null,null,null,null,"СЕКТОР ЗА ВАНРЕДНЕ СИТУАЦИЈЕ"]
[" "," ","0602",null,null,null,"ПРОГРАМ 15: ЛОКАЛНА САМОУПРАВА"]
[null,null,"0602-0014",null,null,null,"ПА: ВАНРЕДНЕ СИТУАЦИЈЕ"]
[null,null,null,320,null,null,"Услуге противпожарне заштите"]
[null,null,null,null,86,481,"Дотације невладиним организацијама-ватрогасно друштво",900000,null,{"$f":"H620","v":900000}]
[null,null,null,null,null,null,"Извори финансирања за ПА: 0602-0014"]
[null,null,null,null,null,null,"01 - Приходи из буџета",{"$f":"H620","v":900000},null,{"$f":"J620","v":900000}]
[null,null,null,null,null,null,"Укупно за ПА: 0602-0014",{"$f":"H622","v":900000},null,{"$f":"SUM(H623:I623)","v":900000}]
[null,null,null,null,null,null,"Извори финансирања за функцију: 320"]
[null,null,null,null,null,null,"01 - Приходи из буџета",{"$f":"H620","v":900000},null,{"$f":"J623","v":900000}]
[null,null,null,null,null,null,"Укупно за функцију: 320",{"$f":"H623","v":900000},null,{"$f":"J623","v":900000}]
[]
[" "," ","0602",null,null,null,"ПРОГРАМ 15: ЛОКАЛНА САМОУПРАВА"]
[null,null,"0602-0014",null,null,null,"ПА: ВАНРЕДНЕ СИТУАЦИЈЕ"]
[null,null,null,360,null,null,"Јавни ред и безбедност некласификована на другом месту"]
[null,null,null,null,87,423,"Услуге по уговору",300000,null,{"$f":"H631","v":300000}]
[null,null,null,null,88,424,"Специјализоване услуге",500000,null,{"$f":"H632","v":500000}]
[null,null,null,null,89,426,"Материјал",500000,null,500000]
[null,null,null,null,90,472,"Накнада за социјалну заштиту из буџета- социјално угрожене",300000,null,{"$f":"H634","v":300000}]
[null,null,null,null,91,484,"Накнада штете за повреде или штету насталу услед елементарних непо. ",50000,null,50000]
[null,null,null,null,92,485,"Накнада штете за повреде или штету насталу кривицом државних орга. ",50000,null,50000]
[null,null,null,null,93,512,"Машине и опрема",1000000,null,1000000]
[null,null,null,null,null,null,"Извори финансирања за ПА: 0602-0014"]
[null,null,null,null,null,null,"01 - Приходи из буџета",{"$f":"H631+H632+H633+H634+H635+H636+H637","v":2700000},null,{"$f":"J631+J632+J633+J634+J635+J636+J637","v":2700000}]
[null,null,null,null,null,null,"Укупно за ПА: 0602-0014",{"$f":"H639","v":2700000},null,{"$f":"SUM(H640:I640)","v":2700000}]
[]
[null,null,"0701",null,null,null,"ПРОГРАМ 7: ОРГАНИЗАЦИЈА САОБРАЋАЈА И САОБРАЋАЈНА ИНФРАСТРУКТУРА"]
[null,null,"0701-0005",null,null,null,"ПА: Унапређење безбедности саобраћаја"]
[null,null,null,360,null,null,"Јавни ред и безбедност некласификована на другом месту"]
[null,null,null,null,94,423,"Услуге по уговору",400000,null,{"$f":"H645","v":400000}]
[null,null,null,null,95,426,"Maтеријал",400000,null,{"$f":"H646","v":400000}]
[null,null,null,null,96,472,"Накнада из буџета за децу и породицу-набавка ауто-седишта ",1200000,null,{"$f":"H647","v":1200000}]
[null,null,null,null,97,511,"Зграде и грађевински објекти - изградња паркинга у Чајетини",3000000,null,{"$f":"H648","v":3000000}]
[null,null,null,null,98,512,"Машине и опрема",1000000,null,{"$f":"H649","v":1000000}]
[null,null,null,null,null,null,"Извори финансирања за ПА: 0701-0005"]
[null,null,null,null,null,null,"01 - Приходи из буџета",{"$f":"H645+H646+H647+H648+H649","v":6000000},null,{"$f":"J645+J646+J647+J648+J649","v":6000000}]
[null,null,null,null,null,null,"Укупно за ПА: 0701-0005",{"$f":"H651","v":6000000},null,{"$f":"J651","v":6000000}]
[null,null,null,null,null,null,"Извори финансирања за функцију: 360"]
[null,null,null,null,null,null,"01 - Приходи из буџета",{"$f":"H640+H652","v":8700000},null,{"$f":"J640+J652","v":8700000}]
[null,null,null,null,null,null,"Укупно за функцију: 360",{"$f":"H654","v":8700000},null,{"$f":"J654","v":8700000}]
[]
[null,null,"1501",null,null,null,"ПРОГРАМ 3: ЛОКАЛНИ ЕКОНОМСКИ РАЗВОЈ"]
[null,null,"1501-0003",null,null,null,"ПА: Подршка економском развоју и промоцији предузетништва"]
[null,null,null,411,null,null,"Општи економски и комерцијални послови"]
[null,null,null,null,99,423,"Услуге по уговору",1700000,null,{"$f":"H660","v":1700000}]
[null,null,null,null,100,451,"Текуће субвенције осталим јавним предузећима и организацијама-РРАЗ (1.500.000) и ПД за иновациону делатност \"Инвестициони бизнис центар\" (5.000.000)",6500000,null,{"$f":"H661","v":6500000}]
[null,null,null,null,101,481,"Дотације невладиним организацијама - СКГО",800000,null,{"$f":"H662","v":800000}]
[null,null,null,null,102,511,"Изградња привремених објеката на Златибору за издавање",13000000,null,{"$f":"H663","v":13000000}]
[null,null,null,null,null,null,"Извори финансирања за ПА: 1501-0003"]
[null,null,null,null,null,null,"01 - Приходи из буџета",{"$f":"H660+H661+H662+H663","v":22000000},null,{"$f":"J660+J661+J662+J663","v":22000000}]
[null,null,null,null,null,null,"Укупно за ПА: 1501-0003",{"$f":"H665","v":22000000},null,{"$f":"J665","v":22000000}]
[null,null,null,null,null,null,"Извори финансирања за функцију: 411"]
[null,null,null,null,null,null,"01 - Приходи из буџета",{"$f":"H666","v":22000000},null,{"$f":"J666","v":22000000}]
[null,null,null,null,null,null,"Укупно за функцију: 411",{"$f":"H666","v":22000000},null,{"$f":"J666","v":22000000}]
[]
[null,null,"1501-0002",null,null,null,"ПА: Мере активне политике запошљавања"]
[null,null,null,412,null,null,"Општи послови по питању рада"]
[null,null,null,null,103,464,"Текуће дотације националној служби за запошљавање",5000000,null,{"$f":"H673","v":5000000}]
[null,null,null,null,null,null,"Извори финансирања за ПА: 1501-0002"]
[null,null,null,null,null,null,"01 - Приходи из буџета",{"$f":"H673","v":5000000},null,{"$f":"SUM(H675:I675)","v":5000000}]
[null,null,null,null,null,null,"Укупно за ПА: 1501-0002",{"$f":"H675","v":5000000},null,{"$f":"J675","v":5000000}]
[null,null,null,null,null,null,"Извори финансирања за функцију: 412"]
[null,null,null,null,null,null,"01 - Приходи из буџета",{"$f":"H676","v":5000000},null,{"$f":"J676","v":5000000}]
[null,null,null,null,null,null,"Укупно за функцију: 412",{"$f":"H678","v":5000000},null,{"$f":"J678","v":5000000}]
[]
[null,null,null,null,null,null,"ПОЉОПРИВРЕДА, ШУМАРСТВО, ЛОВ И РИБОЛОВ"]
[null,null,"0101",null,null,null,"ПРОГРАМ 5: РАЗВОЈ ПОЉОПРИВРЕДЕ"]
[null,null,"0101-0001",null,null,null,"ПА: Подршка за спровођење пољопривредне политике у локалној заједници"]
[null,null,null,421,null,null," Пољопривреда"]
[null,null,null,null,104,"423","Услуге по уговору ",150000,null,{"$f":"H685","v":150000}]
[null,null,null,null,105,"424","Специјализоване услуге (накнада за противградну заштиту)",1200000,null,{"$f":"H686+I686","v":1200000}]
[null,null,null,null,106,451,"Текуће субвенције за наканду штете за угинућа домаћих животиња",4000000,null,{"$f":"H687","v":4000000}]
[null,null,null,null,107,481,"Дотације невладиним организацијама - пољопривредним удружењима на основу конкурса",1700000,null,{"$f":"H688","v":1700000}]
[null,null,null,null,null,null,"Извор финансирања за ПА: 0101-0001"]
[null,null,null,null,null,null,"01 - Приходи из буџета",{"$f":"H685+H686+H687+H688","v":7050000},null,{"$f":"H690+I690","v":7050000}]
[null,null,null,null,null,null,"Свега за функцију 0ПА: 0101-0001",{"$f":"H685+H686+H687+H688","v":7050000},null,{"$f":"J685+J686+J687+J688","v":7050000}]
[null,null,null,null,null,null,null," ",null," "]
[null,null,"0101-0002",null,null,null,"ПА: Мере подршке руралном развоју"]
[null,null,null,421,null,null,"Пољопривреда"]
[null,null,null,null,108,423,"Услуге по уговору",21500000,null,{"$f":"H695+I695","v":21500000}]
[null,null,null,null,109,451,"Текуће субвенције пољопривредним газдинствима, откуп млека",65500000,null,{"$f":"H696","v":65500000}]
[null,null,null,null,110,512,"Машине и опрема",6000000,null,6000000]
[null,null,null,null,null,null,"Извор финансирања за ПА: 0101-0002"]
[null,null,null,null,null,null,"01 - Приходи из буџета",{"$f":"H695+H696+H697","v":93000000},null,{"$f":"H699","v":93000000}]
[null,null,null,null,null,null,"Укупно за ПА:  0101-0002",{"$f":"H699","v":93000000},null,{"$f":"J699","v":93000000}]
[]
[null,null,"0101-5001",null,null,null,"Пројекат: Доградња млекаре и сушаре"]
[null,null,null,421,null,null,"Пољопривреда"]
[null,null,null,null,111,511,"Зграде и грађевински објекти",40000000,null,{"$f":"H704","v":40000000}]
[null,null,null,null,null,null,"Извор финансирања за Пројекат: 0101-5001"]
[null,null,null,null,null,null,"01 - Приходи из буџета",{"$f":"H704","v":40000000},null,{"$f":"J704","v":40000000}]
[null,null,null,null,null,null,"Укупно за Пројекат:  0101-5001",{"$f":"H706","v":40000000},null,{"$f":"J706","v":40000000}]
[null,null,null,null,null,null,"Извор финансирања  за функцију: 421"]
[null,null,null,null,null,null,"01 - Приходи из буџета",{"$f":"H690+H699+H706","v":140050000},null,{"$f":"H709","v":140050000}]
[null,null,null,null,null,null,"Укупно за функцију: 421",{"$f":"H709","v":140050000},null,{"$f":"J709","v":140050000}]
[]
[null,null,"1101",null,null,null,"ПРОГРАМ 1: ЛОКАЛНИ РАЗВОЈ И ПРОСТОРНО ПЛАНИРАЊЕ"]
[null,null,"1101-0001",null,null,null,"ПА:  Просторно и урбанистичко планирање"]
[null,null,null,443,null,null,"Изградња"]
[null,null,null,null,112,423,"Услуге по уговору - рад комисије за планове",4000000,null,{"$f":"H715+I715","v":4000000}]
[null,null,null,null,113,424,"Специјализоване услуге - геодетске услуге, снимање, укњижба, препарцелизација",9000000,null,{"$f":"H716+I716","v":9000000}]
[null,null,null,null,114,483,"Новчане казне и пенали по решењу судова",500000,null,{"$f":"H717","v":500000}]
[null,null,null,null,115,511,"Зграде и грађевински објекти - израда пројектне документације (плана детаљне и генералне регулације, пројекта за заштиту пијаће воде језера Рибница)",15000000,null,15000000]
[null,null,null,null,116,541,"Набавка земљишта",28360000,null,{"$f":"H719","v":28360000}]
[null,null,null,null,null,null,"Извор финансирања за ПА: 1101-0001"]
[null,null,null,null,null,null,"01 - Приходи из буџета",{"$f":"H715+H716+H717+H718+H719","v":56860000},null,{"$f":"H721","v":56860000}]
[null,null,null,null,null,null,"Укупно за ПА: 1101-0001  ",{"$f":"H721","v":56860000},null,{"$f":"J715+J716+J717+J718+J719","v":56860000}]
[null,null,null,null,null,null,"Извор финансирања за функцију:443"]
[null,null,null,null,null,null,"01 - Приходи из буџета",{"$f":"H722","v":56860000},null,{"$f":"H724","v":56860000}]
[null,null,null,null,null,null,"Укупно за функцију: 443 ",{"$f":"H722","v":56860000},null,{"$f":"J722","v":56860000}]
[]
[null,null,"0701",null,null,null,"ПРОГРАМ: 7 - ОРГАНИЗАЦИЈА САОБРАЋАЈА И  САОБРАЋАЈНА ИНФРАСТРУКТУРА"]
[null,null,"0701-0002 ",null,null,null,"ПА: Управљање и одржавање саобраћајне инфраструктуре"]
[null,null,null,451,null,null,"Друмски саобраћај"]
[null,null,null,null,117,425,"Текуће поправке и одржавање путева (70.000.000+3.500.000)",53500000,20000000,{"$f":"H730+I730","v":73500000}]
[null,null,null,null,118,511,"Зграде и грађевински објекти - изградња путева, мостова; (160.000.000+36.000.000)",146000000,50000000,{"$f":"SUM(H731:I731)","v":196000000}]
[null,null,null,null,null,null,"Извори финансирања за ПА: 0701-0002"]
[null,null,null,null,null,null,"01 - Приходи из буџета",{"$f":"H730+H731","v":199500000},null,{"$f":"SUM(H733:I733)","v":199500000}]
[null,null,null,null,null,null,"13 - Из средстава суфицита",null,70000000,{"$f":"I734","v":70000000}]
[null,null,null,null,null,null,"Укупно за ПА:0701-0002",{"$f":"H733","v":199500000},70000000,{"$f":"J730+J731","v":269500000}]
[]
[" "," ","0701-0004",null,null,null,"ПА: Јавни градски и приградски превоз"]
[null,null,null,451,null,null,"Друмски саобраћај"]
[null,null,null,null,119,423,"Услуге по уговору",3000000,null,{"$f":"H739","v":3000000}]
[null,null,null,null,null,null,"Извори финансирања за ПА: 0701-0004"]
[null,null,null,null,null,null,"01 - Приходи из буџета",{"$f":"H739","v":3000000},null,{"$f":"H741","v":3000000}]
[null,null,null,null,null,null,"Укупно за ПА: 0701-0004",{"$f":"H741","v":3000000},null,{"$f":"J741","v":3000000}]
[null,null,null,null,null,null,"Извори финансирања за Функцију 451:  "]
[null,null,null,null,null,null,"01 - Приходи из буџета",{"$f":"H735+H742","v":202500000},null,{"$f":"J733+J741","v":202500000}]
[null,null,null,null,null,null,"13 - Из средстава суфицита",null,{"$f":"I734","v":70000000},{"$f":"J734","v":70000000}]
[null,null,null,null,null,null,"Укупно за Функцију 451:  ",{"$f":"H744","v":202500000},{"$f":"I735","v":70000000},{"$f":"J735+J742","v":272500000}]
[]
[5," ","1502",null,null,null,"ПРОГРАМ 4: РАЗВОЈ ТУРИЗМА"]
[null,null,"1502-0002",null,null,null,"ПА: ПРОМОЦИЈА ТУРИСТИЧКЕ ПОНУДЕ"]
[null,null,null,473,null,null,"Туризам"]
[null,null,null,null,120,451,"Текуће  субвенције јавним нефинансијским предузећима - ЈП \"Gold Gondola Zlatibor\"-",21000000,null,{"$f":"H751","v":21000000}]
[null,null,null,null,121,481,"Дотације невладиним организацијама-расподела средстава по конкурсу туристичким удружењима",1700000,null,{"$f":"H752","v":1700000}]
[null,null,null,null,null,null,"Извори финансирања за ПА: 1502-0002"]
[null,null,null,null,null,null,"01 - Приходи из буџета",{"$f":"H751+H752","v":22700000},null,{"$f":"J751+J752","v":22700000}]
[null,null,null,null,null,null,"Укупно  за Пројекат: 2101-ПР001",{"$f":"H754","v":22700000},null,{"$f":"J754","v":22700000}]
[]
[null,null,"1502",null,null,null,"ПРОГРАМ 4: РАЗВОЈ ТУРИЗМА"]
[null,null,"1502-4001"," ",null,null,"Пројекат: Канцеларија за сарадњу са Руском федерацијом и Грчком"]
[null,null,null,473,null,null,"Туризам"]
[null,null,null,null,122,422,"Трошкови путовања",70000,null,{"$f":"H760","v":70000}]
[null,null,null,null,123,423,"Услуге по уговору",100000,null,{"$f":"H761","v":100000}]
[null,null,null,null,124,426,"Материјал",30000,null,{"$f":"H762","v":30000}]
[null,null,null,null,null,null,"Извори финансирања за Пројекат: 2101-ПР001"]
[null,null,null,null,null,null,"01 - Приходи буџета",{"$f":"H760+H761+H762","v":200000},null,{"$f":"SUM(H764:I764)","v":200000}]
[null,null,null,null,null,null,"Трансфери између корисника на истом нивоу",null,null,{"$f":"SUM(H765:I765)","v":0}]
[null,null,null,null,null,null,"Социјални доприноси",null,null,0]
[null,null,null,null,null,null,"Сопствени приходи буџетских корисника",null,null,0]
[null,null,null,null,null,null,"Донације од иностраних земаља",null,null,0]
[null,null,null,null,null,null,"Донације од међународних организација",null,null,0]
[null,null,null,null,null,null,"Трансфери од других нивоа власти",null,null,0]
[null,null,null,null,null,null,"Добровољни трансфери од физичких и правних лица",null,null,0]
[null,null,null,null,null,null,"Примања од продаје нефинансијске имовине",null,null,0]
[null,null,null,null,null,null,"Примања од домаћих задуживања",null,null,0]
[null,null,null,null,null,null,"Примања од иностраних задуживања",null,null,0]
[null,null,null,null,null,null,"Примања од отплате датих кредита и продаје финансијске имовине",null,null,0]
[null,null,null,null,null,null,"Нераспоређени вишак прихода из ранијих година",null,null,0]
[null,null,null,null,null,null,"Неутрошена средства од приватизације из претходних година",null,null,0]
[null,null,null,null,null,null,"Неутрошена средства донација из претходних година",null,null,0]
[null,null,null,null,null,null,"01 - Приходи из буџета",{"$f":"H760+H761+H762","v":200000},null,200000]
[null,null,null,null,null,null,"Укупно  за Пројекат: 2101-ПР001",{"$f":"H760+H761+H762","v":200000},null,{"$f":"J760+J761+J762","v":200000}]
[]
[null,null,"1502",null,null,null,"ПРОГРАМ 4: РАЗВОЈ ТУРИЗМА"]
[null,null,"1502-5002",null,null,null,"Пројекат: ИЗГРАДЊА ГОНДОЛЕ"]
[null,null,null,473,null,null,"Туризам"]
[null,null,null,null,125,423,"Услуге по уговору",100000,null,100000]
[null,null,null,null,126,511,"Зграде и грађевински објекти - изградња гондоле -10.000.000 и управне зграде - 20.000.000",30000000,null,{"$f":"H786","v":30000000}]
[null,null,null,null,null,null,"Извори финансирања за Пројекат: 1502-5002"]
[null,null,null,null,null,null,"01 - Приходи из буџета",{"$f":"H785+H786","v":30100000},null,{"$f":"SUM(H788:I788)","v":30100000}]
[null,null,null,null,null,"02","Трансфери између корисника на истом нивоу",null,null,{"$f":"SUM(H789:I789)","v":0}]
[null,null,null,null,null,"03","Социјални доприноси",null,null,0]
[null,null,null,null,null,"04","Сопствени приходи буџетских корисника",null,null,0]
[null,null,null,null,null,"05","Донације од иностраних земаља",null,null,0]
[null,null,null,null,null,"06","Донације од међународних организација",null,null,0]
[null,null,null,null,null,"07","Трансфери од других нивоа власти",null,null,0]
[null,null,null,null,null,"08","Добровољни трансфери од физичких и правних лица",null,null,0]
[null,null,null,null,null,"09","Примања од продаје нефинансијске имовине",null,null,0]
[null,null,null,null,null,"10","Примања од домаћих задуживања",null,null,0]
[null,null,null,null,null,"11","Примања од иностраних задуживања",null,null,0]
[null,null,null,null,null,"12","Примања од отплате датих кредита и продаје финансијске имовине",null,null,0]
[null,null,null,null,null,"13","Нераспоређени вишак прихода из ранијих година",null,null,0]
[null,null,null,null,null,"14","Неутрошена средства од приватизације из претходних година",null,null,0]
[null,null,null,null,null,"15","Неутрошена средства донација из претходних година",null,null,0]
[null,null,null,null,null,null,"01 - Приходи из буџета",{"$f":"H785+H786","v":30100000},null,30100000]
[null,null,null,null,null,null,"Свега за Пројекат: 1502-5002",{"$f":"H788","v":30100000},null,{"$f":"J788","v":30100000}]
[]
[null,null,"1502",null,null,null,"ПРОГРАМ 4: РАЗВОЈ ТУРИЗМА"]
[null,null,"1502-5003",null,null,null,"Пројекат: Уређење трга на Зларибору"]
[null,null,null,473,null,null,"Туризам"]
[null,null,null,null,127,511,"Зграде и грађевински објекти-уређење трга (37.000.000), изградња летње позорнице на тргу (17.000.000), изградња фонтане (83.000.000)",127000000,10000000,{"$f":"H809+I809","v":137000000}]
[null,null,null,null,null,null,"Извори финансирања за Пројекат: 1502-5003"]
[null,null,null,null,null,null,"01 - Приходи из буџета",{"$f":"H809","v":127000000},null,{"$f":"J809","v":137000000}]
[null,null,null,null,null,null,"13 - Из средстава суфицита",null,10000000]
[null,null,null,null,null,null,"Свега за Пројекат: 1502-5003",{"$f":"H811","v":127000000},{"$f":"I812","v":10000000},{"$f":"J811","v":137000000}]
[null,null,null,null,null,null,"Извори финансирања за функцију: 473"]
[null,null,null,null,null,null,"01 - Приходи из буџета",{"$f":"H755+H780+H804+H813","v":180000000},null,{"$f":"J755+J780+J804+J813","v":190000000}]
[null,null,null,null,null,null,"13 - Из средстава суфицита",null,10000000,10000000]
[null,null,null,null,null,null,"Укупно за функцију: 473",{"$f":"H815","v":180000000},10000000,{"$f":"SUM(H817:I817)","v":190000000}]
[]
[" ",null,null,null,null,"02","Трансфери између корисника на истом нивоу",null,null,{"$f":"SUM(H819:I819)","v":0}]
[null,null,null,null,null,"03","Социјални доприноси",null,null,0]
[null,null,null,null,null,"04","Сопствени приходи буџетских корисника",null,null,0]
[null,null,null,null,null,"05","Донације од иностраних земаља",null,null,0]
[null,null,null,null,null,"06","Донације од међународних организација",null,null,0]
[null,null,null,null,null,"07","Трансфери од других нивоа власти",null,null,0]
[null,null,null,null,null,"08","Добровољни трансфери од физичких и правних лица",null,null,0]
[null,null,null,null,null,"09","Примања од продаје нефинансијске имовине",null,null,0]
[null,null,null,null,null,"10","Примања од домаћих задуживања",null,null,0]
[null,null,null,null,null,"11","Примања од иностраних задуживања",null,null,0]
[null,null,null,null,null,"12","Примања од отплате датих кредита и продаје финансијске имовине",null,null,0]
[null,null,null,null,null,"13","Нераспоређени вишак прихода из ранијих година",null,null,0]
[null,null,null,null,null,"14","Неутрошена средства од приватизације из претходних година",null,null,0]
[null,null,null,null,null,"15","Неутрошена средства донација из претходних година",null,null,0]
[null,null,null,null,null,"16","Родитељски динар за ваннаставне активности",null,null,0]
[]
[]
[]
[]
[]
[]
[null,null,"1102",null,null,null,"ПРОГРАМ 2: КОМУНАЛНА ДЕЛАТНОСТ"]
[null,null,"1102-0003",null,null,null,"ПА: Одржавање чистоће на површинама јавне намене "]
[null,null,null,510,null,null,"Управљање отпадом"," "]
[null,null,null,null,128,421,"Стални трошкови - КЈП \"Златибор\"- изношење смећа по сеоским МЗ,  прикупљање кабастог отпада)",25000000,null,{"$f":"H843","v":25000000}]
[null,null,null,null,129,423,"Услуге по уговору - одржавање и уређење јавних површина (купљење папира, прање улица, поправка парковског мобилијара)",40000000,null,{"$f":"H844","v":40000000}]
[null,null,null,null,null,null,"Извори финансирања за ПА: 1102-0003"]
[null,null,null,null,null,null,"01 - Приходи из буџета",{"$f":"H843+H844+#REF!","v":{"$error":"#REF!"}},null,{"$f":"SUM(H846:I846)","v":{"$error":"#REF!"}}]
[null,null,null,null,null,"02","Трансфери између корисника на истом нивоу",null,null,{"$f":"SUM(H847:I847)","v":0}]
[null,null,null,null,null,"03","Социјални доприноси",null,null,0]
[null,null,null,null,null,"04","Сопствени приходи буџетских корисника",null,null,0]
[null,null,null,null,null,"05","Донације од иностраних земаља",null,null,0]
[null,null,null,null,null,"06","Донације од међународних организација",null,null,0]
[null,null,null,null,null,"07","Трансфери од других нивоа власти",null,null,0]
[null,null,null,null,null,"08","Добровољни трансфери од физичких и правних лица",null,null,0]
[null,null,null,null,null,"09","Примања од продаје нефинансијске имовине",null,null,0]
[null,null,null,null,null,"10","Примања од домаћих задуживања",null,null,0]
[null,null,null,null,null,"11","Примања од иностраних задуживања",null,null,0]
[null,null,null,null,null,"12","Примања од отплате датих кредита и продаје финансијске имовине",null,null,0]
[null,null,null,null,null,"13","Нераспоређени вишак прихода из ранијих година",null,null,0]
[null,null,null,null,null,"14","Неутрошена средства од приватизације из претходних година",null,null,0]
[null,null,null,null,null,"15","Неутрошена средства донација из претходних година",null,null,0]
[null,null,null,null,null,null,"01 - Приходи из буџета",{"$f":"H843+H844","v":65000000},null,65000000]
[null,null,null,null,null,null,"Укупно за ПА: 1102-0003",{"$f":"H861","v":65000000},null,{"$f":"J861","v":65000000}]
[]
[null,null,"1102-5001",null,null,null,"Пројекат: Изградња рециклажног дворишта \"Широка бара\" на Златибору"]
[null,null,null,510,null,null,"Управљање отпадом"]
[null,null,null,null,130,511,"Зграде и грађевински објекти - изградња рециклажног дворишта (пословног објекта са претоварном станицом - 50.000.000 и пратећим садржајем -12.000.000)",42000000,20000000,{"$f":"H866+I866","v":62000000}]
[null,null,null,null,null,null,"Извор финансирања за Пројекат: 1102-001"]
[null,null,null,null,null,null,"01 - Приходи буџета",{"$f":"H866","v":42000000},null,{"$f":"H868","v":42000000}]
[null,null,null,null,null,null,"13 - Из средстава суфицита",null,20000000,20000000]
[null,null,null,null,null,null,"Укупно за Пројекат: 1102-001",{"$f":"H868","v":42000000},{"$f":"I869","v":20000000},{"$f":"J868+J869","v":62000000}]
[null,null,null,null,null,null,"Извор финансирања за функцију: 510"]
[null,null,null,null,null,null,"01 - Приходи буџета",{"$f":"H862+H870","v":107000000},null,{"$f":"H872","v":107000000}]
[null,null,null,null,null,null,"13 - Из средстава суфицита",null,{"$f":"I870","v":20000000},{"$f":"I873","v":20000000}]
[null,null,null,null,null,null,"Укупно за функцију: 510",{"$f":"H872","v":107000000},{"$f":"I873","v":20000000},{"$f":"J862+J870","v":127000000}]
[]
[null,null,"1102-5002",null,null,null,"Пројекат: Изградња Постројења за пречишћавање отпадних вода"]
[null,null,null,520,null,null,"Упорављање отпадним водама"]
[null,null,null,null,131,511,"Зграде и грађевински објекти - изградња постројења",10000000,null,{"$f":"H878","v":10000000}]
[null,null,null,null,null,null,"Извори финансирања за пројекат : 1102-002"," ",null," "]
[null,null,null,null,null,null,"01 - Приходи из буџета",{"$f":"H878","v":10000000},null,{"$f":"SUM(H880:I880)","v":10000000}]
[null,null,null,null,null,null,"Укупно за пројекат: 1102-002",{"$f":"SUM(H880:H880)","v":10000000},null,{"$f":"SUM(J880:J880)","v":10000000}]
[null,null,null,null,null,null,"Извори финансирања за Функцију 520:"]
[null,null,null,null,null,null,"01 - Приходи из буџета",{"$f":"H881","v":10000000},null,{"$f":"SUM(H883:I883)","v":10000000}]
[null,null,null,null,null,null,"Укупно за Функцију 520:",{"$f":"H883","v":10000000},null,{"$f":"SUM(J883:J883)","v":10000000}]
[]
[null,null,"1102-0002"," ",null,null,"ПА: Одржавање јавних зелених површина"]
[null,null,null,540,null,null,"Заштита биљног и животињског света и крајолика"]
[null,null,null,null,132,"423","Услуге по уговору",100000,null,100000]
[null,null,null,null,133,"424","Специјализоване услуге - одржавање паркова и зелених површина  и постављање урбаног мобилијара, постављање заштитне подлоге у парковима - 41.000.000, партерно уређење споменика на Златибору - 2.400.000 ",28400000,15000000,{"$f":"H889+I889","v":43400000}]
[null,null,null,null,null,null,"Извори финансирања за ПА: 1102-0002"," ",null," "]
[null,null,null,null,null,null,"01 - Приходи из буџета",{"$f":"H888+H889","v":28500000},null,{"$f":"J888+J889","v":43500000}]
[null,null,null,null,null,"02","Трансфери између корисника на истом нивоу",null,null,{"$f":"SUM(H892:I892)","v":0}]
[null,null,null,null,null,"03","Социјални доприноси",null,null,0]
[null,null,null,null,null,"04","Сопствени приходи буџетских корисника",null,null,0]
[null,null,null,null,null,"05","Донације од иностраних земаља",null,null,0]
[null,null,null,null,null,"06","Донације од међународних организација",null,null,0]
[null,null,null,null,null,"07","Трансфери од других нивоа власти",null,null,0]
[null,null,null,null,null,"08","Добровољни трансфери од физичких и правних лица",null,null,0]
[null,null,null,null,null,"09","Примања од продаје нефинансијске имовине",null,null,0]
[null,null,null,null,null,"10","Примања од домаћих задуживања",null,null,0]
[null,null,null,null,null,"11","Примања од иностраних задуживања",null,null,0]
[null,null,null,null,null,"12","Примања од отплате датих кредита и продаје финансијске имовине",null,null,0]
[null,null,null,null,null,"13","Нераспоређени вишак прихода из ранијих година",null,null,0]
[null,null,null,null,null,"14","Неутрошена средства од приватизације из претходних година",null,null,0]
[null,null,null,null,null,"15","Неутрошена средства донација из претходних година",null,null,0]
[null,null,null,null,null,null,"01 - Приходи из буџета",{"$f":"H888+H889","v":28500000},null,28500000]
[null,null,null,null,null,null,"13 - Из средстава суфицита",null,15000000,{"$f":"I907","v":15000000}]
[null,null,null,null,null,null,"Укупно за ПА:1102-0002",{"$f":"H906","v":28500000},{"$f":"I907","v":15000000},{"$f":"J888+J889","v":43500000}]
[null,null,null,null,null,null,"Извори финансирања за функцију: 540"]
[null,null,null,null,null,null,"01 - Приходи из буџета",{"$f":"H906","v":28500000},null,{"$f":"H910","v":28500000}]
[null,null,null,null,null,null,"13 - Из средстава суфицита",null,{"$f":"I908","v":15000000},{"$f":"I911","v":15000000}]
[null,null,null,null,null,null,"Укупно за функцију: 540",{"$f":"H910","v":28500000},{"$f":"I911","v":15000000},{"$f":"J908","v":43500000}]
[]
[5,null,null,null,null,null,"ФОНД ЗА ЗАШТИТУ ЖИВОТНЕ СРЕДИНЕ"]
[null,null,"0401",null,null,null,"ПРОГРАМ 6: ЗАШТИТА ЖИВОТНЕ СРЕДИНЕ"]
[null,null,"0401-0001",null,null,null,"ПА: Управљање заштитом животне средине"]
[null,null,null,560,null,null,"Заштита животне средине , истраживање и развој"]
[null,null,null,null,134,"423","Услуге по уговору",100000,null,{"$f":"H918","v":100000}]
[null,null,null,null,135,424,"Специјализоване услуге ",1600000,null,{"$f":"H919","v":1600000}]
[null,null,null,null,136,426,"Материјал",50000,null,{"$f":"H920","v":50000}]
[null,null,null,null,null,null,"Извор финансирања за ПА: 0401-0001"]
[null,null,null,null,null,null,"01 - Приходи из буџета",{"$f":"H918+H919+H920","v":1750000},null,{"$f":"J918+J919+J920","v":1750000}]
[null,null,null,null,null,null,"Свега за ПА: 0401-0001",{"$f":"H922","v":1750000},null,{"$f":"J922","v":1750000}]
[null,null,null,null,null,null,"Извор финансирања за функцију: 560"]
[null,null,null,null,null,null,"01 - Приходи из буџета",{"$f":"H922","v":1750000},null,{"$f":"J922","v":1750000}]
[null,null,null,null,null,null,"Свега за функцију: 560",{"$f":"H925","v":1750000},null,{"$f":"J922","v":1750000}]
[]
[null,null,"1102",null,null,null,"ПРОГРАМ 2: КОМУНАЛНА ДЕЛАТНОСТ"]
[null,null,"1102-0003",null,null,null,"ПА: Одржавање чистоће на површинама јавне намене"]
[null,null,null,620,null,null,"Развој заједнице"]
[null,null,null,null,137,"423","Услуге по уговору -зимско и летње одржавање путева ",54000000,20000000,{"$f":"H931+I931","v":74000000}]
[null,null,null,null,138,426,"Материјал - набавка горива",3500000,null,{"$f":"H932","v":3500000}]
[null,null,null,null,null,null,"Извори финансирања за ПА: 1102-0003"," ",null," "]
[null,null,null,null,null,null,"01 - Приходи из буџета",{"$f":"H931+H932","v":57500000},null,{"$f":"H934","v":57500000}]
[null,null,null,null,null,null,"13 - Из средстава суфицита",null,{"$f":"I931","v":20000000},{"$f":"I935","v":20000000}]
[null,null,null,null,null,null,"Укупно  за ПА: 1102-0003",{"$f":"SUM(H934:H934)","v":57500000},{"$f":"I935","v":20000000},{"$f":"J931+J932","v":77500000}]
[]
[null,null,"1102-0004",null,null,null,"ПА: Зоохигијена"]
[null,null,null,620,null,null,"Развој заједнице"]
[null,null,null,null,139,"424","Специјализоване услуге - плаћање за смештај паса у азил",2500000,null,{"$f":"H940+I940","v":2500000}]
[null,null,null,null,140,"483","Новчане казне и пенали по решењу судова",250000,null,{"$f":"H941","v":250000}]
[null,null,null,null,141,"485","Накнада штете за уједе паса и мачака",2500000,null,{"$f":"H942","v":2500000}]
[null,null,null,null,null,null,"Извори финансирања за ПА: 1102-0004"," ",null," "]
[null,null,null,null,null,null,"01 - Приходи из буџета",{"$f":"H940+H941+H942","v":5250000},null,{"$f":"J940+J941+J942","v":5250000}]
[null,null,null,null,null,"02","Трансфери између корисника на истом нивоу",null,null,{"$f":"SUM(H945:I945)","v":0}]
[null,null,null,null,null,"03","Социјални доприноси",null,null,0]
[null,null,null,null,null,"04","Сопствени приходи буџетских корисника",null,null,0]
[null,null,null,null,null,"05","Донације од иностраних земаља",null,null,0]
[null,null,null,null,null,"06","Донације од међународних организација",null,null,0]
[null,null,null,null,null,"07","Трансфери од других нивоа власти",null,null,0]
[null,null,null,null,null,"08","Добровољни трансфери од физичких и правних лица",null,null,0]
[null,null,null,null,null,"09","Примања од продаје нефинансијске имовине",null,null,0]
[null,null,null,null,null,"10","Примања од домаћих задуживања",null,null,0]
[null,null,null,null,null,"11","Примања од иностраних задуживања",null,null,0]
[null,null,null,null,null,"12","Примања од отплате датих кредита и продаје финансијске имовине",null,null,0]
[null,null,null,null,null,"13","Нераспоређени вишак прихода из ранијих година",null,null,0]
[null,null,null,null,null,"14","Неутрошена средства од приватизације из претходних година",null,null,0]
[null,null,null,null,null,"15","Неутрошена средства донација из претходних година",null,null,0]
[null,null,null,null,null,null,"01 - Приходи из буџета",{"$f":"H940+H941+H942","v":5250000},null,5250000]
[null,null,null,null,null,null,"Укупно  за ПА: 1102-0004",{"$f":"H959","v":5250000},null,{"$f":"J959","v":5250000}]
[]
[null,null,"1102-0006",null,null,null,"ПА: Одржавање гробаља и погребне услуге"]
[null,null,null,620,null,null,"Развој заједнице"]
[null,null,null,null,142,423,"Услуге по уговору",100000,null,{"$f":"H964","v":100000}]
[null,null,null,null,143,424,"Специјализоване услуге",200000,null,{"$f":"H965","v":200000}]
[null,null,null,null,144,511,"Зграде и грађевински објекти",10377600,9622400,{"$f":"H966+I966","v":20000000}]
[null,null,null,null,null,null,"Извори финансирања за ПА: 1102-0006"]
[null,null,null,null,null,null,"01 - Приходи из буџета",{"$f":"H964+H965+H966","v":10677600},null,{"$f":"H968","v":10677600}]
[null,null,null,null,null,null,"13 - Из средстава суфицита",null,{"$f":"I966","v":9622400},{"$f":"I969","v":9622400}]
[null,null,null,null,null,null,"Укупно  за ПА: 1102-0006",{"$f":"H968","v":10677600},{"$f":"I969","v":9622400},{"$f":"H970+I970","v":20300000}]
[null,null,null,null,null,null,"Извори финансирања за функцију: 620"]
[null,null,null,null,null,null,"01 - Приходи из буџета",{"$f":"H936+H960+H970","v":73427600},null,{"$f":"J936+J960+J970","v":103050000}]
[null,null,null,null,null,null,"13 - Из средстава суфицита",null,{"$f":"I936+I970","v":29622400},{"$f":"I973","v":29622400}]
[null,null,null,null,null,null,"Укупно  за функцију: 620",{"$f":"H972","v":73427600},{"$f":"I973","v":29622400},{"$f":"J972","v":103050000}]
[null,null,"1102",null,null,null,"ПРОГРАМ 2: КОМУНАЛНА ДЕЛАТНОСТ"]
[]
[]
[]
[]
[]
[]
[]
[]
[]
[]
[]
[]
[]
[]
[]
[]
[]
[]
[]
[]
[]
[]
[]
[]
[]
[]
[]
[]
[]
[]
[]
[]
[]
[]
[]
[]
[null,null,"1102-0008",null,null,null,"ПА: Управљање и снадбевање водом за пиће"]
[null,null,null,630,null,null,"Водоснадбевање"]
[null,null,null,null,145,423,"Услуге по уговору",600000,null,{"$f":"H1014","v":600000}]
[null,null,null,null,140,425,"Одржавање примарне и секундарне  водоводне мреже ",1200000,null,{"$f":"H1015+I1015","v":1200000}]
[]
[]
[]
[]
[]
[]
[]
[]
[]
[]
[]
[]
[]
[]
[null,null,null,null,146,425,"Текуће поправке и одржавање - примарне и секундарне водоводне мреже и канализације",1200000,null,{"$f":"H1030","v":1200000}]
[null,null,null,null,147,511,"Изградња примарних  и секундарних  водовода и канализације- за пројектовање, реконструкцију и доградњу постројења за прераду вода и резервоара \"Врањевина\" - 100.000.000, уређење реке Обудовице (зацевљени део реке и фекална и кишна канализација) - 50.000.000",115000000,35000000,{"$f":"H1031+I1031","v":150000000}]
[null,null,null,null,null,null,"Извори финансирања за ПА: 1102-0008"," ",null," "]
[null,null,null,null,null,null,"01 - Приходи из буџета",{"$f":"H1014+H1015+H1031","v":116800000},null,{"$f":"SUM(H1033:I1033)","v":116800000}]
[null,null,null,null,null,"02","Трансфери између корисника на истом нивоу",null,null,{"$f":"SUM(H1034:I1034)","v":0}]
[null,null,null,null,null,"03","Социјални доприноси",null,null,0]
[null,null,null,null,null,"04","Сопствени приходи буџетских корисника",null,null,0]
[null,null,null,null,null,"05","Донације од иностраних земаља",null,null,0]
[null,null,null,null,null,"06","Донације од међународних организација",null,null,0]
[null,null,null,null,null,"07","Трансфери од других нивоа власти",null,null,0]
[null,null,null,null,null,"08","Добровољни трансфери од физичких и правних лица",null,null,0]
[null,null,null,null,null,"09","Примања од продаје нефинансијске имовине",null,null,0]
[null,null,null,null,null,"10","Примања од домаћих задуживања",null,null,0]
[null,null,null,null,null,"11","Примања од иностраних задуживања",null,null,0]
[null,null,null,null,null,"12","Примања од отплате датих кредита и продаје финансијске имовине",null,null,0]
[null,null,null,null,null,"13","Нераспоређени вишак прихода из ранијих година",null,null,0]
[null,null,null,null,null,"14","Неутрошена средства од приватизације из претходних година",null,null,0]
[null,null,null,null,null,"15","Неутрошена средства донација из претходних година",null,null,0]
[null,null,null,null,null,null,"01 - Приходи из буџета ",{"$f":"H1014+H1030+H1031","v":116800000},null,116800000]
[null,null,null,null,null,null,"13 - Из средстава суфицита",null,{"$f":"I1031","v":35000000},{"$f":"I1049","v":35000000}]
[null,null,null,null,null,null,"Укупно за ПА: 01102-0008",{"$f":"H1048","v":116800000},{"$f":"I1049","v":35000000},{"$f":"J1014+J1030+J1031","v":151800000}]
[]
[null,null,"1102-5003",null,null,null,"Пројекат: Изградња водовода \"Сушичко врело\""]
[null,null,null,630,null,null,"Водоснадбевање"]
[null,null,null,null,148,511,"Зграде и грађевински објекти - изградња водовода",80000000,null,{"$f":"H1054","v":80000000}]
[null,null,null,null,null,null,"Извори финансирања за пројекат 0601-005:"," ",null," "]
[null,null,null,null,null,null,"01 - Приходи из буџета ",{"$f":"H1054","v":80000000},null,{"$f":"SUM(H1056:I1056)","v":80000000}]
[null,null,null,null,null,"02","Трансфери између корисника на истом нивоу",null,null,{"$f":"SUM(H1057:I1057)","v":0}]
[null,null,null,null,null,"03","Социјални доприноси",null,null,0]
[null,null,null,null,null,"04","Сопствени приходи буџетских корисника",null,null,0]
[null,null,null,null,null,"05","Донације од иностраних земаља",null,null,0]
[null,null,null,null,null,"06","Донације од међународних организација",null,null,0]
[null,null,null,null,null,"07","Трансфери од других нивоа власти",null,null,0]
[null,null,null,null,null,"08","Добровољни трансфери од физичких и правних лица",null,null,0]
[null,null,null,null,null,"09","Примања од продаје нефинансијске имовине",null,null,0]
[null,null,null,null,null,"10","Примања од домаћих задуживања",null,null,0]
[null,null,null,null,null,"11","Примања од иностраних задуживања",null,null,0]
[null,null,null,null,null,"12","Примања од отплате датих кредита и продаје финансијске имовине",null,null,0]
[null,null,null,null,null,"13","Нераспоређени вишак прихода из ранијих година",null,null,0]
[null,null,null,null,null,"14","Неутрошена средства од приватизације из претходних година",null,null,0]
[null,null,null,null,null,"15","Неутрошена средства донација из претходних година",null,null,0]
[null,null,null,null,null,null,"01 - Приходи из буџета",{"$f":"H1054","v":80000000},null,80000000]
[null,null,null,null,null,null,"Укупно за пројекат: 1102-001",{"$f":"H1071","v":80000000},null,{"$f":"J1071","v":80000000}]
[null,null,null,null,null,null,"Извори финансирања за функцију: 630"]
[null,null,null,null,null,null,"01 - Приходи из буџета ",{"$f":"H1050+H1072","v":196800000},null,{"$f":"J1050+J1072","v":231800000}]
[null,null,null,null,null,null,"13 - Из средстава суфицита",null,{"$f":"I1050","v":35000000},{"$f":"I1075","v":35000000}]
[null,null,null,null,null,null,"Укупно за функцију: 630",{"$f":"H1074","v":196800000},{"$f":"I1075","v":35000000},{"$f":"J1074","v":231800000}]
[]
[" "," ",null,null,null,null,"ЈАВНА РАСВЕТА"]
[null,null,"1102",null,null,null,"ПРОГРАМ 2: КОМУНАЛНА ДЕЛАТНОСТ"]
[null,null,"1102-0001",null,null,null,"ПА: Управљање, одржавање јавним осветљењем"]
[null,null,null,640,null,null,"Улична расвета"]
[null,null,null,null,null,411,"Плате, додаци и накнаде запослених (зараде)",null,null,{"$f":"SUM(H1082:I1082)","v":0}]
[null,null,null,null,null,412,"Социјални доприноси на терет послодавца",null,null,{"$f":"SUM(H1083:I1083)","v":0}]
[null,null,null,null,null,413,"Накнаде у натури",null,null,0]
[null,null,null,null,null,414,"Социјална давања запосленима",null,null,0]
[null,null,null,null,null,415,"Накнаде трошкова за запослене",null,null,0]
[null,null,null,null,null,416,"Награде запосленима и остали посебни расходи",null,null,0]
[null,null,null,null,null,417,"Посланички додатак",null,null,0]
[null,null,null,640,null,null,"Улична расвета"]
[null,null,null,null,143,421,"Стални трошкови",27000000,null,27000000]
[null,null,null,null,null,422,"Трошкови путовања",null,null,0]
[null,null,null,null,null,423,"Услуге по уговору",null,null,0]
[null,null,null,null,149,421,"Стални трошкови",28000000,null,28000000]
[null,null,null,null,150,423,"Услуге по уговору -  измештање далековода и новогодишња расвета ",5500000,null,{"$f":"H1094","v":5500000}]
[null,null,null,null,145,425,"Текуће поправке и одржавање јавне расвете",4500000,null,4500000]
[null,null,null,null,null,431,"Амортизација некретнина и опреме",null,null,0]
[null,null,null,null,null,432,"Амортизација култивисане имовине",null,null,0]
[null,null,null,null,null,433,"Употреба драгоцености",null,null,0]
[null,null,null,null,null,434,"Употреба природне имовине",null,null,0]
[null,null,null,null,null,435,"Амортизација нематеријалне имовине",null,null,0]
[null,null,null,null,null,441,"Отплата домаћих камата",null,null,0]
[null,null,null,null,null,442,"Отплата страних камата",null,null,0]
[null,null,null,null,null,443,"Отплата камата по гаранцијама",null,null,0]
[null,null,null,null,null,444,"Пратећи трошкови задуживања",null,null,0]
[null,null,null,null,null,4511,"Текуће субвенције јавним нефинансијским предузећима и организацијама                                                                ",null,null,0]
[null,null,null,null,null,4512,"Капиталне субвенције јавним нефинансијским предузећима и организацијама                                                                ",null,null,0]
[null,null,null,null,null,452,"Субвенције приватним финансијским институцијама",null,null,0]
[null,null,null,null,null,453,"Субвенције јавним финансијским институцијама",null,null,0]
[null,null,null,null,null,454,"Субвенције приватним предузећима",null,null,0]
[null,null,null,null,null,461,"Донације страним владама",null,null,0]
[null,null,null,null,null,462,"Донације и дотације међународним организацијама",null,null,0]
[null,null,null,null,null,4631,"Текући трансфери осталим нивоима власти",null,null,0]
[null,null,null,null,null,4632,"Капитални трансфери осталим нивоима власти",null,null,0]
[null,null,null,null,null,464,"Дотације организацијама обавезног социјалног осигурања",null,null,0]
[null,null,null,null,null,465,"Остале донације, дотације и трансфери",null,null,0]
[null,null,null,null,null,472,"Накнаде за социјалну заштиту из буџета",null,null,0]
[null,null,null,null,null,481,"Дотације невладиним организацијама",null,null,0]
[null,null,null,null,null,482,"Порези, обавезне таксе, казне и пенали",null,null,0]
[null,null,null,null,null,483,"Новчане казне и пенали по решењу судова",null,null,0]
[null,null,null,null,null,484,"Накнада штете за повреде или штету насталу услед елементарних непогода или других природних узрока",null,null,0]
[null,null,null,null,null,485,"Накнада штете за повреде или штету нанету од стране државних органа",null,null,0]
[null,null,null,null,null,489,"Расходи који се финансирају из средстава за реализацију националног инвестиционог плана",null,null,0]
[null,null,null,null,null,494,"Административни трансфери из буџета - Текући расходи",null,null,0]
[null,null,null,null,null,495,"Административни трансфери из буџета - Издаци за нефинансијску имовину",null,null,0]
[null,null,null,null,null,496,"Административни трансфери из буџета - Издаци за отплату главнице и набавку финансијске имовине",null,null,0]
[null,null,null,null,null,499,"Административни трансфери из буџета - Средства резерве",null,null,0]
[null,null,null,null,null,511,"Зграде и грађевински објекти",null,null,0]
[null,null,null,null,null,512,"Машине и опрема",null,null,0]
[null,null,null,null,null,513,"Остале некретнине и опрема",null,null,0]
[null,null,null,null,null,514,"Култивисана имовина",null,null,0]
[null,null,null,null,null,515,"Нематеријална имовина",null,null,0]
[null,null,null,null,null,521,"Робне резерве",null,null,0]
[null,null,null,null,null,522,"Залихе производње",null,null,0]
[null,null,null,null,null,523,"Залихе робе за даљу продају",null,null,0]
[null,null,null,null,null,531,"Драгоцености",null,null,0]
[null,null,null,null,null,541,"Земљиште",null,null,0]
[null,null,null,null,null,542,"Рудна богатства",null,null,0]
[null,null,null,null,null,543,"Шуме и воде",null,null,0]
[null,null,null,null,null,551,"Нефинансијска имовина која се финансира из средстава за реализацију националног инвестиционог плана",null,null,0]
[null,null,null,null,null,611,"Отплата главнице домаћим кредиторима",null,null,0]
[null,null,null,null,151,425,"Текуће поправке и одржавање јавне расвете",4500000,null,4500000]
[null,null,null,null,152,511,"Изградња јавне расвете 20.000.000+3.600.000",23600000,null,{"$f":"H1142","v":23600000}]
[null,null,null,null,null,null,"Извори финансирања за ПА: 1102-0001"," ",null," "]
[null,null,null,null,null,null,"01 - Приходи из буџета",{"$f":"H1090+H1094+H1095+H1142","v":60600000},null,{"$f":"SUM(H1144:I1144)","v":60600000}]
[null,null,null,null,null,"02","Трансфери између корисника на истом нивоу",null,null,{"$f":"SUM(H1145:I1145)","v":0}]
[null,null,null,null,null,"03","Социјални доприноси",null,null,0]
[null,null,null,null,null,"04","Сопствени приходи буџетских корисника",null,null,0]
[null,null,null,null,null,"05","Донације од иностраних земаља",null,null,0]
[null,null,null,null,null,"06","Донације од међународних организација",null,null,0]
[null,null,null,null,null,"07","Трансфери од других нивоа власти",null,null,0]
[null,null,null,null,null,"08","Добровољни трансфери од физичких и правних лица",null,null,0]
[null,null,null,null,null,"09","Примања од продаје нефинансијске имовине",null,null,0]
[null,null,null,null,null,"10","Примања од домаћих задуживања",null,null,0]
[null,null,null,null,null,"11","Примања од иностраних задуживања",null,null,0]
[null,null,null,null,null,"12","Примања од отплате датих кредита и продаје финансијске имовине",null,null,0]
[null,null,null,null,null,"13","Нераспоређени вишак прихода из ранијих година",null,null,0]
[null,null,null,null,null,"14","Неутрошена средства од приватизације из претходних година",null,null,0]
[null,null,null,null,null,"15","Неутрошена средства донација из претходних година",null,null,0]
[null,null,null,null,null,null,"01 - Приходи из буџета",{"$f":"H1093+H1094+H1141+H1142","v":61600000},null,61600000]
[null,null,null,null,null,null,"Укупно за ПА: 01102-0001",{"$f":"H1159","v":61600000},null,{"$f":"J1159","v":61600000}]
[null,null,null,null,null,null,"Извори финансирања за Функцију: 640"]
[null,null,null,null,null,null,"01 - Приходи из буџета",{"$f":"H1160","v":61600000},null,{"$f":"SUM(H1162:I1162)","v":61600000}]
[null,null,null,null,null,"02","Трансфери између корисника на истом нивоу",null,null,{"$f":"SUM(H1163:I1163)","v":0}]
[null,null,null,null,null,"03","Социјални доприноси",null,null,0]
[null,null,null,null,null,"04","Сопствени приходи буџетских корисника",null,null,0]
[null,null,null,null,null,"05","Донације од иностраних земаља",null,null,0]
[null,null,null,null,null,"06","Донације од међународних организација",null,null,0]
[null,null,null,null,null,"07","Трансфери од других нивоа власти",null,null,0]
[null,null,null,null,null,"08","Добровољни трансфери од физичких и правних лица",null,null,0]
[null,null,null,null,null,"09","Примања од продаје нефинансијске имовине",null,null,0]
[null,null,null,null,null,"10","Примања од домаћих задуживања",null,null,0]
[null,null,null,null,null,"11","Примања од иностраних задуживања",null,null,0]
[null,null,null,null,null,"12","Примања од отплате датих кредита и продаје финансијске имовине",null,null,0]
[null,null,null,null,null,"13","Нераспоређени вишак прихода из ранијих година",null,null,0]
[null,null,null,null,null,"14","Неутрошена средства од приватизације из претходних година",null,null,0]
[null,null,null,null,null,"15","Неутрошена средства донација из претходних година",null,null,0]
[null,null,null,null,null,null,"01 - Приходи из буџета",{"$f":"H1160","v":61600000},null,61600000]
[null,null,null,null,null,null,"Укупно за Функцију: 640",{"$f":"H1162","v":61600000},null,{"$f":"J1160","v":61600000}]
[]
[null,null,"1801",null,null,null,"ПРОГРАМ 12: ПРИМАРНА ЗДРАВСТВЕНА ЗАШТИТА"]
[null,null,"1801-0002",null,null,null,"ПА: Мртвозорство"]
[null,null,null,740,null,null,"Услуге јавног здравства"]
[null,null,null,null,153,424,"Специјализоване услуге",1000000,null,{"$f":"H1183","v":1000000}]
[null,null,null,null,null,null,"Извор финансирања за ПА: 1801-0002"]
[null,null,null,null,null,null,"01 - Приходи из буџета",{"$f":"H1183","v":1000000},null,{"$f":"J1183","v":1000000}]
[null,null,null,null,null,null,"Свега за ПА: 1801-0002",{"$f":"H1185","v":1000000},null,{"$f":"J1185","v":1000000}]
[]
[null,null,"1801-0003",null,null,null,"ПА: Спровођење активности из области друштвене бриге за јавно здравље"]
[null,null,null,740,null,null,"Услуге јавног здравства"]
[null,null,null,null,154,423,"Услуге по уговору, накнада за чланове савета за здравље ",200000,null,{"$f":"H1190","v":200000}]
[null,null,null,null,155,424,"Специјализоване услуге - организовање специјалистичких прегледа за жене",1000000,null,{"$f":"H1191","v":1000000}]
[null,null,null,null,null,null,"Извор финансирања за ПА: 1801-0003"]
[null,null,null,null,null,null,"01 - Приходи из буџета",{"$f":"H1190+H1191","v":1200000},null,{"$f":"J1190+J1191","v":1200000}]
[null,null,null,null,null,null,"Свега за ПА: 1801-0003",{"$f":"H1193","v":1200000},null,{"$f":"J1193","v":1200000}]
[null,null,null,null,null,null,"Извор финансирања за функцију: 740"]
[null,null,null,null,null,null,"01 - Приходи из буџета",{"$f":"H1185+H1193","v":2200000},null,{"$f":"J1185+J1193","v":2200000}]
[null,null,null,null,null,null,"Укупно за функцију: 740",{"$f":"H1186+H1194","v":2200000},null,{"$f":"J1196","v":2200000}]
[]
[" "," ","1301",null,null,null,"ПРОГРАМ 14: РАЗВОЈ СПОРТА И ОМЛАДИНЕ"]
[null,null,"1301-0001",null,null,null,"ПА: Подршка локалним спортским организацијама, удружењима и савезима"]
[null,null," ",810,null,null,"Услуге рекреације и спорта"]
[null,null,null,null,157,451,"Субвенције осталим јавним нефинансијским предузећима и организацијама",6000000,null,{"$f":"H1202","v":6000000}]
[null,null,null,null,158,"481","Дотације невладиним организацијама - спортским удружењима, спортском савезу",80000000,null,{"$f":"H1203","v":80000000}]
[null,null,null,null,159,"511","Зграде и грађевински објекти-изградња објекта за потребе спортских клубова (20.000.000) и уређење спортских терена паркова и трим стаза (15.000.000)",35000000,null,{"$f":"H1204+I1204","v":35000000}]
[null,null,null,null,null,null,"Извор финансирања за ПА: 1301-0001"]
[null,null,null,null,null,null,"01 - Приходи из буџета",{"$f":"H1202+H1203+H1204","v":121000000},null,{"$f":"H1206","v":121000000}]
[null,null,null,null,null,null,"Укупно за ПА: 1301-0001",{"$f":"H1206","v":121000000},null,{"$f":"J1202+J1203+J1204","v":121000000}]
[null,null,null,null,null,null,null," ",null," "]
[null,null,"1301-0002",null,null,null,"ПА: Подршка предшколском и школском спорту"]
[null,null,null,810,null,null,"Услуге рекреације и спорта"]
[null,null,null,null,160,481,"Дотације за спорт - школским, предшколским и рекреативним активностима ",1000000,null,{"$f":"H1211","v":1000000}]
[null,null,null,null,null,null,"Извор финансирања за ПА: 1301-0002"]
[null,null,null,null,null,null,"01 - Приходи из буџета",{"$f":"H1211","v":1000000},null,{"$f":"J1211","v":1000000}]
[null,null,null,null,null,null,"Укупно за ПА:  1301-0002",{"$f":"H1213","v":1000000},null,{"$f":"J1213","v":1000000}]
[]
[null,null,"1301-5001",null,null,null,"Пројекат: Изградња фискултуре сале са затвореним базеном - У склопу ОШ \"Димитрије Туцовић\" Златибор"]
[null,null,null,810,null,null,"Услуге рекреације и спорта"]
[null,null,null,null,161,511,"Зграде и грађевински објекти",11000000,null,{"$f":"H1218","v":11000000}]
[null,null,null,null,null,null,"Извор финансирања за Пројекат: 1301-5001"]
[null,null,null,null,null,null,"01 - Приходи из буџета",{"$f":"H1218","v":11000000},null,{"$f":"J1218","v":11000000}]
[null,null,null,null,null,null,"Укупно за Пројекат: 1301-5001",{"$f":"H1220","v":11000000},null,{"$f":"J1220","v":11000000}]
[null,null,null,null,null,null,"Извор финансирања за функцију: 810"]
[null,null,null,null,null,null,"01 - Приходи из буџета",{"$f":"H1206+H1213+H1220","v":133000000},null,{"$f":"H1223","v":133000000}]
[null,null,null,null,null,null,"Укупно за функцију: 810",{"$f":"H1223","v":133000000},null,{"$f":"J1207+J1214+J1221","v":133000000}]
[]
[null,null,"1201",null,null,null,"ПРОГРАМ 13: РАЗВОЈ КУЛТУРЕ"," ",null," "]
[null,null,"1201-0001",null,null,null,"ПА: Функционисање локалних установа културе"]
[null,null,null,820,null,null,"Услуге културе"]
[null,null,null,null,162,463,"Текући трансфери другом нивоу власти - Историјски архив",500000,null,{"$f":"H1229","v":500000}]
[null,null,null,null,null,null,"Извор финансирања за ПА: 1201-0001"]
[null,null,null,null,null,null,"01 - Приходи из буџета",{"$f":"H1229","v":500000},null,{"$f":"J1229","v":500000}]
[null,null,null,null,null,null,"Укупно за ПА:  1201-0001",{"$f":"H1229","v":500000},null,{"$f":"H1232","v":500000}]
[]
[null,null,"1201-0002",null,null,null,"ПА: Јачање културне продукције и уметничког стваралаштва"]
[null,null,null,820,null,null,"Услуге културе "]
[null,null,null,null,163,423,"Услуге по уговору - организовање културно-спортских манифестација за 2021. годину  ",15000000,null,{"$f":"H1236+I1236","v":15000000}]
[null,null,null,null,164,481,"Дотације удружењима културе по конкурсу",4000000,null,{"$f":"H1237","v":4000000}]
[null,null,null,null,null,null,"Извор финансирања за ПА: 1201-0002"]
[null,null,null,null,null,null,"01 - Приходи из буџета",{"$f":"H1236+H1237","v":19000000},null,{"$f":"H1239","v":19000000}]
[null,null,null,null,null,null,"07 - Приходи од Републике",null,null,{"$f":"I1240","v":0}]
[null,null,null,null,null,null,"Укупно за ПА:  1201-0002",{"$f":"H1239","v":19000000},null,{"$f":"J1239+J1240","v":19000000}]
[null,null,null,null,null,null,"Извор финансирања за функцију: 820"]
[null,null,null,null,null,null,"01 - Приходи из буџета",{"$f":"H1231+H1239","v":19500000},null,{"$f":"H1243","v":19500000}]
[null,null,null,null,null,null,"07 - Приходи од Републике",null,{"$f":"I1240","v":0}]
[null,null,null,null,null,null,"Укупно за функцију: 820",{"$f":"H1232+H1241","v":19500000},{"$f":"I1244","v":0},{"$f":"J1232+J1241","v":19500000}]
[]
[" "," ",null,null,null,null,"УСЛУГЕ ЕМИТОВАЊА И ИЗДАВАШТВА"]
[null,null,"1201",null,null,null,"ПРОГРАМ 13: РАЗВОЈ КУЛТУРЕ"]
[null,null,"1201-0004",null,null,null,"ПА: Остваривање и унапређење јавног интереса у области јавног информисања"]
[null,null,null,830,null,null,"Услуге емитовања и издаваштва"]
[null,null,null,null,165,423,"Услуге по уговору",4000000,null,{"$f":"H1251","v":4000000}]
[null,null,null,null,166,454,"Субвенције за приватна предузећа - расподела по конкурсу за информисање",16000000,null,{"$f":"H1252","v":16000000}]
[null,null,null,null,null,null,"Извор финансирања за ПА: 1201-0004"]
[null,null,null,null,null,null,"01 - Приходи из буџета",{"$f":"H1251+H1252","v":20000000},null,{"$f":"J1251+J1252","v":20000000}]
[null,null,null,null,null,null,"Укупно за ПА:  1201-0004",{"$f":"H1254","v":20000000},null,{"$f":"J1254","v":20000000}]
[null,null,null,null,null,null,"Извор финансирања за функцију: 830"]
[null,null,null,null,null,null,"01 - Приходи из буџета",{"$f":"H1254","v":20000000},null,{"$f":"H1257","v":20000000}]
[null,null,null,null,null,null,"Укупно за функцију: 830",{"$f":"H1257","v":20000000},null,{"$f":"J1257","v":20000000}]
[]
[5,null,null,null,null,null,"ВЕРСКЕ ОРГАНИЗАЦИЈЕ И ЗАЈЕДНИЦЕ"]
[null,null,"1201",null,null,null,"ПРОГРАМ 13: РАЗВОЈ КУЛТУРЕ"]
[null,null,"1201-0003",null,null,null,"ПА: Унапређење система очувања и представљања културно-историјског наслеђа"]
[null,null,null,840,null,null,"Верске и остале услуге заједнице"]
[null,null,null,null,167,481,"Дотације верским заједницама",3000000,null,{"$f":"H1264","v":3000000}]
[null,null,null,null,null,null,"Извор финансирања за ПА: 1201-0003 "]
[null,null,null,null,null,null,"01 - Приходи из буџета",{"$f":"H1264","v":3000000},null,{"$f":"J1264","v":3000000}]
[null,null,null,null,null,null,"Укупно за ПА: 1201-0003",{"$f":"H1266","v":3000000},null,{"$f":"J1266","v":3000000}]
[]
[" "," ","1201-4001",null,null,null,"Пројекат: Будимо равноправни"]
[null,null,null,840,null,null,"  Верске и остале услуге заједнице"]
[null,null,null,null,168,423,"Услуге по уговору",200000,null,{"$f":"H1271+I1271","v":200000}]
[null,null,null,null,169,426,"Материјал",50000,null,{"$f":"H1272+I1272","v":50000}]
[null,null,null,null,null,null,"Извори финансирања за Пројекат: 001"]
[null,null,null,null,null,null,"01 - Приходи буџета",{"$f":"H1271+H1272","v":250000},null,{"$f":"H1274","v":250000}]
[null,null,null,null,null,null,"Укупно за Пројекат: 001",{"$f":"H1274","v":250000},null,{"$f":"SUM(H1275:I1275)","v":250000}]
[null,null,null,null,null,null,"Извор финансирања за функцију: 840"]
[null,null,null,null,null,null,"01 - Приходи из буџета",{"$f":"H1266+H1274","v":3250000},null,{"$f":"J1266+J1274","v":3250000}]
[null,null,null,null,null,null,"Укупно за функцију: 840",{"$f":"H1277","v":3250000},null,{"$f":"J1277","v":3250000}]
[]
[5," ",null,null,null,null,"КАНЦЕЛАРИЈА ЗА МЛАДЕ"]
[null,null,"1301",null,null,null,"ПРОГРАМ 14: РАЗВОЈ СПОРТА И ОМЛАДИНЕ"]
[null,null,"1301-0005",null,null,null,"ПА: Спровођење омладинске политике"]
[null,null,null,860,null,null,"Рекреација, спорт, култура и вере, некласификована на другом месту "]
[null,null,null,null,170,423,"Услуге по уговору",150000,null,{"$f":"H1284+I1284","v":150000}]
[null,null,null,null,171,426,"Материјал",50000,null,{"$f":"H1285+I1285","v":50000}]
[null,null,null,null,null,null,"Извори финансирања за ПА: 1301-0005:"]
[null,null,null,null,null,null,"01 - Приходи из буџета",{"$f":"H1284+H1285","v":200000},null,{"$f":"H1287","v":200000}]
[null,null,null,null,null,null,"Свега за ПА: 1301-0005:",{"$f":"H1287","v":200000},null,{"$f":"J1287","v":200000}]
[null,null,null,null,null,null,"Извори финансирања за функцију: 860"]
[null,null,null,null,null,null,"01 - Приходи буџета",{"$f":"H1288","v":200000},null,{"$f":"H1290","v":200000}]
[null,null,null,null,null,null,"Укупно за функцију: 860 ",{"$f":"H1288","v":200000},null,{"$f":"J1288","v":200000}]
[]
[null,null,"0602",null,null,null,"ПРОГРАМ: 15 - ОПШТЕ УСЛУГЕ ЛОКАЛНЕ САМОУПРАВЕ"]
[null,null,"0602-0001",null,null,null,"ПА: Функционисање локалне самоуправе и градских општина"]
[null,null,null,950,null,null,"Образовање које није дефинисано нивоом"]
[null,null,null,null,174,472,"Накнаде за социјалну заштиту из буџета - стипендије",8000000,null,{"$f":"H1296","v":8000000}]
[null,null,null,null,null,null,"Извор финансирања за ПА: 0602-0001"]
[null,null,null,null,null,null,"01 - Приходи из буџета",{"$f":"H1296","v":8000000},null,{"$f":"J1296","v":8000000}]
[null,null,null,null,null,null,"Укупно за ПА: 0602-0001",{"$f":"H1298","v":8000000},null,{"$f":"J1298","v":8000000}]
[null,null,null,null,null,null,"Извор финансирања за функцију: 950"]
[null,null,null,null,null,null,"01 - Приходи из буџета",{"$f":"H1299","v":8000000},null,{"$f":"J1299","v":8000000}]
[null,null,null,null,null,null,"Укупно за функцију: 950",{"$f":"H1301","v":8000000},null,{"$f":"J1301","v":8000000}]
[]
[null,null,"0602",null,null,null,"ПРОГРАМ: 15 - ОПШТЕ УСЛУГЕ ЛОКАЛНЕ САМОУПРАВЕ"]
[null,null,"0602-0001",null,null,null,"ПА: Функционисање локалне самоуправе и градских општина"]
[null,null,null,960,null,null,"Помоћне услуге образовању"]
[null,null,null,null,175,472,"Накнаде за социјалну заштиту из буџета - превоз ђака",30000000,null,{"$f":"H1307","v":30000000}]
[null,null,null,null,null,null,"Извор финансирања за ПА: 0602-0001"]
[null,null,null,null,null,null,"01 - Приходи из буџета",{"$f":"H1307","v":30000000},null,{"$f":"J1307","v":30000000}]
[null,null,null,null,null,null,"Укупно за ПА: 0602-0001",{"$f":"H1309","v":30000000},null,{"$f":"J1309","v":30000000}]
[null,null,null,null,null,null,"Извор финансирања за функцију: 960"]
[null,null,null,null,null,null,"01 - Приходи из буџета",{"$f":"H1310","v":30000000},null,{"$f":"J1310","v":30000000}]
[null,null,null,null,null,null,"Укупно за функцију 960:",{"$f":"H1312","v":30000000},null,{"$f":"J1312","v":30000000}]
[]
[]
[]
[]
[]
[]
[]
[]
[]
[]
[]
[]
[]
[]
[]
[]
[]
[]
[]
[]
[]
[]
[]
[]
[]
[]
[]
[]
[null,null,null,null,null,null,"01 - Приходи из буџета",{"$f":"H1310","v":30000000},null,{"$f":"J1310","v":30000000}]
[null,null,null,null,null,null,"Укупно за функцију: 960",{"$f":"H1309","v":30000000},null,{"$f":"J1309","v":30000000}]
[]
[null,null,null,null,null,null,"ОСНОВНЕ ШКОЛЕ"]
["5. ","5.00.01",null,null,null,null,"ОШ \"ДИМИТРИЈЕ ТУЦОВИЋ\""]
[null,null,"2002",null,null,null,"ПРОГРАМ 9: ОСНОВНО ОБРАЗОВАЊЕ"]
[null,null,"2002-0001",null,null,null,"ПА: Функционисање основних школа"]
[null,null,null,912,null,null,"Основно образовање"]
[null,null,null,null,172,463,"Текући трансфери осталим нивоима власти",{"$f":"H1351+H1352+H1353+H1354+H1355+H1382+H1383+H1384+H1385+H1386+H1402","v":15400000},null,{"$f":"H1350","v":15400000}]
[null,null,null,null,null,null,"414-Социјална давања запосленима",180000,null,{"$f":"H1351","v":180000}]
[null,null,null,null,null,null,"415-Накнаде за запослене-превоз",3800000,null,3800000]
[null,null,null,null,null,null,"416-Награде за запослене-јубиларне",1000000,null,1000000]
[null,null,null,null,null,null,"421-Стални трошкови",6140000,null,6140000]
[null,null,null,null,null,null,"422-Трошкови службених путовања",250000,null,250000]
[null,null,null,null,null,null,"423-Услуге по уговору",620000,null,620000]
[null,null,null,null,null,null,"424-Специјализоване услуге",30000,null,30000]
[null,null,null,null,null,464,null,null,null,0]
[null,null,null,null,null,465,null,null,null,0]
[null,null,null,null,null,472,null,null,null,0]
[null,null,null,null,null,481,null,null,null,0]
[null,null,null,null,null,482,null,null,null,0]
[null,null,null,null,null,483,null,null,null,0]
[null,null,null,null,null,484,null,null,null,0]
[null,null,null,null,null,485,null,null,null,0]
[null,null,null,null,null,489,null,null,null,0]
[null,null,null,null,null,494,null,null,null,0]
[null,null,null,null,null,495,null,null,null,0]
[null,null,null,null,null,496,null,null,null,0]
[null,null,null,null,null,499,null,null,null,0]
[null,null,null,null,null,511,null,null,null,0]
[null,null,null,null,null,512,null,null,null,0]
[null,null,null,null,null,513,null,null,null,0]
[null,null,null,null,null,514,null,null,null,0]
[null,null,null,null,null,515,null,null,null,0]
[null,null,null,null,null,521,null,null,null,0]
[null,null,null,null,null,522,null,null,null,0]
[null,null,null,null,null,523,null,null,null,0]
[null,null,null,null,null,531,null,null,null,0]
[null,null,null,null,null,541,null,null,null,0]
[null,null,null,null,null,null,"422-Трошкови службених путовања",250000,null,250000]
[null,null,null,null,null,null,"423-Услуге по уговору",740000,null,740000]
[null,null,null,null,null,null,"424-Специјализоване услуге",40000,null,40000]
[null,null,null,null,null,null,"425-Текуће поправке и одржавање",1000000,null,1000000]
[null,null,null,null,null,null,"426-Материјал",1950000,null,1950000]
[null,null,null,null,null,null,"472-Накнада за образовање и такмичење",250000,null,250000]
[null,null,null,null,null,null,"482-Порези, обавезне таксе, пенали и казне",50000,null,50000]
[null,null,null,null,164,463,"Капитални трансфери осталим нивоима власти",{"$f":"H1404+H1405","v":1550000},null,1550000]
[null,null,null,null,null,null,null,null,null,0]
[null,null,null,null,null,null,null,null,null,0]
[null,null,null,null,null,null,null,null,null,0]
[null,null,null,null,null,null,null,null,null,0]
[null,null,null,null,null,null,null,null,null,0]
[null,null,null,null,null,null,null,null,null,0]
[null,null,null,null,null,null,null,null,null,0]
[null,null,null,null,null,null,null,null,null,0]
[null,null,null,null,null,null,null,null,null,0]
[null,null,null,null,null,null,null,null,null,0]
[null,null,null,null,null,null,null,null,null,0]
[null,null,null,null,null,null,null,null,null,0]
[null,null,null,null,null,null,"472-Накнада за образовање и такмичење",250000,null,250000]
[null,null,null,null,null,null,"482-Порези, обавезне таксе, пенали и казне",50000,null,50000]
[null,null,null,null,172,463,"Капитални трансфери осталим нивоима власти",{"$f":"H1404+H1420","v":1600000},null,1600000]
[null,null,null,null,null,null,"511-Зграде и грађевински објекти",700000,null,700000]
[null,null,null,null,null,null,"512-Машине и опрема",850000,null,850000]
[]
[null,null,null,null,null,"02",null,null,null,{"$f":"SUM(H1407:I1407)","v":0}]
[null,null,null,null,null,"03",null,null,null,0]
[null,null,null,null,null,"04",null,null,null,0]
[null,null,null,null,null,"05",null,null,null,0]
[null,null,null,null,null,"06",null,null,null,0]
[null,null,null,null,null,"07",null,null,null,0]
[null,null,null,null,null,"08",null,null,null,0]
[null,null,null,null,null,"09",null,null,null,0]
[null,null,null,null,null,"10",null,null,null,0]
[null,null,null,null,null,"11",null,null,null,0]
[null,null,null,null,null,"12",null,null,null,0]
[null,null,null,null,null,"13",null,null,null,0]
[null,null,null,null,null,null,"511-Зграде и грађевински објекти",700000,null,700000]
[null,null,null,null,null,null,"512-Машина и опрема",900000,null,900000]
[null,null,null,null,null,null,"Извор финансирања за ПА: 2002-0001"]
[null,null,null,null,null,null,"01 - Приходи из буџета",{"$f":"H1350+H1403","v":17000000},null,{"$f":"J1350+J1403","v":17000000}]
[null,null,null,null,null,null,"Укупно за ПА: 2002-0001",{"$f":"H1422","v":17000000},null,{"$f":"J1422","v":17000000}]
[null,null,null,null,null,null,"Извор финансирања за функцију: 912"]
[null,null,null,null,null,null,"01 - Приходи из буџета",{"$f":"H1422","v":17000000},null,{"$f":"J1422","v":17000000}]
[null,null,null,null,null,null,"Укупно за функцију: 912",{"$f":"H1425","v":17000000},null,{"$f":"J1422","v":17000000}]
[]
["5. ","5.00.02",null,null,null,null,"ОШ \"САВО ЈОВАНОВИЋ\""]
[null,null,"2002",null,null,null,"ПРОГРАМ 9: ОСНОВНО ОБРАЗОВАЊЕ"]
[null,null,"2002-0001",null,null,null,"ПА: Функционисање основних школа"]
[null,null,null,912,null,null,"Основно образовање"]
[null,null,null,null,172,463,"Текући трансфери осталим нивоима власти",{"$f":"H1433+H1434+H1435+H1436+H1437+H1464+H1465+H1466+H1467+H1468+H1484","v":11595000},null,{"$f":"J1433+J1434+J1435+J1436+J1437+J1464+J1465+J1466+J1467+J1468+J1484","v":11595000}]
[null,null,null,null,null,null,"414-Социјална давања запосленима",200000,null,{"$f":"H1433","v":200000}]
[null,null,null,null,null,null,"415-Накнаде за запослене-превоз",3200000,null,3200000]
[null,null,null,null,null,null,"416-Награде за запослене-јубиларне",460000,null,460000]
[null,null,null,null,null,null,"421-Стални трошкови",2790000,null,2790000]
[null,null,null,null,null,null,"422-Трошкови службених путовања",40000,null,40000]
[null,null,null,null,null,null,"423-Услуге по уговору",2130000,null,2130000]
[null,null,null,null,null,null,"424-Специјализоване услуге",70000,null,70000]
[null,null,null,null,null,464,null,null,null,0]
[null,null,null,null,null,465,null,null,null,0]
[null,null,null,null,null,472,null,null,null,0]
[null,null,null,null,null,481,null,null,null,0]
[null,null,null,null,null,482,null,null,null,0]
[null,null,null,null,null,483,null,null,null,0]
[null,null,null,null,null,484,null,null,null,0]
[null,null,null,null,null,485,null,null,null,0]
[null,null,null,null,null,489,null,null,null,0]
[null,null,null,null,null,494,null,null,null,0]
[null,null,null,null,null,495,null,null,null,0]
[null,null,null,null,null,496,null,null,null,0]
[null,null,null,null,null,499,null,null,null,0]
[null,null,null,null,null,511,null,null,null,0]
[null,null,null,null,null,512,null,null,null,0]
[null,null,null,null,null,513,null,null,null,0]
[null,null,null,null,null,514,null,null,null,0]
[null,null,null,null,null,515,null,null,null,0]
[null,null,null,null,null,521,null,null,null,0]
[null,null,null,null,null,522,null,null,null,0]
[null,null,null,null,null,523,null,null,null,0]
[null,null,null,null,null,531,null,null,null,0]
[null,null,null,null,null,541,null,null,null,0]
[null,null,null,null,null,null,"422-Трошкови службених путовања",40000,null,40000]
[null,null,null,null,null,null,"423-Услуге по уговору",2255000,null,2255000]
[null,null,null,null,null,null,"424-Специјализоване услуге",40000,null,40000]
[null,null,null,null,null,null,"425-Текуће поправке и одржавање",600000,null,600000]
[null,null,null,null,null,null,"426-Материјал",1860000,null,1860000]
[null,null,null,null,null,null,"472-Накнада за образовање и такмичење",50000,null,50000]
[null,null,null,null,null,null,"482-Порези, обавезне таксе, пенали и казне",100000,null,100000]
[null,null,null,null,164,463,"Капитални трансфери осталим нивоима власти",{"$f":"H1486+H1487","v":201000},null,201000]
[null,null,null,null,null,null,null,null,null,0]
[null,null,null,null,null,null,null,null,null,0]
[null,null,null,null,null,null,null,null,null,0]
[null,null,null,null,null,null,null,null,null,0]
[null,null,null,null,null,null,null,null,null,0]
[null,null,null,null,null,null,null,null,null,0]
[null,null,null,null,null,null,null,null,null,0]
[null,null,null,null,null,null,null,null,null,0]
[null,null,null,null,null,null,null,null,null,0]
[null,null,null,null,null,null,null,null,null,0]
[null,null,null,null,null,null,null,null,null,0]
[null,null,null,null,null,null,null,null,null,0]
[null,null,null,null,null,null,"472-Накнада за образовање и такмичење",50000,null,50000]
[null,null,null,null,null,null,"482-Порези, обавезне таксе, пенали и казне",100000,null,100000]
[null,null,null,null,172,463,"Текући трансфери осталим нивоима власти",{"$f":"H1501+H1502","v":1500000},null,1500000]
[null,null,null,null,null,null,"511-Зграде и грађевински објекти",1000,null,{"$f":"H1486","v":1000}]
[null,null,null,null,null,null,"512-Машине и опрема",200000,null,200000]
[]
[null,null,null,null,null,"02",null,null,null,{"$f":"SUM(H1489:I1489)","v":0}]
[null,null,null,null,null,"03",null,null,null,0]
[null,null,null,null,null,"04",null,null,null,0]
[null,null,null,null,null,"05",null,null,null,0]
[null,null,null,null,null,"06",null,null,null,0]
[null,null,null,null,null,"07",null,null,null,0]
[null,null,null,null,null,"08",null,null,null,0]
[null,null,null,null,null,"09",null,null,null,0]
[null,null,null,null,null,"10",null,null,null,0]
[null,null,null,null,null,"11",null,null,null,0]
[null,null,null,null,null,"12",null,null,null,0]
[null,null,null,null,null,"13",null,null,null,0]
[null,null,null,null,null,null,"511-Зграде и грађевински објекти",1000000,null,1000000]
[null,null,null,null,null,null,"512-Машина и опрема",500000,null,500000]
[null,null,null,null,null,null,"Извор финансирања за ПА: 2002-0001"]
[null,null,null,null,null,null,"01 - Приходи из буџета",{"$f":"H1432+H1485","v":13095000},null,{"$f":"J1432+J1485","v":13095000}]
[null,null,null,null,null,null,"Укупно за ПА: 2002-0001",{"$f":"H1504","v":13095000},null,{"$f":"J1504","v":13095000}]
[null,null,null,null,null,null,"Извор финансирања за функцију: 912"]
[null,null,null,null,null,null,"01 - Приходи из буџета",{"$f":"H1504","v":13095000},null,{"$f":"J1504","v":13095000}]
[null,null,null,null,null,null,"Укупно за функцију: 912",{"$f":"H1507","v":13095000},null,{"$f":"J1507","v":13095000}]
[]
["5. ","5.00.03",null,null,null,null,"ОШ \"МИЛИВОЈЕ БОРОВИЋ\""]
[null,null,"2002",null,null,null,"ПРОГРАМ 9: ОСНОВНО ОБРАЗОВАЊЕ"]
[null,null,"2002-0001",null,null,null,"ПА: Функционисање основних школа"]
[null,null,null,912,null,null,"Основно образовање"]
[null,null,null,null,172,463,"Текући трансфери осталим нивоима власти",{"$f":"H1515+H1516+H1517+H1518+H1519+H1546+H1547+H1548+H1549+H1550+H1566","v":11650000},null,{"$f":"H1514","v":11650000}]
[null,null,null,null,null,null,"414-Социјална давања запосленима",200000,null,{"$f":"H1515","v":200000}]
[null,null,null,null,null,null,"415-Накнаде за запослене-превоз",2100000,null,2100000]
[null,null,null,null,null,null,"416-Награде за запослене-јубиларне",350000,null,350000]
[null,null,null,null,null,null,"421-Стални трошкови",5200000,null,5200000]
[null,null,null,null,null,null,"422-Трошкови службених путовања",20000,null,20000]
[null,null,null,null,null,null,"423-Услуге по уговору",500000,null,500000]
[null,null,null,null,null,null,"424-Специјализоване услуге",70000,null,70000]
[null,null,null,null,null,464,null,null,null,0]
[null,null,null,null,null,465,null,null,null,0]
[null,null,null,null,null,472,null,null,null,0]
[null,null,null,null,null,481,null,null,null,0]
[null,null,null,null,null,482,null,null,null,0]
[null,null,null,null,null,483,null,null,null,0]
[null,null,null,null,null,484,null,null,null,0]
[null,null,null,null,null,485,null,null,null,0]
[null,null,null,null,null,489,null,null,null,0]
[null,null,null,null,null,494,null,null,null,0]
[null,null,null,null,null,495,null,null,null,0]
[null,null,null,null,null,496,null,null,null,0]
[null,null,null,null,null,499,null,null,null,0]
[null,null,null,null,null,511,null,null,null,0]
[null,null,null,null,null,512,null,null,null,0]
[null,null,null,null,null,513,null,null,null,0]
[null,null,null,null,null,514,null,null,null,0]
[null,null,null,null,null,515,null,null,null,0]
[null,null,null,null,null,521,null,null,null,0]
[null,null,null,null,null,522,null,null,null,0]
[null,null,null,null,null,523,null,null,null,0]
[null,null,null,null,null,531,null,null,null,0]
[null,null,null,null,null,541,null,null,null,0]
[null,null,null,null,null,null,"422-Трошкови службених путовања",20000,null,20000]
[null,null,null,null,null,null,"423-Услуге по уговору",900000,null,900000]
[null,null,null,null,null,null,"424-Специјализоване услуге",70000,null,70000]
[null,null,null,null,null,null,"425-Текуће поправке и одржавање",1300000,null,{"$f":"H1548+I1548","v":1300000}]
[null,null,null,null,null,null,"426-Материјал",1410000,null,1410000]
[null,null,null,null,null,null,"472-Накнада за образовање и такмичење",70000,null,{"$f":"H1550","v":70000}]
[null,null,null,null,null,null,"482-Порези, обавезне таксе, пенали и казне",30000,null,30000]
[null,null,null,null,164,463,"Капитални трансфери осталим нивоима власти",{"$f":"H1568+H1569+H1570","v":2770000},null,2770000]
[null,null,null,null,null,null,null,null,null,0]
[null,null,null,null,null,null,null,null,null,0]
[null,null,null,null,null,null,null,null,null,0]
[null,null,null,null,null,null,null,null,null,0]
[null,null,null,null,null,null,null,null,null,0]
[null,null,null,null,null,null,null,null,null,0]
[null,null,null,null,null,null,null,null,null,0]
[null,null,null,null,null,null,null,null,null,0]
[null,null,null,null,null,null,null,null,null,0]
[null,null,null,null,null,null,null,null,null,0]
[null,null,null,null,null,null,null,null,null,0]
[null,null,null,null,null,null,null,null,null,0]
[null,null,null,null,null,null,"472-Накнада за образовање и такмичење",70000,null,70000]
[null,null,null,null,null,null,"482-Порези, обавезне таксе, пенали и казне",30000,null,30000]
[null,null,null,null,172,463,"Текући трансфери осталим нивоима власти",{"$f":"H1568+H1569+H1585","v":2760000},null,2760000]
[null,null,null,null,null,null,"511-Зграде и грађевински објекти",2500000,null,2500000]
[null,null,null,null,null,null,"Текући трансфери осталим нивоима власти",250000,null,250000]
[null,null,null,null,null,null,"515-Нематеријална имовина-књиге за библиотеку",20000,null,{"$f":"H1570","v":20000}]
[]
[null,null,null,null,null,"02",null,null,null,{"$f":"SUM(H1572:I1572)","v":0}]
[null,null,null,null,null,"03",null,null,null,0]
[null,null,null,null,null,"04",null,null,null,0]
[null,null,null,null,null,"05",null,null,null,0]
[null,null,null,null,null,"06",null,null,null,0]
[null,null,null,null,null,"07",null,null,null,0]
[null,null,null,null,null,"08",null,null,null,0]
[null,null,null,null,null,"09",null,null,null,0]
[null,null,null,null,null,"10",null,null,null,0]
[null,null,null,null,null,"11",null,null,null,0]
[null,null,null,null,null,"12",null,null,null,0]
[null,null,null,null,null,"13",null,null,null,0]
[null,null,null,null,null,null,"512-Машина и опрема",250000,null,250000]
[null,null,null,null,null,null,"515-Нематеријална имовина",10000,null,10000]
[null,null,null,null,null,null,"Извор финансирања за ПА: 2002-0001"]
[null,null,null,null,null,null,"01 - Приходи из буџета",{"$f":"H1514+H1567","v":14410000},null,{"$f":"J1514+J1567","v":14410000}]
[null,null,null,null,null,null,"Укупно за ПА: 2002-0001",{"$f":"H1587","v":14410000},null,{"$f":"J1587","v":14410000}]
[null,null,null,null,null,null,"Извор финансирања за функцију: 912"]
[null,null,null,null,null,null,"01 - Приходи из буџета",{"$f":"H1587","v":14410000},null,{"$f":"J1587","v":14410000}]
[null,null,null,null,null,null,"Укупно за функцију: 912",{"$f":"H1590","v":14410000},null,{"$f":"J1590","v":14410000}]
[null,null,null,null,null,null,"Извор финансирања за функцију: 912- збирно за ОШ"]
[null,null,null,null,null,null,"01 - Приходи из буџета",{"$f":"H1425+H1504+H1587","v":44505000},null,{"$f":"J1425+J1507+J1590","v":44505000}]
[null,null,null,null,null,null,"Укупно за функцију: 912 - збирно за ОШ",{"$f":"H1426+H1508+H1591","v":44505000},null,{"$f":"J1593","v":44505000}]
[]
["5. ","5.00.04",null,null,null,null,"УГОСТИТЕЉСКО-ТУРИСТИЧКА ШКОЛА ЧАЈЕТИНА"]
[null,null,"2003",null,null,null,"ПРОГРАМ 10: СРЕДЊЕ ОБРАЗОВАЊЕ"]
[null,null,"2003-0001",null,null,null,"ПА: Функционисање средњих школа"]
[null,null,null,920,null,null,"Средње образовање"]
[null,null,null,null,173,463,"Текући трансфери осталим нивоима власти",{"$f":"H1601+H1602+H1603+H1604+H1605+H1632+H1633+H1634+H1635+H1636+H1652","v":10060000},null,{"$f":"H1600","v":10060000}]
[null,null,null,null,null,null,"414-Социјална давања запосленима",300000,null,{"$f":"H1601","v":300000}]
[null,null,null,null,null,null,"415-Накнаде за запослене-превоз",2400000,null,2400000]
[null,null,null,null,null,null,"416-Награде за запослене-јубиларне",850000,null,850000]
[null,null,null,null,null,null,"421-Стални трошкови",3050000,null,3050000]
[null,null,null,null,null,null,"422-Трошкови службених путовања",350000,null,350000]
[null,null,null,null,null,null,"423-Услуге по уговору",580000,null,580000]
[null,null,null,null,null,null,"424-Специјализоване услуге",80000,null,80000]
[null,null,null,null,null,464,null,null,null,0]
[null,null,null,null,null,465,null,null,null,0]
[null,null,null,null,null,472,null,null,null,0]
[null,null,null,null,null,481,null,null,null,0]
[null,null,null,null,null,482,null,null,null,0]
[null,null,null,null,null,483,null,null,null,0]
[null,null,null,null,null,484,null,null,null,0]
[null,null,null,null,null,485,null,null,null,0]
[null,null,null,null,null,489,null,null,null,0]
[null,null,null,null,null,494,null,null,null,0]
[null,null,null,null,null,495,null,null,null,0]
[null,null,null,null,null,496,null,null,null,0]
[null,null,null,null,null,499,null,null,null,0]
[null,null,null,null,null,511,null,null,null,0]
[null,null,null,null,null,512,null,null,null,0]
[null,null,null,null,null,513,null,null,null,0]
[null,null,null,null,null,514,null,null,null,0]
[null,null,null,null,null,515,null,null,null,0]
[null,null,null,null,null,521,null,null,null,0]
[null,null,null,null,null,522,null,null,null,0]
[null,null,null,null,null,523,null,null,null,0]
[null,null,null,null,null,531,null,null,null,0]
[null,null,null,null,null,541,null,null,null,0]
[null,null,null,null,null,null,"422-Трошкови службених путовања",350000,null,350000]
[null,null,null,null,null,null,"423-Услуге по уговору",650000,null,650000]
[null,null,null,null,null,null,"424-Специјализоване услуге",80000,null,80000]
[null,null,null,null,null,null,"425-Текуће поправке и одржавање",660000,null,660000]
[null,null,null,null,null,null,"426-Материјал",1635000,null,1635000]
[null,null,null,null,null,null,"472-Накнада за образовање и такмичење",80000,null,80000]
[null,null,null,null,null,null,"482-Порези, обавезне таксе, казне и пенали",5000,null,5000]
[null,null,null,null,165,463,"Капитални трансфери осталим нивоима власти",{"$f":"H1654","v":260000},null,260000]
[null,null,null,null,null,null,null,null,null,0]
[null,null,null,null,null,null,null,null,null,0]
[null,null,null,null,null,null,null,null,null,0]
[null,null,null,null,null,null,null,null,null,0]
[null,null,null,null,null,null,null,null,null,0]
[null,null,null,null,null,null,null,null,null,0]
[null,null,null,null,null,null,null,null,null,0]
[null,null,null,null,null,null,null,null,null,0]
[null,null,null,null,null,null,null,null,null,0]
[null,null,null,null,null,null,null,null,null,0]
[null,null,null,null,null,null,null,null,null,0]
[null,null,null,null,null,null,null,null,null,0]
[null,null,null,null,null,null,"472-Накнада за образовање и такмичење",80000,null,80000]
[null,null,null,null,null,null,"482-Порези, обавезне таксе, пенали и казне",5000,null,5000]
[null,null,null,null,165,463,"Текући трансфери осталим нивоима власти",{"$f":"H1668","v":300000},null,300000]
[null,null,null,null,null,null,"512-Машине и опрема",260000,null,260000]
[]
[null,null,null,null,null,"02",null,null,null,{"$f":"SUM(H1656:I1656)","v":0}]
[null,null,null,null,null,"03",null,null,null,0]
[null,null,null,null,null,"04",null,null,null,0]
[null,null,null,null,null,"05",null,null,null,0]
[null,null,null,null,null,"06",null,null,null,0]
[null,null,null,null,null,"07",null,null,null,0]
[null,null,null,null,null,"08",null,null,null,0]
[null,null,null,null,null,"09",null,null,null,0]
[null,null,null,null,null,"10",null,null,null,0]
[null,null,null,null,null,"11",null,null,null,0]
[null,null,null,null,null,"12",null,null,null,0]
[null,null,null,null,null,"13",null,null,null,0]
[null,null,null,null,null,null,"512-Машина и опрема",300000,null,300000]
[null,null,null,null,null,null,"Извор финансирања за ПА: 2003-0001"]
[null,null,null,null,null,null,"01 - Приходи из буџета",{"$f":"H1600+H1653","v":10360000},null,{"$f":"J1600+J1653","v":10360000}]
[null,null,null,null,null,null,"Укупно за ПА: 2003-0001",{"$f":"H1670","v":10360000},null,{"$f":"J1670","v":10360000}]
[null,null,null,null,null,null,"Извор финансирања за функцију: 920"]
[null,null,null,null,null,null,"01 - Приходи из буџета",{"$f":"H1670","v":10360000},null,{"$f":"J1670","v":10360000}]
[null,null,null,null,null,null,"Укупно за функцију: 920",{"$f":"H1673","v":10360000},null,{"$f":"J1673","v":10360000}]
[]
[5,"5.00.05",null,null,null,null,"ЦЕНТАР ЗА СОЦИЈАЛНИ РАД"]
[null,null,"0901",null,null,null,"ПРОГРАМ 11: СОЦИЈАЛНА И ДЕЧЈА ЗАШТИТА"]
[null,null,"0901-0001",null,null,null,"ПА: Једнократне  помоћи и други облици помоћи"]
[null,null,null,"070",null,null,"Социјална заштита некласификована на другом месту, помоћ угроженом становништву"]
[null,null,null,null,51,463,"Текући трансфери осталим нивоима власти",{"$f":"H1681+H1682+H1683+H1684+H1685+H1686","v":7550000},null,{"$f":"J1681+J1682+J1683+J1684+J1685+J1686","v":7550000}]
[null,null,null,null,null,null,"421- Стални трошкови",212000,null,{"$f":"H1681","v":212000}]
[null,null,null,null,null,null,"423-Услуге по уговору",2028000,null,2028000]
[null,null,null,null,null,null,"425-Текуће поправке и одржавање",90000,null,90000]
[null,null,null,null,null,null,"426-Материјал",315000,null,315000]
[null,null,null,null,null,null,"472-Једнократне помоћи ",4900000,null,4900000]
[null,null,null,null,null,null,"483-Новчане казне и пенали по решењу судова",5000,null,5000]
[null,null,null,null,null,null,"Извор финансирања за ПА: 0901-0001"]
[null,null,null,null,null,null,"01 - Приходи из буџета",{"$f":"H1680","v":7550000},null,{"$f":"H1688","v":7550000}]
[null,null,null,null,null,null,"Укупно за функцију 0ПА: 0901-0001",{"$f":"H1688","v":7550000},null,{"$f":"J1688","v":7550000}]
[null,null,null,null,null,null,"Извор финансирања за функцију: 090"]
[null,null,null,null,null,null,"01 - Приходи из буџета",{"$f":"H1688","v":7550000},null,{"$f":"J1688","v":7550000}]
[null,null,null,null,null,null,"Укупно за функцију: 090",{"$f":"H1691","v":7550000},null,{"$f":"J1691","v":7550000}]
[]
[5,"5.00.06",null,null,null,null,"ДОМ ЗДРАВЉА ЧАЈЕТИНА"]
[null,null,"1801",null,null,null,"ПРОГРАМ 12: ПРИМАРНА ЗДРАВСТВЕНА ЗАШТИТА"]
[null,null,"1801-0001",null,null," ","ПА: Функционисање установа примарне здравствене заштите"]
[null,null,null,760,null,null,"Здравство некласификовано на другом месту"]
[null,null,null,null,156,464,"Текући и капитални трансфери осталим нивоима власти",9400000,null,{"$f":"H1698","v":9400000}]
[null,null,null,null,null,null,"Извор финансирања за ПА: 1801-0001"]
[null,null,null,null,null,null,"01 - Приходи из буџета",{"$f":"H1698","v":9400000},null,{"$f":"J1698","v":9400000}]
[null,null,null,null,null,null,"Свега за ПА: 1801-0001",{"$f":"H1700","v":9400000},null,{"$f":"J1700","v":9400000}]
[]
[]
[]
[]
[]
[]
[]
[null,null,null,null,null,null,"01 - Приходи из буџета"]
[null,null,null,null,null,null,"Функција 920: "]
[null,null,null,null,null,null,"Извор финансирања за програмску активност 2003-0001"]
[]
[]
[null,null,null,null,null,null,"Извор финансирања за ПА: 1801-0001"]
[null,null,null,null,null,null,"01 - Приходи из буџета",{"$f":"H1698","v":9400000},null,{"$f":"J1698","v":9400000}]
[null,null,null,null,null,null,"Укупно за ПА: 1801-0001",{"$f":"H1715","v":9400000},null,{"$f":"J1715","v":9400000}]
[null,null,null,null,null,null,"Извор финансирања за функцију: 760"]
[null,null,null,null,null,null,"01 - Приходи из буџета",{"$f":"H1700","v":9400000},null,{"$f":"J1700","v":9400000}]
[null,null,null,null,null,null,"укупно за функцију: 760",{"$f":"H1701","v":9400000},null,{"$f":"J1718","v":9400000}]
[]
[5,"5.01",null,null,null,null,"ПРЕДШКОЛСКА УСТАНОВА\"РАДОСТ\" ЧАЈЕТИНА"]
[null,null,"2001",null,null,null,"ПРОГРАМ 8: ПРЕДШКОЛСКО ВАСПИТАЊЕ"]
[null,null,"2001-0001",null,null,null,"ПА: Функционисање предшколских установа"]
[null,null,null,911,null,null,"Предшколско образовање"]
[]
[]
[]
[]
[]
[]
[]
[]
[]
[]
[]
[]
[null,null,"2001",null,null,null,"ПРОГРАМ 8: ПРЕДШКОЛСКО ВАСПИТАЊЕ И ОБРАЗОВАЊЕ"]
[null,null,"2001-0001",null,null,null,"ПА: Функционисање предшколских установа"]
[null,null,null,911,null,null,"Предшколско образовање"]
[null,null,null,null,176,"411","Плате, додаци и накнаде запослених-зараде",62541000,null,{"$f":"H1740+I1740","v":62541000}]
[null,null,null,null,177,412,"Социјални доприноси на терет послодавца",10414000,null,{"$f":"H1741+I1741","v":10414000}]
[null,null,null,null,178,413,"Накнаде у натури",350000,null,{"$f":"H1742","v":350000}]
[null,null,null,null,179,414,"Социјална давања запосленима",4750000,281000,{"$f":"H1743+I1743","v":5031000}]
[null,null,null,null,172,"415","Накнаде трошкова за запослене-превоз",3600000,null,{"$f":"H1744+I1744","v":3600000}]
[null,null,null,null,173,416,"Награде запосленима и остали посебни расходи-јубиларне награде",1400000,null,1400000]
[null,null,null,null,174,421,"Стални трошкови",10390000,null,10390000]
[null,null,null,null,null,null,null,null,null,0]
[null,null,null,null,null,null,null,null,null,0]
[null,null,null,null,null,null,null,null,null,0]
[null,null,null,null,null,null,null,null,null,0]
[null,null,null,null,null,null,"01 - Приходи из буџета",null,null,0]
[null,null,null,null,null,null,"Свега за програмску активност 0901-0006",null,null,0]
[null,null,null,null,null,null,"Извор финансирања за  главу 4.19",null,null,0]
[null,null,null,null,null,null,"01 - Приходи из буџета",null,null,0]
[null,null,null,null,null,null,"Укупно за  главу 4.19",null,null,0]
[null,null,null,null,null,"01",null,8500000,null,8500000]
[null,null,null,null,null,null,null,8500000,null,8500000]
[null,null,null,null,null,null,null,null,null,0]
[null,null,null,null,null,null,null,null,null,0]
[null,null,null,null,null,null,null,null,null,0]
[null,null,null,null,null,null,null,null,null,0]
[null,null,null,null,null,null,null,null,null,0]
[null,null,null,null,null,null,null,null,null,0]
[null,null,null,null,null,null,null,null,null,0]
[null,null,null,null,null,null,null,null,null,0]
[null,null,null,null,null,null,"Приходи из буџета",null,null,0]
[null,null,null,null,null,null,"Свега за програмску активност 2003-0001",null,null,0]
[null,null,null,null,null,null,null,null,null,0]
[null,null,null,null,null,null,null,null,null,0]
[null,null,null,null,null,null,null,null,null,0]
[null,null,null,null,null,null,null,null,null,0]
[null,null,null,null,null,null,null,null,null,0]
[null,null,null,null,null,null,null,null,null,0]
[null,null,null,null,null,null,null,null,null,0]
[null,null,null,null,null,null,null,null,null,0]
[null,null,null,null,null,null,null,null,null,0]
[null,null,null,null,null,null,null,null,null,0]
[null,null,null,null,null,null,null,null,null,0]
[null,null,null,null,null,null,null,null,null,0]
[null,null,null,null,180,415,"Накнаде трошкова за запослене - превоз",3600000,null,3600000]
[null,null,null,null,181,416,"Награде за запослене и остали посебни расходи-јубиларне награде",1300000,null,1300000]
[null,null,null,null,174,421,"Стални трошкови",11200000,null,11200000]
[null,null,null,null,175,422,"Трошкови службених путовања",400000,null,400000]
[null,null,null,null,176,423,"Услуге по уговору",11200000,null,{"$f":"H1784","v":11200000}]
[null,null,null,null,null,null,null,null,null,0]
[null,null,null,null,null,null,null,null,null,0]
[null,null,null,null,null,null,null,null,null,0]
[null,null,null,null,null,null,null,null,null,0]
[null,null,null,null,null,null,null,null,null,0]
[null,null,null,null,null,null,null,null,null,0]
[null,null,null,null,null,null,null,null,null,0]
[null,null,null,null,null,null,null,null,null,0]
[null,null,null,null,null,null,null,null,null,0]
[null,null,null,null,null,null,null,null,null,0]
[null,null,null,null,null,null,null,null,null,0]
[null,null,null,null,null,null,null,null,null,0]
[null,null,null,null,182,421,"Стални трошкови",11200000,null,11200000]
[null,null,null,null,183,422,"Трошкови службених путовања",670000,null,670000]
[null,null,null,null,184,423,"Услуге по уговору",11570000,null,11570000]
[null,null,null,null,177,424,"Специјализоване услуге",1040000,null,1040000]
[null,null,null,null,178,425,"Текеуће поправке и одржавање",1870000,2468988,4338988]
[null,null,null,null,179,426,"Материјал",5740000,4700000,10440000]
[null,null,null,null,null,null,null,null,null,0]
[null,null,null,null,null,null,null,null,null,0]
[null,null,null,null,null,null,null,null,null,0]
[null,null,null,null,null,null,null,null,null,{"$f":"H1806+I1806","v":0}]
[null,null,null,null,null,null,null,null,null,0]
[null,null,null,null,null,null,null,null,null,0]
[null,null,null,null,null,null,null,null,null,0]
[null,null,null,null,null,null,null,null,null,0]
[null,null,null,null,null,null,null,null,null,0]
[null,null,null,null,null,null,null,null,null,0]
[null,null,null,null,null,null,null,null,null,0]
[null,null,null,null,null,null,null,null,null,0]
[null,null,null,null,null,null,null,null,null,0]
[null,null,null,null,null,null,null,null,null,0]
[null,null,null,null,null,null,null,null,null,0]
[null,null,null,null,null,null,null,null,null,0]
[null,null,null,null,185,424,"Специјализоване услуге",1040000,null,1040000]
[null,null,null,null,178,425,"Текуће поправке и одржавање",3270000,null,3270000]
[null,null,null,null,null,null,null,null,null,0]
[null,null,null,null,180,482,"Порези, обавезне таксе, пенали и казне",128000,null,128000]
[null,null,null,null,null,null,null,null,null,0]
[null,null,null,null,null,null,null,null,null,0]
[null,null,null,null,null,null,null,null,null,0]
[null,null,null,null,null,null,null,null,null,0]
[null,null,null,null,null,null,null,null,null,0]
[null,null,null,null,null,null,null,null,null,0]
[null,null,null,null,null,null,null,null,null,0]
[null,null,null,null,null,null,null,null,null,0]
[null,null,null,null,null,null,null,null,null,0]
[null,null,null,null,null,null,null,null,null,0]
[null,null,null,null,null,null,null,null,null,0]
[null,null,null,null,null,null,null,null,null,0]
[null,null,null,null,null,null,null,null,null,0]
[null,null,null,null,null,null,null,null,null,0]
[null,null,null,null,null,null,null,null,null,0]
[null,null,null,null,null,null,null,null,null,0]
[null,null,null,null,null,null,null,null,null,0]
[null,null,null,null,null,null,null,null,null,0]
[null,null,null,null,null,null,null,null,null,0]
[null,null,null,null,null,null,null,null,null,0]
[null,null,null,null,null,null,null,null,null,0]
[null,null,null,null,null,null,null,null,null,0]
[null,null,null,null,null,null,null,null,null,0]
[null,null,null,null,null,null,null,null,null,0]
[null,null,null,null,null,null,null,null,null,0]
[null,null,null,null,null,null,null,null,null,0]
[null,null,null,null,null,null,null,null,null,0]
[null,null,null,null,null,null,null,null,null,0]
[null,null,null,null,null,null,null,null,null,0]
[null,null,null,null,null,null,null,null,null,0]
[null,null,null,null,null,null,null,null,null,0]
[null,null,null,null,null,null,null,null,null,0]
[null,null,null,null,null,null,null,null,null,0]
[null,null,null,null,null,null,null,null,null,0]
[null,null,null,null,null,null,null,null,null,0]
[null,null,null,null,null,null,null,null,null,0]
[null,null,null,null,null,null,null,null,null,0]
[null,null,null,null,186,425,"Текуће поправке и одржавање",3270000,null,3270000]
[null,null,null,null,187,426,"Материјал",6780000,4700000,11480000]
[null,null,null,null,180,482,"Порези, обавезне таксе, пенали и казне",135000,null,135000]
[null,null,null,null,181,511,"Зграде и грађевински објекти",3000000,null,3000000]
[null,null,null,null,182,512,"Машине и опрема",1200000,null,1200000]
[]
[]
[]
[]
[]
[]
[]
[]
[]
[]
[]
[]
[null,null,null,null,188,482,"Порези, обавезне таксе, пенали и казне",135000,null,{"$f":"H1877","v":135000}]
[null,null,null,null,181,511,"Зграде  и грађевински објекти",1500000,null,{"$f":"H1878","v":1500000}]
[]
[]
[]
[]
[]
[]
[]
[]
[]
[]
[]
[]
[]
[]
[null,null,null,null,189,511,"Зграде и грађевински објекти",1500000,null,{"$f":"H1893","v":1500000}]
[null,null,null,null,190,512,"Машине и опрема",1600000,null,{"$f":"H1894","v":1600000}]
[null,null,null,null,null,null,"Извор финансирања за ПА: 2001-0001"]
[null,null,null,null,null,null,"01 - Приходи из буџета",{"$f":"H1740+H1741+H1742+H1743+H1744+H1781+H1782+H1798+H1799+H1800+H1820+H1861+H1862+H1878+H1894","v":120720000},null,{"$f":"H1896","v":120720000}]
[null,null,null,null,null,null,"07 - Приходи од Републике",null,{"$f":"I1743+I1820+I1861","v":4981000},{"$f":"I1897","v":4981000}]
[null,null,null,null,null,null,"Укупно за ПА: 2001-0001",{"$f":"H1896","v":120720000},{"$f":"I1897","v":4981000},{"$f":"J1896+J1897","v":125701000}]
[null,null,null,null,null,null,"Извор финансирања за функцију: 911"]
[null,null,null,null,null,null,"01 - Приходи из буџета",{"$f":"H1896","v":120720000},null,{"$f":"J1896","v":120720000}]
[null,null,null,null,null,null,"07 - Приходи од Републике",null,{"$f":"I1897","v":4981000},{"$f":"J1897","v":4981000}]
[null,null,null,null,null,null,"Укупно за функцију: 911",{"$f":"H1896","v":120720000},{"$f":"I1901","v":4981000},{"$f":"J1898","v":125701000}]
[]
[5,"5.02",null,null,null,null,"БИБЛИОТЕКА ЉУБИША Р. ЂЕНИЋ"]
[null,null,"1201",null,null,null,"ПРОГРАМ 13: РАЗВОЈ КУЛТУРЕ"]
[null,null,"1201-0001",null,null,null,"ПА: Функционисање локалних установа културе"]
[null,null,null,820,null,null,"Услуге културе"]
[]
[]
[]
[]
[]
[]
[]
[]
[]
[]
[]
[]
[null,null,"1201",null,null,null,"ПРОГРАМ 13: РАЗВОЈ КУЛТУРЕ"]
[null,null,"1201-0001",null,null,null,"ПА: Функционисање локалних установа културе"]
[null,null,null,820,null,null,"Услуге културе"]
[null,null,null,null,191,"411","Плате, додаци и накнаде запослених-зараде",9750000,null,{"$f":"H1923","v":9750000}]
[null,null,null,null,192,412,"Социјални доприноси на терет послодавца",1624000,null,{"$f":"H1924","v":1624000}]
[null,null,null,null,193,413,"Накнаде у натури ",100000,null,{"$f":"H1925","v":100000}]
[null,null,null,null,194,414,"Социјална давања запосленима",600000,null,600000]
[null,null,null,null,187,"415","Накнаде трошкова за запослене-превоз",500000,null,500000]
[null,null,null,null,188,"416 ","Награде за запослене и остали посебни расходи - јубиларне награде",100000,null,100000]
[null,null,null,null,189,421,"Стални трошкови",3030000,null,3030000]
[null,null,null,null,null,null,null,null,null,0]
[null,null,null,null,null,null,null,null,null,0]
[null,null,null,null,null,null,null,null,null,0]
[null,null,null,null,null,null,null,null,null,0]
[null,null,null,null,null,null,"01 - Приходи из буџета",null,null,0]
[null,null,null,null,null,null,"Свега за програмску активност 0901-0006",null,null,0]
[null,null,null,null,null,null,"Извор финансирања за  главу 4.19",null,null,0]
[null,null,null,null,null,null,"01 - Приходи из буџета",null,null,0]
[null,null,null,null,null,null,"Укупно за  главу 4.19",null,null,0]
[null,null,null,null,null,"01",null,8500000,null,8500000]
[null,null,null,null,null,null,null,8500000,null,8500000]
[null,null,null,null,null,null,null,null,null,0]
[null,null,null,null,null,null,null,null,null,0]
[null,null,null,null,null,null,null,null,null,0]
[null,null,null,null,null,null,null,null,null,0]
[null,null,null,null,null,null,null,null,null,0]
[null,null,null,null,null,null,null,null,null,0]
[null,null,null,null,null,null,null,null,null,0]
[null,null,null,null,null,null,null,null,null,0]
[null,null,null,null,null,null,"Приходи из буџета",null,null,0]
[null,null,null,null,null,null,"Свега за програмску активност 2003-0001",null,null,0]
[null,null,null,null,null,null,null,null,null,0]
[null,null,null,null,null,null,null,null,null,0]
[null,null,null,null,null,null,null,null,null,0]
[null,null,null,null,null,null,null,null,null,0]
[null,null,null,null,null,null,null,null,null,0]
[null,null,null,null,null,null,null,null,null,0]
[null,null,null,null,null,null,null,null,null,0]
[null,null,null,null,null,null,null,null,null,0]
[null,null,null,null,null,null,null,null,null,0]
[null,null,null,null,null,null,null,null,null,0]
[null,null,null,null,null,null,null,null,null,0]
[null,null,null,null,null,null,null,null,null,0]
[null,null,null,null,195,415,"Накнаде трошкова за запослене - превоз",500000,null,500000]
[null,null,null,null,196,416,"Награде за запослене и остали посебни расходи-јубиларне награде",150000,null,150000]
[null,null,null,null,189,421,"Стални трошкови",3250000,null,3250000]
[null,null,null,null,190,422,"Трошкови службених путовања",350000,null,{"$f":"H1966","v":350000}]
[null,null,null,null,191,423,"Услуге по уговору",6800000,null,6800000]
[null,null,null,null,null,null,null,null,null,0]
[null,null,null,null,null,null,null,null,null,0]
[null,null,null,null,null,null,null,null,null,0]
[null,null,null,null,null,null,null,null,null,0]
[null,null,null,null,null,null,null,null,null,0]
[null,null,null,null,null,null,null,null,null,0]
[null,null,null,null,null,null,null,null,null,0]
[null,null,null,null,null,null,null,null,null,0]
[null,null,null,null,null,null,null,null,null,0]
[null,null,null,null,null,null,null,null,null,0]
[null,null,null,null,null,null,null,null,null,0]
[null,null,null,null,null,null,null,null,null,0]
[null,null,null,null,197,421,"Стални трошкови",3250000,null,3250000]
[null,null,null,null,198,422,"Трошкови службених путовања",350000,null,350000]
[null,null,null,null,199,423,"Услуге по уговору",8050000,null,8050000]
[null,null,null,null,192,424,"Специјализоване услуге",400000,null,400000]
[null,null,null,null,193,425,"Текеуће поправке и одржавање",450000,null,450000]
[null,null,null,null,194,426,"Материјал",800000,null,800000]
[null,null,null,null,null,null,null,null,null,0]
[null,null,null,null,null,null,null,null,null,0]
[null,null,null,null,null,null,null,null,null,{"$f":"H1988","v":0}]
[null,null,null,null,null,null,null,null,null,0]
[null,null,null,null,null,null,null,null,null,0]
[null,null,null,null,null,null,null,null,null,0]
[null,null,null,null,null,null,null,null,null,0]
[null,null,null,null,null,null,null,null,null,0]
[null,null,null,null,null,null,null,null,null,0]
[null,null,null,null,null,null,null,null,null,0]
[null,null,null,null,null,null,null,null,null,0]
[null,null,null,null,null,null,null,null,null,0]
[null,null,null,null,null,null,null,null,null,0]
[null,null,null,null,null,null,null,null,null,0]
[null,null,null,null,null,null,null,null,null,0]
[null,null,null,null,null,null,null,null,null,0]
[null,null,null,null,200,424,"Специјализоване услуге",400000,null,400000]
[null,null,null,null,193,425,"Текуће поправке и одржавање",750000,null,750000]
[null,null,null,null,null,null,null,null,null,0]
[null,null,null,null,195,482,"Порези, обавезне таксе, пенали и казне",20000,null,20000]
[null,null,null,null,null,null,null,null,null,0]
[null,null,null,null,null,null,null,null,null,0]
[null,null,null,null,null,null,null,null,null,0]
[null,null,null,null,null,null,null,null,null,0]
[null,null,null,null,null,null,null,null,null,0]
[null,null,null,null,null,null,null,null,null,0]
[null,null,null,null,null,null,null,null,null,0]
[null,null,null,null,null,null,null,null,null,0]
[null,null,null,null,null,null,null,null,null,0]
[null,null,null,null,null,null,null,null,null,0]
[null,null,null,null,null,null,null,null,null,0]
[null,null,null,null,null,null,null,null,null,0]
[null,null,null,null,null,null,null,null,null,0]
[null,null,null,null,null,null,null,null,null,0]
[null,null,null,null,null,null,null,null,null,0]
[null,null,null,null,null,null,null,null,null,0]
[null,null,null,null,null,null,null,null,null,0]
[null,null,null,null,null,null,null,null,null,0]
[null,null,null,null,null,null,null,null,null,0]
[null,null,null,null,null,null,null,null,null,0]
[null,null,null,null,null,null,null,null,null,0]
[null,null,null,null,null,null,null,null,null,0]
[null,null,null,null,null,null,null,null,null,0]
[null,null,null,null,null,null,null,null,null,0]
[null,null,null,null,null,null,null,null,null,0]
[null,null,null,null,null,null,null,null,null,0]
[null,null,null,null,null,null,null,null,null,0]
[null,null,null,null,null,null,null,null,null,0]
[null,null,null,null,null,null,null,null,null,0]
[null,null,null,null,null,null,null,null,null,0]
[null,null,null,null,null,null,null,null,null,0]
[null,null,null,null,null,null,null,null,null,0]
[null,null,null,null,null,null,null,null,null,0]
[null,null,null,null,null,null,null,null,null,0]
[null,null,null,null,null,null,null,null,null,0]
[null,null,null,null,null,null,null,null,null,0]
[null,null,null,null,null,null,null,null,null,0]
[null,null,null,null,201,425,"Текуће поправке и одржавање",750000,null,750000]
[null,null,null,null,194,426,"Материјал",800000,null,800000]
[null,null,null,null,null,null,null,null,null,0]
[null,null,null,null,196,512,"Машине и опрема",500000,null,500000]
[null,null,null,null,null,null,null,null,null,0]
[null,null,null,null,null,null,null,null,null,0]
[null,null,null,null,null,null,null,null,null,0]
[null,null,null,null,null,null,null,null,null,0]
[null,null,null,null,null,null,null,null,null,0]
[null,null,null,null,null,null,null,null,null,{"$f":"H2052","v":0}]
[null,null,null,null,null,null,null,null,null,0]
[null,null,null,null,null,null,null,null,null,0]
[null,null,null,null,null,null,null,null,null,0]
[null,null,null,null,null,null,null,null,null,0]
[null,null,null,null,null,null,null,null,null,0]
[null,null,null,null,null,null,null,null,null,0]
[null,null,null,null,202,426,"Материјал",800000,null,800000]
[null,null,null,null,203,482,"Порези, обавезне таксе, пенали и казне",20000,null,20000]
[null,null,null,null,196,512,"Машине и опрема",1700000,null,1700000]
[null,null,null,null,197,515,"Нематеријална имовина-књиге",900000,null,900000]
[]
[]
[]
[]
[]
[]
[]
[]
[]
[]
[]
[]
[]
[null,null,null,null,204,512,"Машине и опрема",1700000,null,{"$f":"H2076","v":1700000}]
[null,null,null,null,205,515,"Нематеријална имовина - књиге",800000,null,{"$f":"H2077","v":800000},null,null," "]
[null,null,null,null,null,null,"Извор финансирања за ПА: 1201-0001"]
[null,null,null,null,null,null,"01 - Приходи из буџета",{"$f":"H1923+H1924+H1925+H1926+H1927+H1964+H1965+H1981+H1982+H1983+H2003+H2044+H2060+H2061+H2077","v":28844000},null,{"$f":"J1923+J1924+J1925+J1926+J1927+J1964+J1965+J1981+J1982+J1983+J2003+J2044+J2060+J2061+J2077","v":28844000}]
[null,null,null,null,null,null,"Свега за ПА: 1201-0001",{"$f":"H1923+H1924+H1925+H1926+H1963+H1964+H1980+H1981+H1982+H2002+H2043+H2059+H2060+H2076+H2077","v":28844000},null,{"$f":"J2079","v":28844000}]
[null,null,null,null,null,null,"Извор финансирања за функцију: 820"]
[null,null,null,null,null,null,"01 - Приходи из буџета",{"$f":"H2079","v":28844000},null,{"$f":"J2079","v":28844000}]
[null,null,null,null,null,null,"Укупно за функцију: 820",{"$f":"H2080","v":28844000},null,{"$f":"J2080","v":28844000}]
[]
[5,"5.03",null,null,null,null,"ТУРИСТИЧКА ОРГАНИЗАЦИЈА ЗЛАТИБОР"]
[null,null,"1502",null,null,null,"ПРОГРАМ 4: РАЗВОЈ ТУРИЗМА"]
[null,null,"1502-0001",null,null,null,"ПА: Управљање развојем туризма"]
[null,null,null,473,null,null,"Туризам"]
[]
[]
[]
[]
[]
[]
[]
[]
[]
[]
[]
[]
[null,null,"1502",null,null,null,"ПРОГРАМ 4: РАЗВОЈ ТУРИЗМА"]
[null,null,"1502-0001",null,null,null,"ПА: Управљање развојем туризма"]
[null,null,null,473,null,null,"Туризам"]
[null,null,null,null,206,"411","Плате, додаци и накнаде запослених-зараде",13785000,1100000,{"$f":"H2104+I2104","v":14885000}]
[null,null,null,null,207,412,"Социјални доприноси на терет послодавца",2279000,200000,{"$f":"H2105+I2105","v":2479000}]
[null,null,null,null,208,413,"накнаде у натури",300000,null,{"$f":"H2106+I2106","v":300000}]
[null,null,null,null,209,414,"Социјална давања запосленима",1500000,null,1500000]
[null,null,null,null,202,"415","Накнаде трошкова за запослене-превоз",1000000,null,1000000]
[null,null,null,null,203,416,"Награде запосленима и остали посебни расходи-јубиларне награде",99000,null,99000]
[null,null,null,null,204,421,"Стални трошкови",11000000,null,11000000]
[null,null,null,null,null,null,null,null,null,0]
[null,null,null,null,null,null,null,null,null,0]
[null,null,null,null,null,null,null,null,null,0]
[null,null,null,null,null,null,null,null,null,0]
[null,null,null,null,null,null,"01 - Приходи из буџета",null,null,0]
[null,null,null,null,null,null,"Свега за програмску активност 0901-0006",null,null,0]
[null,null,null,null,null,null,"Извор финансирања за  главу 4.19",null,null,0]
[null,null,null,null,null,null,"01 - Приходи из буџета",null,null,0]
[null,null,null,null,null,null,"Укупно за  главу 4.19",null,null,0]
[null,null,null,null,null,"01",null,8500000,null,8500000]
[null,null,null,null,null,null,null,8500000,null,8500000]
[null,null,null,null,null,null,null,null,null,0]
[null,null,null,null,null,null,null,null,null,0]
[null,null,null,null,null,null,null,null,null,0]
[null,null,null,null,null,null,null,null,null,0]
[null,null,null,null,null,null,null,null,null,0]
[null,null,null,null,null,null,null,null,null,0]
[null,null,null,null,null,null,null,null,null,0]
[null,null,null,null,null,null,null,null,null,0]
[null,null,null,null,null,null,"Приходи из буџета",null,null,0]
[null,null,null,null,null,null,"Свега за програмску активност 2003-0001",null,null,0]
[null,null,null,null,null,null,null,null,null,0]
[null,null,null,null,null,null,null,null,null,0]
[null,null,null,null,null,null,null,null,null,0]
[null,null,null,null,null,null,null,null,null,0]
[null,null,null,null,null,null,null,null,null,0]
[null,null,null,null,null,null,null,null,null,0]
[null,null,null,null,null,null,null,null,null,0]
[null,null,null,null,null,null,null,null,null,0]
[null,null,null,null,null,null,null,null,null,0]
[null,null,null,null,null,null,null,null,null,0]
[null,null,null,null,null,null,null,null,null,0]
[null,null,null,null,null,null,null,null,null,0]
[null,null,null,null,210,415,"Накнаде трошкова за запослене - превоз",1000000,null,1000000]
[null,null,null,null,211,416,"Награде за запослене и остали посебни расходи-јубиларне награде",200000,null,200000]
[null,null,null,null,204,421,"Стални трошкови",10050000,null,10050000]
[null,null,null,null,205,422,"Трошкови службених путовања",300000,null,300000]
[null,null,null,null,206,423,"Услуге по уговору",17400000,null,17400000]
[null,null,null,null,null,null,null,null,null,0]
[null,null,null,null,null,null,null,null,null,0]
[null,null,null,null,null,null,null,null,null,0]
[null,null,null,null,null,null,null,null,null,0]
[null,null,null,null,null,null,null,null,null,0]
[null,null,null,null,null,null,null,null,null,0]
[null,null,null,null,null,null,null,null,null,0]
[null,null,null,null,null,null,null,null,null,0]
[null,null,null,null,null,null,null,null,null,0]
[null,null,null,null,null,null,null,null,null,0]
[null,null,null,null,null,null,null,null,null,0]
[null,null,null,null,null,null,null,null,null,0]
[null,null,null,null,212,421,"Стални трошкови",10050000,null,10050000]
[null,null,null,null,213,422,"Трошкови службених путовања",300000,null,300000]
[null,null,null,null,214,423,"Услуге по уговору",21676000,200000,21876000]
[null,null,null,null,207,424,"Специјализоване услуге",450000,null,450000]
[null,null,null,null,208,425,"Текеуће поправке и одржавање",1600000,null,{"$f":"H2165+I2165","v":1600000}]
[null,null,null,null,209,426,"Материјал",3000000,null,3000000]
[null,null,null,null,null,null,null,null,null,0]
[null,null,null,null,null,null,null,null,null,{"$f":"H2168+I2168","v":0}]
[null,null,null,null,null,null,null,null,null,0]
[null,null,null,null,null,null,null,null,null,0]
[null,null,null,null,null,null,null,null,null,0]
[null,null,null,null,null,null,null,null,null,0]
[null,null,null,null,null,null,null,null,null,0]
[null,null,null,null,null,null,null,null,null,0]
[null,null,null,null,null,null,null,null,null,0]
[null,null,null,null,null,null,null,null,null,0]
[null,null,null,null,null,null,null,null,null,0]
[null,null,null,null,null,null,null,null,null,0]
[null,null,null,null,null,null,null,null,null,0]
[null,null,null,null,null,null,null,null,null,0]
[null,null,null,null,null,null,null,null,null,0]
[null,null,null,null,null,null,null,null,null,0]
[null,null,null,null,215,424,"Специјализоване услуге",450000,null,450000]
[null,null,null,null,208,425,"Текуће поправке и одржавање",1500000,null,1500000]
[null,null,null,null,null,null,null,null,null,0]
[null,null,null,null,210,482,"Порези, обавезне таксе, пенали и казне",6500000,null,6500000]
[null,null,null,null,null,null,null,null,null,0]
[null,null,null,null,null,null,null,null,null,0]
[null,null,null,null,null,null,null,null,null,0]
[null,null,null,null,null,null,null,null,null,0]
[null,null,null,null,null,null,null,null,null,0]
[null,null,null,null,null,null,null,null,null,0]
[null,null,null,null,null,null,null,null,null,0]
[null,null,null,null,null,null,null,null,null,0]
[null,null,null,null,null,null,null,null,null,0]
[null,null,null,null,null,null,null,null,null,0]
[null,null,null,null,null,null,null,null,null,0]
[null,null,null,null,null,null,null,null,null,0]
[null,null,null,null,null,null,null,null,null,0]
[null,null,null,null,null,null,null,null,null,0]
[null,null,null,null,null,null,null,null,null,0]
[null,null,null,null,null,null,null,null,null,0]
[null,null,null,null,null,null,null,null,null,0]
[null,null,null,null,null,null,null,null,null,0]
[null,null,null,null,null,null,null,null,null,0]
[null,null,null,null,null,null,null,null,null,0]
[null,null,null,null,null,null,null,null,null,0]
[null,null,null,null,null,null,null,null,null,0]
[null,null,null,null,null,null,null,null,null,0]
[null,null,null,null,null,null,null,null,null,0]
[null,null,null,null,null,null,null,null,null,0]
[null,null,null,null,null,null,null,null,null,0]
[null,null,null,null,null,null,null,null,null,0]
[null,null,null,null,null,null,null,null,null,0]
[null,null,null,null,null,null,null,null,null,0]
[null,null,null,null,null,null,null,null,null,0]
[null,null,null,null,null,null,null,null,null,0]
[null,null,null,null,null,null,null,null,null,0]
[null,null,null,null,null,null,null,null,null,0]
[null,null,null,null,null,null,null,null,null,0]
[null,null,null,null,null,null,null,null,null,0]
[null,null,null,null,null,null,null,null,null,0]
[null,null,null,null,null,null,null,null,null,0]
[null,null,null,null,216,425,"Текуће поправке и одржавање",1500000,null,1500000]
[null,null,null,null,217,426,"Материјал",3710000,null,3710000]
[null,null,null,null,218,482,"Порези, обавезне таксе, пенали и казне",6550000,null,6550000]
[null,null,null,null,211,483,"Новчане казне и пенали по решењу судова",100000,null,100000]
[null,null,null,null,212,511,"Зграде и грађевински објекти",3621000,null,3621000]
[null,null,null,null,213,512,"Машине и опрема",200000,null,{"$f":"H2229+I2229","v":200000}]
[]
[]
[]
[]
[]
[]
[]
[]
[]
[]
[]
[]
[null,null,null,null,219,483,"Новчане казне и пенали по решењу судова",100000,null,{"$f":"H2242","v":100000}]
[null,null,null,null,212,511,"Зграде и грађевински објекти",2700000,null,{"$f":"H2243","v":2700000}]
[]
[null,null,null,null,214,515,"Нематеријална имовина",2000000,null,{"$f":"H2245+I2245","v":2000000}]
[]
[]
[]
[]
[]
[]
[]
[]
[]
[]
[]
[]
[null,null,null,null,220,511,"Зграде и грађевински објекти",2700000,null,{"$f":"H2258","v":2700000}]
[null,null,null,null,221,512,"Машине и опрема",4800000,null,{"$f":"H2259+I2259","v":4800000}]
[null,null,null,null,222,515,"Нематеријална имовина",500000,500000,{"$f":"H2260+I2260","v":1000000}]
[null,null,null,null,223,523,"Залихе робе за даљу продају",1000000,null,{"$f":"H2261+I2261","v":1000000}]
[null,null,null,null,null,null,"Извор финансирања за ПА: 1502-0001"]
[null,null,null,null,null,null,"01 - Приходи из буџета",{"$f":"H2104+H2105+H2106+H2107+H2108+H2145+H2146+H2162+H2163+H2164+H2184+H2225+H2226+H2227+H2243+H2259+H2260+H2261","v":72400000},null,{"$f":"H2263","v":72400000}]
[null,null,null,null,null,null,"07 - Приходи од Републике",null,{"$f":"I2104+I2105+I2163+I2259+I2260","v":2000000},{"$f":"I2264","v":2000000}]
[null,null,null,null,null,null,"Укупно за ПА: 1502-0001",{"$f":"H2263","v":72400000},{"$f":"I2264","v":2000000},{"$f":"J2104+J2105+J2106+J2107+J2108+J2145+J2146+J2162+J2163+J2164+J2184+J2225+J2226+J2227+J2243+J2259+J2260+J2261","v":74400000}]
[]
[null,null,"1502-0002",null,null,null,"ПА: Промоција туристичке понуде"]
[null,null,null,473,null,null,"Туризам"]
[]
[]
[]
[]
[]
[]
[]
[]
[]
[]
[]
[]
[]
[]
[]
[]
[]
[]
[]
[]
[]
[]
[]
[]
[]
[]
[]
[]
[null,null,"1502-0002",null,null,null,"ПА: Промоција туристичке понуде"]
[]
[null,null,null,null,216,"421","Стални трошкови",2500000,null,{"$f":"H2299+I2299","v":2500000}]
[null,null,null,null,null,null,null,null,null,{"$f":"H2300+I2300","v":0}]
[null,null,null,null,null,null,null,null,null,0]
[null,null,null,null,null,null,null,null,null,0]
[null,null,null,null,null,null,null,null,null,0]
[null,null,null,null,null,null,null,null,null,0]
[null,null,null,null,null,null,null,null,null,0]
[null,null,null,null,null,null,null,null,null,0]
[null,null,null,null,null,null,null,null,null,0]
[null,null,null,null,null,null,null,null,null,0]
[null,null,null,null,null,null,null,null,null,0]
[null,null,null,null,null,null,null,null,null,0]
[null,null,null,null,null,null,null,null,null,0]
[null,null,null,null,null,null,null,null,null,0]
[null,null,null,null,null,null,null,null,null,0]
[null,null,null,null,null,null,null,null,null,0]
[null,null,null,null,null,null,null,null,null,0]
[null,null,null,null,null,null,null,null,null,0]
[null,null,null,null,null,null,null,null,null,0]
[null,null,null,null,null,null,null,null,null,0]
[null,null,null,null,null,null,null,null,null,0]
[null,null,null,null,null,null,null,null,null,0]
[null,null,null,null,null,null,null,null,null,0]
[null,null,null,null,null,null,null,null,null,0]
[null,null,null,null,null,null,null,null,null,0]
[null,null,null,null,null,null,null,null,null,0]
[null,null,null,null,null,null,null,null,null,0]
[null,null,"1502-0002",null,null,null,"ПА: Промоција туристичке понуде"]
[null,null,null,473,null,null,"Туризам"]
[null,null,null,null,216,421,"Стални трошкови",500000,null,500000]
[null,null,null,null,217,422,"Трошкови службених путовања",300000,null,300000]
[null,null,null,null,218,423,"Услуге по уговору",5000000,null,5000000]
[null,null,null,null,null,null,null,null,null,0]
[null,null,null,null,null,null,null,null,null,0]
[null,null,null,null,null,null,null,null,null,0]
[null,null,null,null,null,null,null,null,null,0]
[null,null,null,null,null,null,null,null,null,0]
[null,null,null,null,null,null,null,null,null,0]
[null,null,null,null,null,null,null,null,null,0]
[null,null,null,null,null,null,null,null,null,0]
[null,null,null,null,null,null,null,null,null,0]
[null,null,null,null,null,null,null,null,null,0]
[null,null,null,null,null,null,null,null,null,0]
[null,null,null,null,null,null,null,null,null,0]
[null,null,null,null,224,421,"Стални трошкови",500000,null,500000]
[null,null,null,null,225,422,"Трошкови службених путовања",600000,null,600000]
[null,null,null,null,226,423,"Услуге по уговору",17100000,1500000,18600000]
[null,null,null,null,227,424,"Специјализоване услуге",100000,null,{"$f":"H2346","v":100000}]
[null,null,null,null,228,"426","Материјал",800000,null,800000]
[null,null,null,null,null,null,"Извор финансирања за ПА: 1502-0002"]
[null,null,null,null,null,null,"01 - Приходи из буџета",{"$f":"H2343+H2344+H2345+H2346+H2347","v":19100000},null,{"$f":"H2349","v":19100000}]
[null,null,null,null,null,null,"07 - Приходи од Републике",null,{"$f":"I2345","v":1500000},{"$f":"I2350","v":1500000}]
[null,null,null,null,null,null,"Укупно за ПА: 1502-0002",{"$f":"H2349","v":19100000},{"$f":"I2350","v":1500000},{"$f":"J2343+J2344+J2345+J2346+J2347","v":20600000}]
[]
[null,null,"1502-001",null,null,null,"Пројекат: Штампа пропагандног материјала"]
[null,null,null,473,null,null,"Туризам"]
[]
[]
[]
[]
[]
[]
[]
[]
[]
[]
[]
[]
[]
[]
[]
[]
[]
[]
[]
[]
[]
[]
[]
[]
[]
[]
[]
[null,null,"1502-001",null,null,null,"Пројекат: Штампа пропагандног материјала"]
[]
[null,null,null,null,220,423,"Услуге по уговору",1000000,null,{"$f":"H2384+I2384","v":1000000}]
[null,null,null,null,null,null,null,null,null,0]
[null,null,null,null,null,null,null,null,null,0]
[null,null,null,null,null,null,null,null,null,0]
[null,null,null,null,null,null,null,null,null,0]
[null,null,null,null,null,null,null,null,null,0]
[null,null,null,null,null,null,null,null,null,0]
[null,null,null,null,null,null,null,null,null,0]
[null,null,null,null,null,null,null,null,null,0]
[null,null,null,null,null,null,null,null,null,0]
[null,null,null,null,null,null,null,null,null,0]
[null,null,null,null,null,null,null,null,null,0]
[null,null,null,null,null,null,null,null,null,0]
[null,null,null,null,null,null,"Извор финансирања за функцију: 473"]
[null,null,null,null,null,null,"01 - Приходи из буџета",{"$f":"H2265+H2351","v":91500000},null,{"$f":"H2398","v":91500000}]
[null,null,null,null,null,null,"07 - Приходи од Републике",null,{"$f":"I2265+I2351","v":3500000},{"$f":"I2399","v":3500000}]
[null,null,null,null,null,null,"Укупно за функцију: 473",{"$f":"H2398","v":91500000},{"$f":"I2399","v":3500000},{"$f":"J2265+J2351","v":95000000}]
[]
[5,"5.04",null,null,null,null,"МЕСНЕ ЗАЈЕДНИЦЕ"]
[null,null,"0602",null,null,null,"ПРОГРАМ 15: ЛОКАЛНА САМОУПРАВА"]
[null,null,"0602-0002",null,null,null,"ПА: Функционисање месних заједница"]
[null,null,null,160,null,null,"Опште јавне услуге некласификоване на другом месту"]
[]
[]
[]
[]
[]
[]
[]
[]
[]
[]
[]
[]
[null,null,"0602",null,null,null,"ПРОГРАМ 15: ЛОКАЛНА САМОУПРАВА"]
[null,null,"0602-0002",null,null,null,"ПА: Функционисање месних заједница"]
[]
[null,null,null,null,224,421,"Стални трошкови",4245000,null,{"$f":"H2421+I2421","v":4245000}]
[null,null,null,null,null,null,null,null,null,{"$f":"H2422+I2422","v":0}]
[null,null,null,null,null,null,null,null,null,0]
[null,null,null,null,null,null,null,null,null,0]
[null,null,null,null,null,null,null,null,null,0]
[null,null,null,null,null,null,"01 - Приходи из буџета",null,null,0]
[null,null,null,null,null,null,"Свега за програмску активност 0901-0006",null,null,0]
[null,null,null,null,null,null,"Извор финансирања за  главу 4.19",null,null,0]
[null,null,null,null,null,null,"01 - Приходи из буџета",null,null,0]
[null,null,null,null,null,null,"Укупно за  главу 4.19",null,null,0]
[null,null,null,null,null,"01",null,8500000,null,8500000]
[null,null,null,null,null,null,null,8500000,null,8500000]
[null,null,null,null,null,null,null,null,null,0]
[null,null,null,null,null,null,null,null,null,0]
[null,null,null,null,null,null,null,null,null,0]
[null,null,null,null,null,null,null,null,null,0]
[null,null,null,null,null,null,null,null,null,0]
[null,null,null,null,null,null,null,null,null,0]
[null,null,null,null,null,null,null,null,null,0]
[null,null,null,null,null,null,null,null,null,0]
[null,null,null,null,null,null,"Приходи из буџета",null,null,0]
[null,null,null,null,null,null,"Свега за програмску активност 2003-0001",null,null,0]
[null,null,null,null,null,null,null,null,null,0]
[null,null,null,null,null,null,null,null,null,0]
[null,null,null,null,null,null,null,null,null,0]
[null,null,null,null,null,null,null,null,null,0]
[null,null,null,null,null,null,null,null,null,0]
[null,null,null,null,null,null,null,null,null,0]
[null,null,null,null,null,null,null,null,null,0]
[null,null,null,null,null,null,null,null,null,0]
[null,null,null,null,null,null,null,null,null,0]
[null,null,null,null,null,null,null,null,null,0]
[null,null,null,null,null,null,null,null,null,0]
[null,null,null,null,null,null,null,null,null,0]
[null,null,"0602-0002",null,null,null,"ПА: Функционисање месних заједница"]
[null,null,null,160,null,null,"Опште јавне услуге некласификоване на другом месту"]
[null,null,null,null,null,null,null,null,null,0]
[null,null,null,null,225,423,"Услуге по уговору",1470000,null,1470000]
[null,null,null,null,null,null,null,null,null,0]
[null,null,null,null,null,null,null,null,null,0]
[null,null,null,null,null,null,null,null,null,0]
[null,null,null,null,null,null,null,null,null,0]
[null,null,null,null,null,null,null,null,null,0]
[null,null,null,null,null,null,null,null,null,0]
[null,null,null,null,null,null,null,null,null,0]
[null,null,null,null,null,null,null,null,null,0]
[null,null,null,null,null,null,null,null,null,0]
[null,null,null,null,null,null,null,null,null,0]
[null,null,null,null,null,null,null,null,null,0]
[null,null,null,null,null,null,null,null,null,0]
[null,null,null,160,null,null,"Опште јавне услуге некласификоване на другом месту"]
[null,null,null,null,229,421,"Стални трошкови",4210000,null,4210000]
[null,null,null,null,230,423,"Услуге по уговору",2955000,null,2955000]
[null,null,null,null,226,424,"Специјализоване услуге",855000,null,855000]
[null,null,null,null,227,425,"Текеуће поправке и одржавање",3515000,null,3515000]
[null,null,null,null,228,426,"Материјал",1065000,null,1065000]
[null,null,null,null,null,null,null,null,null,0]
[null,null,null,null,null,null,null,null,null,0]
[null,null,null,null,null,null,null,null,null,0]
[null,null,null,null,null,null,null,null,null,0]
[null,null,null,null,null,null,null,null,null,0]
[null,null,null,null,null,null,null,null,null,0]
[null,null,null,null,null,null,null,null,null,0]
[null,null,null,null,null,null,null,null,null,0]
[null,null,null,null,null,null,null,null,null,0]
[null,null,null,null,null,null,null,null,null,{"$f":"H2486+I2486","v":0}]
[null,null,null,null,null,null,null,null,null,0]
[null,null,null,null,null,null,null,null,null,0]
[null,null,null,null,null,null,null,null,null,0]
[null,null,null,null,null,null,null,null,null,0]
[null,null,null,null,null,null,null,null,null,0]
[null,null,null,null,null,null,null,null,null,0]
[null,null,null,null,231,424,"Специјализоване услуге",1685000,null,1685000]
[null,null,null,null,227,425,"Текуће поправке и одржавање",3635000,null,3635000]
[null,null,null,null,null,null,null,null,null,0]
[null,null,null,null,229,482,"Порези, обавезне таксе, пенали и казне",165000,null,165000]
[null,null,null,null,null,null,null,null,null,0]
[null,null,null,null,null,null,null,null,null,0]
[null,null,null,null,null,null,null,null,null,0]
[null,null,null,null,null,null,null,null,null,0]
[null,null,null,null,null,null,null,null,null,0]
[null,null,null,null,null,null,null,null,null,0]
[null,null,null,null,null,null,null,null,null,0]
[null,null,null,null,null,null,null,null,null,0]
[null,null,null,null,null,null,null,null,null,0]
[null,null,null,null,null,null,null,null,null,0]
[null,null,null,null,null,null,null,null,null,0]
[null,null,null,null,null,null,null,null,null,0]
[null,null,null,null,null,null,null,null,null,0]
[null,null,null,null,null,null,null,null,null,0]
[null,null,null,null,null,null,null,null,null,0]
[null,null,null,null,null,null,null,null,null,0]
[null,null,null,null,null,null,null,null,null,0]
[null,null,null,null,null,null,null,null,null,0]
[null,null,null,null,null,null,null,null,null,0]
[null,null,null,null,null,null,null,null,null,0]
[null,null,null,null,null,null,null,null,null,0]
[null,null,null,null,null,null,null,null,null,0]
[null,null,null,null,null,null,null,null,null,0]
[null,null,null,null,null,null,null,null,null,0]
[null,null,null,null,null,null,null,null,null,0]
[null,null,null,null,null,null,null,null,null,0]
[null,null,null,null,null,null,null,null,null,0]
[null,null,null,null,null,null,null,null,null,0]
[null,null,null,null,null,null,null,null,null,0]
[null,null,null,null,null,null,null,null,null,0]
[null,null,null,null,null,null,null,null,null,0]
[null,null,null,null,null,null,null,null,null,0]
[null,null,null,null,null,null,null,null,null,0]
[null,null,null,null,null,null,null,null,null,0]
[null,null,null,null,null,null,null,null,null,0]
[null,null,null,null,null,null,null,null,null,0]
[null,null,null,null,null,null,null,null,null,0]
[null,null,null,null,null,null,null,null,null,0]
[null,null,null,null,null,null,null,null,null,0]
[null,null,null,null,null,null,null,null,null,0]
[]
[]
[]
[]
[]
[]
[]
[]
[]
[]
[]
[]
[]
[]
[]
[]
[]
[]
[]
[]
[]
[]
[]
[]
[]
[]
[]
[null,null,null,null,232,425,"Текуће поправке и одржавање",2735000,null,{"$f":"H2564","v":2735000}]
[null,null,null,null,233,426,"Материјал",965000,null,{"$f":"H2565","v":965000}]
[null,null,null,null,234,482,"Порези, обавезне таксе, пенали и казне",215000,null,{"$f":"H2566","v":215000}]
[null,null,null,null,235,512,"Машине и опрема",450000,null,{"$f":"H2567","v":450000}]
[null,null,null,null,null,null,"Извор финансирања за ПА: 0602-0002"]
[null,null,null,null,null,null,"01 - Приходи из буџета",{"$f":"H2472+H2473+H2493+H2564+H2565+H2566+H2567","v":13215000},null,{"$f":"J2472+J2473+J2493+J2564+J2565+J2566+J2567","v":13215000}]
[null,null,null,null,null,null,"Укупно за ПА: 0602-0002",{"$f":"H2569","v":13215000},null,{"$f":"J2569","v":13215000}]
[null,null,null,null,null,null,"Извор финансирања за функцију: 160"]
[null,null,null,null,null,null,"01 - Приходи из буџета",{"$f":"H2569","v":13215000},null,{"$f":"H2572","v":13215000}]
[null,null,null,null,null,null,"Свега за функцију: 160",{"$f":"H2570","v":13215000},null,{"$f":"H2573","v":13215000}]
[]
[]
[]
[]
[]
[]
[]
[]
[null,null,null,null,null,null,"01 - Приходи из буџета"]
[null,null,null,null,null,null,"Свега за ПА: 0602-0002:"]
[]
[]
[]
[]
[]
[]
[]
[]
[]
[]
[null,null,null,null,null,null,"01 - Приходи из буџета",{"$f":"H2570","v":13215000},null,{"$f":"J2570","v":13215000}]
[null,null,null,null,null,null,"Укупно за функцију: 160",{"$f":"H2569","v":13215000},null,{"$f":"J2569","v":13215000}]
[]
[5,"5.05",null,null,null,null,"УСТАНОВА \"СПОРТСКИ ЦЕНТАР ЧАЈЕТИНА\""]
[null,null,"1301",null,null,null,"ПРОГРАМ 14: РАЗВОЈ СПОРТА И ОМЛАДИНЕ"]
[null,null,"1301-0002",null,null,null,"ПА: Подршка предшколском и школском спорту"]
[null,null,null,810,null,null,"Услуге рекреације  и спорта"]
[null,null,null,null,236,423,"Услуге по уговору",720000,null,{"$f":"H2601","v":720000}]
[null,null,null,null,237,424,"Специјализоване услуге",400000,null,{"$f":"H2602","v":400000}]
[null,null,null,null,238,426,"Материјал",280000,null,{"$f":"H2603","v":280000}]
[null,null,null,null,null,null,"Извор финансирања за ПА: 1301-0002"]
[null,null,null,null,null,null,"01 - Приходи из буџета",{"$f":"H2601+H2602+H2603","v":1400000},null,{"$f":"J2601+J2602+J2603","v":1400000}]
[null,null,null,null,null,null,"Укупно за ПА: 1301-0002",{"$f":"H2605","v":1400000},null,{"$f":"J2605","v":1400000}]
[]
[null,null,"1301-0004",null,null,null,"ПА: Функционисање локалних спортских установа"]
[null,null,null,810,null,null,"Услуге рекреације  и спорта"]
[null,null,null,null,239,"411","Плате, додаци и накнаде запослених-зараде",22650000,null,{"$f":"H2610+I2610","v":22650000}]
[null,null,null,null,240,412,"Социјални доприноси на терет послодавца",3772000,null,{"$f":"H2611+I2611","v":3772000}]
[null,null,null,null,241,413,"Накнаде у натури",200000,null,{"$f":"H2612","v":200000}]
[null,null,null,null,242,414,"Социјална давања запосленима",2354000,null,{"$f":"H2613","v":2354000}]
[null,null,null,null,237,"415","Накнаде трошкова за запослене-превоз",1200000,null,{"$f":"H2614+I2614","v":1200000}]
[null,null,null,null,238,416,"Награде запосленима и остали посебни расходи-јубиларне награде",600000,null,{"$f":"H2615+I2615","v":600000}]
[null,null,null,null,239,421,"Стални трошкови",5465000,null,5465000]
[null,null,null,null,null,null,null,null,null,0]
[null,null,null,null,null,null,null,null,null,0]
[null,null,null,null,null,null,null,null,null,0]
[null,null,null,null,null,null,null,null,null,0]
[null,null,null,null,null,null,"01 - Приходи из буџета",null,null,0]
[null,null,null,null,null,null,"Свега за програмску активност 0901-0006",null,null,0]
[null,null,null,null,null,null,"Извор финансирања за  главу 4.19",null,null,0]
[null,null,null,null,null,null,"01 - Приходи из буџета",null,null,0]
[null,null,null,null,null,null,"Укупно за  главу 4.19",null,null,0]
[null,null,null,null,null,"01",null,8500000,null,8500000]
[null,null,null,null,null,null,null,8500000,null,8500000]
[null,null,null,null,null,null,null,null,null,0]
[null,null,null,null,null,null,null,null,null,0]
[null,null,null,null,null,null,null,null,null,0]
[null,null,null,null,null,null,null,null,null,0]
[null,null,null,null,null,null,null,null,null,0]
[null,null,null,null,null,null,null,null,null,0]
[null,null,null,null,null,null,null,null,null,0]
[null,null,null,null,null,null,null,null,null,0]
[null,null,null,null,null,null,"Приходи из буџета",null,null,0]
[null,null,null,null,null,null,"Свега за програмску активност 2003-0001",null,null,0]
[null,null,null,null,null,null,null,null,null,0]
[null,null,null,null,null,null,null,null,null,0]
[null,null,null,null,null,null,null,null,null,0]
[null,null,null,null,null,null,null,null,null,0]
[null,null,null,null,null,null,null,null,null,0]
[null,null,null,null,null,null,null,null,null,0]
[null,null,null,null,null,null,null,null,null,0]
[null,null,null,null,null,null,null,null,null,0]
[null,null,null,null,null,null,null,null,null,0]
[null,null,null,null,null,null,null,null,null,0]
[null,null,null,null,null,null,null,null,null,0]
[null,null,null,null,null,null,null,null,null,0]
[null,null,null,null,243,415,"Накнада трошкова за запослене - превоз",1200000,null,1200000]
[null,null,null,null,244,416,"Награде за запослене и остали посебни расходи-јубиларне награде",300000,null,300000]
[null,null,null,null,239,421,"Стални трошкови",6745000,null,6745000]
[null,null,null,null,240,422,"Трошкови службених путовања",300000,null,{"$f":"H2653+I2653","v":300000}]
[null,null,null,null,241,423,"Услуге по уговору",6700000,null,{"$f":"H2654","v":6700000}]
[null,null,null,null,null,null,null,null,null,0]
[null,null,null,null,null,null,null,null,null,0]
[null,null,null,null,null,null,null,null,null,0]
[null,null,null,null,null,null,null,null,null,0]
[null,null,null,null,null,null,null,null,null,0]
[null,null,null,null,null,null,null,null,null,0]
[null,null,null,null,null,null,null,null,null,0]
[null,null,null,null,null,null,null,null,null,0]
[null,null,null,null,null,null,null,null,null,0]
[null,null,null,null,null,null,null,null,null,0]
[null,null,null,null,null,null,null,null,null,0]
[null,null,null,null,null,null,null,null,null,0]
[null,null,null,null,245,421,"Стални трошкови",6745000,null,6745000]
[null,null,null,null,246,422,"Трошкови службених путовања",350000,null,350000]
[null,null,null,null,247,423,"Услуге по уговору",9120000,null,9120000]
[null,null,null,null,248,424,"Специјализоване услуге",550000,null,{"$f":"H2670+I2670","v":550000}]
[null,null,null,null,243,425,"Текеуће поправке и одржавање",4120000,null,4120000]
[null,null,null,null,244,426,"Материјал",3610000,null,{"$f":"H2672+I2672","v":3610000}]
[null,null,null,null,245,444,"Пратећи трошкови задуживања",1000,null,1000]
[null,null,null,null,null,null,null,null,null,0]
[null,null,null,null,null,null,null,null,null,{"$f":"H2675+I2675","v":0}]
[null,null,null,null,null,null,null,null,null,0]
[null,null,null,null,null,null,null,null,null,0]
[null,null,null,null,null,null,null,null,null,0]
[null,null,null,null,null,null,null,null,null,0]
[null,null,null,null,null,null,null,null,null,0]
[null,null,null,null,null,null,null,null,null,0]
[null,null,null,null,null,null,null,null,null,0]
[null,null,null,null,null,null,null,null,null,0]
[null,null,null,null,null,null,null,null,null,0]
[null,null,null,null,null,null,null,null,null,0]
[null,null,null,null,null,null,null,null,null,0]
[null,null,null,null,null,null,null,null,null,0]
[null,null,null,null,null,null,null,null,null,0]
[null,null,null,null,null,null,null,null,null,0]
[null,null,null,null,249,425,"Текуће поправке и одржавање",4120000,null,4120000]
[null,null,null,null,244,426,"Материјал",3550000,150000,3700000]
[null,null,null,null,null,null,null,null,null,0]
[null,null,null,null,246,482,"Порези, обавезне таксе, пенали и казне",150000,null,{"$f":"H2693","v":150000}]
[null,null,null,null,null,null,null,null,null,0]
[null,null,null,null,null,null,null,null,null,0]
[null,null,null,null,null,null,null,null,null,0]
[null,null,null,null,null,null,null,null,null,0]
[null,null,null,null,null,null,null,null,null,0]
[null,null,null,null,null,null,null,null,null,0]
[null,null,null,null,null,null,null,null,null,0]
[null,null,null,null,null,null,null,null,null,0]
[null,null,null,null,null,null,null,null,null,0]
[null,null,null,null,null,null,null,null,null,0]
[null,null,null,null,null,null,null,null,null,0]
[null,null,null,null,null,null,null,null,null,0]
[null,null,null,null,null,null,null,null,null,0]
[null,null,null,null,null,null,null,null,null,0]
[null,null,null,null,null,null,null,null,null,0]
[null,null,null,null,null,null,null,null,null,0]
[null,null,null,null,null,null,null,null,null,0]
[null,null,null,null,null,null,null,null,null,0]
[null,null,null,null,null,null,null,null,null,0]
[null,null,null,null,null,null,null,null,null,0]
[null,null,null,null,null,null,null,null,null,0]
[null,null,null,null,null,null,null,null,null,0]
[null,null,null,null,null,null,null,null,null,0]
[null,null,null,null,null,null,null,null,null,0]
[null,null,null,null,null,null,null,null,null,0]
[null,null,null,null,null,null,null,null,null,0]
[null,null,null,null,null,null,null,null,null,0]
[null,null,null,null,null,null,null,null,null,0]
[null,null,null,null,null,null,null,null,null,0]
[null,null,null,null,null,null,null,null,null,0]
[null,null,null,null,null,null,null,null,null,0]
[null,null,null,null,null,null,null,null,null,0]
[null,null,null,null,null,null,null,null,null,0]
[null,null,null,null,null,null,null,null,null,0]
[null,null,null,null,null,null,null,null,null,0]
[null,null,null,null,null,null,null,null,null,0]
[null,null,null,null,null,null,null,null,null,0]
[null,null,null,null,250,426,"Материјал",3270000,150000,3420000]
[null,null,null,null,251,482,"Порези, обавезне таксе, пенали и казне",90000,null,90000]
[null,null,null,null,247,483,"Новчане казне и пенали по решењу судова",30000,null,30000]
[null,null,null,null,248,485,"Остале наканде штете - неискоришћен годишњи одмор",5000,null,{"$f":"H2734","v":5000}]
[null,null,null,null,249,512,"Машине и опрема",11000000,null,11000000]
[null,null,null,null,null,null,null,null,null,0]
[null,null,null,null,null,null,null,null,null,0]
[null,null,null,null,null,null,null,null,null,{"$f":"H2738+I2738","v":0}]
[null,null,null,null,null,null,null,null,null,0]
[null,null,null,null,null,null,null,null,null,0]
[null,null,null,null,null,null,null,null,null,0]
[null,null,null,null,null,null,null,null,null,0]
[null,null,null,null,null,null,null,null,null,0]
[null,null,null,null,null,null,null,null,null,0]
[null,null,null,null,null,null,null,null,null,0]
[null,null,null,null,null,null,null,null,null,0]
[null,null,null,null,null,null,null,null,null,0]
[null,null,null,null,null,null,null,null,null,0]
[null,null,null,null,null,null,null,null,null,0]
[]
[]
[]
[]
[]
[]
[]
[]
[]
[]
[]
[]
[]
[null,null,null,null,252,483,"Новчане казне и пенали по решењу судова",30000,null,{"$f":"H2763","v":30000}]
[null,null,null,null,253,511,"Зграде и грађевински објекти",1000,null,{"$f":"H2764","v":1000}]
[null,null,null,null,254,512,"Машине и опрема (набавка семафора за халу, кино-пројектор , административну опрему)",4000000,null,{"$f":"H2765","v":4000000}]
[null,null,null,null,null,null,"Извор финансирања за ПА: 1301-0004"]
[null,null,null,null,null,null,"01 - Приходи из буџета",{"$f":"H2610+H2611+H2612+H2613+H2650+H2651+H2667+H2668+H2669+H2670+H2690+H2731+H2732+H2763+H2764+H2765","v":58752000}," ",{"$f":"H2767","v":58752000}]
[null,null,null,null,null,null,"08 - Приходи од донација",null,{"$f":"I2691","v":150000},{"$f":"I2768","v":150000}]
[null,null,null,null,null,null,"Укупно за ПА: 1301-0004",{"$f":"H2767","v":58752000},{"$f":"I2768","v":150000},{"$f":"J2610+J2611+J2612+J2613+J2650+J2651+J2667+J2668+J2669+J2670+J2690+J2731+J2732+J2763+J2764+J2765","v":58902000}]
[]
[null,null,"1301-0005",null,null,null,"ПА: Спровођење омладинске политике"]
[null,null,null,810,null,null,"Услуге рекреације и спорта"]
[]
[]
[]
[]
[]
[]
[]
[]
[]
[]
[]
[]
[]
[null,null,"1301-0005",null,null,null,"ПА: Спровођење омладинске политике"]
[null,null,null,810,null,null,"Услуге рекреације  и спорта"]
[null,null,null,null,255,"423","Услуге по уговору",3000000,null,{"$f":"H2788+I2788","v":3000000}]
[null,null,null,null,256,424,"Специјализоване услуге",1000000,null,{"$f":"H2789+I2789","v":1000000}]
[null,null,null,null,257,426,"Материјал",300000,null,300000]
[null,null,null,null,null,null,"Извор финансирања за ПА: 1301-0005"]
[null,null,null,null,null,null,"01 - Приходи из буџета",{"$f":"H2788+H2789+H2790","v":4300000},null,{"$f":"H2792+I2792","v":4300000}]
[null,null,null,null,null,null,"Укупно за ПА: 1301-0005",{"$f":"H2792","v":4300000},null,{"$f":"J2792","v":4300000}]
[null,null,null,null,null,null,"Извор финансирања за функцију: 810"]
[null,null,null,null,null,null,"01 - Приходи из буџета",{"$f":"H2606+H2769+H2793","v":64452000},null,{"$f":"H2795","v":64452000}]
[null,null,null,null,null,null,"08 - Приходи од донација",null,{"$f":"I2768","v":150000},{"$f":"I2796","v":150000}]
[null,null,null,null,null,null,"Укупно за функцију: 810",{"$f":"H2795","v":64452000},{"$f":"I2769","v":150000},{"$f":"J2606+J2769+J2793","v":64602000}]
[]
[null,null,null,null,null,null,"Извор финансирања за раздео: 5"]
[null,null,null,null,null,null,"01 - Приходи из буџета",{"$f":"H390+H410+H455+H466+H505+H525+H614+H626+H655+H669+H679+H710+H725+H746+H817+H874+H884+H912+H926+H974+H1076+H1178+H1197+H1224+H1245+H1258+H1278+H1291+H1302+H1343+H1594+H1674+H1692+H1719+H1902+H2083+H2400+H2595+H2797","v":2000330000},null,{"$f":"H2800+I2800","v":2000330000}]
[null,null,null,null,null,null,"06 - Приходи од донације",null,268000,{"$f":"I2801","v":268000}]
[null,null,null,null,null,null,"07 - Приходи од Републике",null,10981000,{"$f":"I2802","v":10981000}]
[null,null,null,null,null,null,"08 - Приходи од ",null,150000,{"$f":"I2803","v":150000}]
[null,null,null,null,null,null,"13 - Из средстава суфицита",null,250000000,{"$f":"I2804","v":250000000}]
[null,null,null,null,null,null,"15 - Неутрошена средства донација из ранијих година",null,null,{"$f":"I2805","v":0}]
[null,null,null,null,null,null,"Укупно за раздео: 5",{"$f":"H390+H410+H455+#REF!+H505+H525+H614+H626+H655+H669+H676+H710+H725+H746+H817+H874+H884+H912+H926+H974+H1076+H1178+H1197+H1224+H1245+H1258+H1278+H1291+H1302+H1313+H1594+H1674+H1692+H1719+H1902+H2083+H2400+H2573+H2797","v":{"$error":"#REF!"}},{"$f":"I390+I455+I505+I614+I725+I746+I1224+I1902","v":151180600},{"$f":"J390+J410+J455+#REF!+J505+J525+J614+J626+J655+J669+J679+J710+J725+J746+J817+J874+J884+J912+J926+J974+J1076+J1178+J1197+J1224+J1245+J1258+J1278+J1291+J1302+J1313+J1594+J1674+J1692+J1719+J1902+J2083+J2400+J2573+J2797","v":{"$error":"#REF!"}}]
[]
[]
[]
[]
[]
[]
[]
[]
[]
[]
[]
[]
[]
[]
[]
[]
[]
[]
[]
[]
[]
[]
[]
[]
[]
[]
[]
[]
[]
[]
[]
[]
[]
[]
[]
[]
[]
[]
[]
[]
[]
[]
[]
[]
[]
[]
[]
[]
[]
[]
[]
[]
[]
[]
[]
[]
[]
[]
[]
[null,null,null,null,null,null,"15 - ",null,3054000,{"$f":"I2866","v":3054000}]
[null,null,null,null,null,null,"Укупно за раздео: 5",{"$f":"H2800","v":2000330000},{"$f":"I390+I455+I505+I614+I746+I817+I874+I912+I974+I1076+I1902+I2400+I2797","v":264453000},{"$f":"J390+J410+J455+J466+J505+J525+J614+J626+J655+J669+J679+J710+J725+J746+J817+J874+J884+J912+J926+J974+J1076+J1178+J1197+J1224+J1245+J1258+J1278+J1291+J1302+J1343+J1594+J1674+J1692+J1719+J1902+J2083+J2400+J2595+J2797","v":2264783000}]
[]
[null,null,null,null,null,null,"Извор финансирања за раздео: 1, 2, 3, 4 и 5"]
[null,null,null,null,null,null,"01 - Приходи из буџета",1878657743,null,{"$f":"H2870","v":1878657743}]
[]
[]
[]
[]
[]
[]
[]
[]
[]
[]
[]
[]
[null,null,null,null,null,null,"Извори финансирања за раздео: 1, 2, 3, 4 и 5"]
[null,null,null,null,null,null,"01 - Приходи из буџета",{"$f":"H86+H192+H209+H312+H390+H410+H455+H466+H505+H525+H614+H626+H655+H669+H679+H710+H725+H746+H817+H874+H884+H912+H926+H974+H1076+H1178+H1197+H1224+H1245+H1258+H1278+H1291+H1302+H1343+H1594+H1674+H1692+H1719+H1902+H2083+H2400+H2595+H2797","v":2036297000},null,{"$f":"H2884","v":2036297000}]
[null,null,null,null,null,null,"06 - Из средстава донације",null,518000,{"$f":"I2885","v":518000}]
[null,null,null,null,null,null,"07 - Приходи од Републике",null,10981000,{"$f":"I2886","v":10981000}]
[null,null,null,null,null,null,"08 - Приходи од трансфера од физичких и правних лица",null,150000,{"$f":"I2887","v":150000}]
[null,null,null,null,null,null,"13 - Из средстава суфицита",null,250000000,{"$f":"I2888","v":250000000}]
[null,null,null,null,null,null,"15 - Неутрошена средства донација из ранијих година",null,3054000,{"$f":"I2889","v":3054000}]
[null,null,null,null,null,null,"Укупно  за раздео: 1, 2, 3, 4 и 5",{"$f":"H86+H192+H209+H312+H390+H410+H455+H466+H505+H525+H614+H626+H655+H669+H679+H710+H725+H746+H817+H874+H884+H912+H926+H974+H1076+H1178+H1197+H1224+H1245+H1258+H1278+H1291+H1302+H1343+H1594+H1674+H1692+H1719+H1902+H2083+H2400+H2595+H2797","v":2036297000},{"$f":"I192+I2867","v":264703000},{"$f":"J86+J192+J209+J312+J390+J410+J455+J466+J505+J525+J614+J626+J655+J669+J679+J710+J725+J746+J817+J874+J884+J912+J926+J974+J1076+J1178+J1197+J1224+J1245+J1258+J1278+J1291+J1302+J1343+J1594+J1674+J1692+J1719+J1902+J2083+J2400+J2595+J2797","v":2301000000}]